{"text_format":"1","workbook":"xlsx","n_sheets":14,"sheets":["RIAD ovládací panel","RIAD data o subjektech","Info","Číselník typ subjektů","Číselník země sídla","Číselník typů identifikátorů","NUTS3","Číselník právní forma","Číselník sektor","Číselník NACE","Číselník stav soudního jednání","Číselník velikost podniku","Číselník účetních standardů","Číselník_měn"],"not_rendered":{"charts":0,"images":0,"macros":1,"external_links":0,"defined_names":21,"comments":0,"pivot_tables":0},"unopened":[],"bounds":{"document_bytes":16777216,"sheet_cells":100000,"rows_first":2000,"rows_last":500,"rows_between":2000,"halvings":0,"cell_chars":16384,"cell_head_chars":4096},"cells_cut":0,"cells_raw":0,"read":"whole","date_system":"1900"}

{"sheet":"RIAD ovládací panel","index":0,"n_rows":11,"n_cols":6,"rows_kept":11,"cut":false,"hidden":false,"merged":[[4,6,5,6]]}
[]
[]
[]
[]
[null,"Vykazující subjekt:","Název subjektu","(v xml pouze jako komentář)",null,"Výstupní soubor:"]
[null,"Kód vykazující osoby:","xxxxxx","(v xml raCode)"]
[null,"Osoba:","Jméno Příjmení","(v xml raContactPerson)"]
[null,"E-mail:","adresa@server.doména","(v xml atribut email u raContactPerson)"]
[null,"Telefon:","111 222 333","(v xml atribut phoneNumber u raContactPerson)"]
[null,"Identifikátor zprávy:","File1234567890","(v xml raInputMessageId)"]
[null,"Datum (validFrom):","2022-09-01","(v xml raReferenceDate)"]

{"sheet":"RIAD data o subjektech","index":1,"n_rows":14,"n_cols":82,"rows_kept":14,"cut":false,"hidden":false,"merged":[[1,50,1,52],[1,29,1,37],[1,11,1,12],[1,53,1,55],[0,0,0,7],[1,24,1,28],[1,14,1,18],[1,19,1,23],[1,5,1,7],[1,1,1,4],[1,70,1,81],[1,56,1,58],[1,59,1,62],[1,63,1,66],[1,67,1,69]]}
["Seznam vykazovaných subjektů:"]
[null,"Identifikační údaje",null,null,null,"Název subjektu",null,null,"Jméno FOP",null,null,"Datum",null,null,"Identifikátor 1",null,null,null,null,"Identifikátor 2",null,null,null,null,"Identifikátor 3",null,null,null,null,"Adresa",null,null,null,null,null,null,null,null,null,null,null,null,null,null,null,null,null,null,null,null,"Stav soudního jednání",null,null,"Velikost podniku",null,null,"Počet zaměstnanců",null,null,"Bilanční suma",null,null,null,"Roční obrat",null,null,null,"Účetní standard",null,null,"Identifikátory (vazby)"]
["#","Kód země","Typ","RIAD IDK","CRÚ IDK","Od (název)","Do (název)","Název","Od (jméno)","Do (jméno)","FOP Jméno Příjmení","vzniku","zániku","narození FOP","Typ (id1)","od (id1)","do (id1)","idName (id1)","Hodnota (id1)","Typ (id2)","Platný od (id2)","Platný do (id2)","idName (id2)","Hodnota (id2)","Typ (id3)","Platný od (id3)","Platný do (id3)","idName (id3)","Hodnota (id3)","Od (ulice)","Do (ulice)","Ulice","Od (město)","Do (město)","Město","Od (PSČ)","Do (PSČ)","PSČ","Od (reg)","Do (reg)","Region","Od (pr.forma)","Do (pr.forma)","Pr. forma","Od (sektor)","Do (sektor)","Sektor","Od (NACE)","Do (NACE)","NACE","Od (stav*)","Do (stav*)","Stav","Od (velikost*)","Do (velikost)","Velikost","Od (počet z.*)","Do (počet z.)","Počet","Od (bil. suma)","Do (bil. suma)","Suma","Měna (suma)","Od (obrat*)","Do (obrat)","Obrat","Měna (obrat)","Od (úč. s)","Do (úč. s)","Úč. standard","Od (id centrály)","Do (id centrály)","Centrály","Od (id obhosp.)","Do (id obhosp.)","Obhospoda-\nřovatele","Od (nejbliž. Vl.)","Do (nejbliž. Vl.)","Nejbližšího vlastníka","Od (vrch.vl.)","Do (vrch.vl.)","Vrcholového vlastníka"]
["counterpartyNr","country","counterpartyType","riadIDK","CRU_IDK","validFrom (RIAD_NM_ENTTY_C)","validTo (RIAD_NM_ENTTY_C)","RIAD_NM_ENTTY_C","validFrom (FOP_NM_SRNM_C)","validTo (FOP_NM_SRNM_C)","FOP_NM_SRNM_C","DT_BRTH","DT_CLS","FOP_DT_BRTH","identificatorType (id1)","validFrom (id1)","validTo (id1)","otherIdentificatorName (id1)","ENTITY_ID 1","identificatorType (id2)","validFrom (id2)","validTo (id2)","otherIdentificatorName (id2)","ENTITY_ID 2","identificatorType (id3)","validFrom (id3)","validTo (id3)","otherIdentificatorName (id3)","ENTITY_ID 3","validFrom (RIAD_STRT_C)","validTo (RIAD_STRT_C)","RIAD_STRT_C","validFrom (RIAD_CTY_C)","validTo (RIAD_CTY_C)","RIAD_CTY_C","validFrom (RIAD_PSTL_CD_C)","ValidTo (RIAD_PSTL_CD_C)","RIAD_PSTL_CD_C","ValidFrom (RIAD_TRRTRL_UNT_C)","ValidTo (RIAD_TRRTRL_UNT_C)","RIAD_TRRTRL_UNT_C","ValidFrom (RIAD_LGL_FRM_C)","ValidTo (RIAD_LGL_FRM_C)","RIAD_LGL_FRM_C","ValidFrom (CNB_SEKTOR)","ValidTo (CNB_SEKTOR)","CNB_SEKTOR","ValidFrom (CNB_NACE)","ValidTo (CNB_NACE)","CNB_NACE","ValidFrom (RIAD_LGL_PRCDNG_STTS_C)","ValidTo (RIAD_LGL_PRCDNG_STTS_C)","RIAD_LGL_PRCDNG_STTS_C","ValidFrom (RIAD_ENTRPRS_SZ_C)","ValidTo (RIAD_ENTRPRS_SZ_C)","RIAD_ENTRPRS_SZ_C","ValidFrom (RIAD_NMBR_EMPLYS_C)","ValidTo (RIAD_NMBR_EMPLYS_C)","RIAD_NMBR_EMPLYS_C","ValidFrom (RIAD_BLNC_SHT_TTL_CRRNCY_C)","ValidTo (RIAD_BLNC_SHT_TTL_CRRNCY_C)","RIAD_BLNC_SHT_TTL_CRRNCY_C","Unit (RIAD_BLNC_SHT_TTL_CRRNCY_C)","ValidFrom (RIAD_ANNL_TRNVR_CRRNCY_C)","ValidTo (RIAD_ANNL_TRNVR_CRRNCY_C)","RIAD_ANNL_TRNVR_CRRNCY_C","Unit (RIAD_ANNL_TRNVR_CRRNCY_C)","ValidFrom (RIAD_ACCNTNG_FRMWRK_SL_C)","ValidTo (RIAD_ACCNTNG_FRMWRK_SL_C)","RIAD_ACCNTNG_FRMWRK_SL_C","ValidFrom (RIAD_IS_BRNCH_C)","ValidTo (RIAD_IS_BRNCH_C)","RIAD_IS_BRNCH_C","ValidFrom (RIAD_IS_MNGMNT_C)","ValidTo (RIAD_IS_MNGMNT_C)","RIAD_IS_MNGMNT_C","ValidFrom (RIAD_IS_OWNR_C)","ValidTo (RIAD_IS_OWNR_C)","RIAD_IS_OWNR_C","ValidFrom (RIAD_IS_ULTMT_PRNT_C)","ValidTo (RIAD_IS_ULTMT_PRNT_C)","RIAD_IS_ULTMT_PRNT_C"]
[{"$f":"ROW()-ROW(TabulkaSubjekty[[#Headers],[counterpartyNr]])","v":1}]
[{"$f":"ROW()-ROW(TabulkaSubjekty[[#Headers],[counterpartyNr]])","v":2}]
[{"$f":"ROW()-ROW(TabulkaSubjekty[[#Headers],[counterpartyNr]])","v":3}]
[{"$f":"ROW()-ROW(TabulkaSubjekty[[#Headers],[counterpartyNr]])","v":4}]
[{"$f":"ROW()-ROW(TabulkaSubjekty[[#Headers],[counterpartyNr]])","v":5}]
[{"$f":"ROW()-ROW(TabulkaSubjekty[[#Headers],[counterpartyNr]])","v":6}]
[{"$f":"ROW()-ROW(TabulkaSubjekty[[#Headers],[counterpartyNr]])","v":7}]
[{"$f":"ROW()-ROW(TabulkaSubjekty[[#Headers],[counterpartyNr]])","v":8}]
[{"$f":"ROW()-ROW(TabulkaSubjekty[[#Headers],[counterpartyNr]])","v":9}]
[{"$f":"ROW()-ROW(TabulkaSubjekty[[#Headers],[counterpartyNr]])","v":10}]

{"sheet":"Info","index":2,"n_rows":17,"n_cols":3,"rows_kept":17,"cut":false,"hidden":false,"merged":[[1,0,1,2]]}
[]
["Protokol o změnách"]
[]
["Číslo verze","Datum vystavení","Popis úprav"]
["1.1","2018-10-15","Doplnění číselníků, drobné úpravy kódu"]
["1.2","2019-01-21","Úprava volání dialogu pro výběr XML souboru (lepší zajištění předvyplnění typu XML)\ndoplnění listu Info"]
["1.3","2019-05-07","Doplnění a úprava číselníků právních forem a národních identifikátorů"]
["1.4","2019-11-25","Doplnění a úprava číselníků právních forem a národních identifikátorů (dle nového relese ECB RIAD 4.1.2)"]
["1.5","2020-05-13","Doplnění a úprava číselníků právních forem a národních identifikátorů (v souladu s RIAD_Counterparty_Reference_Data.xlsx v3.1)"]
["1.6","2020-12-01","Doplněny číselníky a nové vlastnosti (v souladu s RIAD_Counterparty_Reference_Data.xlsx v3.2) - podpora pro FOP (Fyzická osoba podnikatel)"]
["1.7","2021-01-12","Doplněna možnost vkládání CRU_IDK, datumy platnosti pro FOP jméno příjmení, upravena kontrola min. sady pro zakládání nové FOP"]
["1.8","2021-01-27","Doplněny číselníky použité pro nabídky právních forem a identifikátorů"]
["1.9","2021-09-13","Úprava číselníku územních celků (odstraněna země GB)"]
["1.10","2021-12-06","Doplnění a úprava číselníků právních forem a národních identifikátorů"]
["1.11","2022-04-19","Úprava kontroly typu subjektu x stát (povolení PN pro CZ u subjektů bez národního identifikátoru - NOTAP)"]
["1.12","2022-06-23","Úprava číselníku Inst. sektor - odstranění obecných položek, které neurčují vlastnictví"]
["1.13","2022-09-21","Úprava číselníku národních identifikátorů"]

{"sheet":"Číselník typ subjektů","index":3,"n_rows":7,"n_cols":2,"rows_kept":7,"cut":false,"hidden":true,"merged":[[0,0,0,1]]}
["K_OSOBA - typ protistrany"]
["Kód","Název"]
["PA","Právnická osoba s IČO"]
["PN","Právnická osoba bez IČO"]
["PF","Fond bez právní subjektivity (podílový fond, podfond, penzijní fond, FVC)"]
["FA","Fyzická osoba podnikatel s IČO"]
["FN","Fyzická osoba podnikatel bez IČO"]

{"sheet":"Číselník země sídla","index":4,"n_rows":282,"n_cols":4,"rows_kept":282,"cut":false,"hidden":true,"merged":[[0,0,0,2]]}
["ECB1_ISO3166_DSJNT_IO_RIAD - země sídla"]
["Kód","Název","Popis"]
["AD","Andorra","",{"$f":"A3&\"-\"&B3","v":"AD-Andorra"}]
["AE","United Arab Emirates","",{"$f":"A4&\"-\"&B4","v":"AE-United Arab Emirates"}]
["AF","Afghanistan","","AF-Afghanistan"]
["AG","Antigua and Barbuda","","AG-Antigua and Barbuda"]
["AI","Anguilla","","AI-Anguilla"]
["AL","Albania","","AL-Albania"]
["AM","Armenia","","AM-Armenia"]
["AO","Angola","","AO-Angola"]
["AQ","Antarctica","","AQ-Antarctica"]
["AR","Argentina","","AR-Argentina"]
["AS","AMERICAN SAMOA","","AS-AMERICAN SAMOA"]
["AT","Austria/ÖSTERREICH","","AT-Austria/ÖSTERREICH"]
["AU","Australia","","AU-Australia"]
["AW","ARUBA","","AW-ARUBA"]
["AX","ÅLAND ISLANDS","","AX-ÅLAND ISLANDS"]
["AZ","Azerbaijan","","AZ-Azerbaijan"]
["BA","Bosnia and Herzegovina","","BA-Bosnia and Herzegovina"]
["BB","Barbados","","BB-Barbados"]
["BD","Bangladesh","","BD-Bangladesh"]
["BE","Belgium/BELGIQUE-BELGIË ","","BE-Belgium/BELGIQUE-BELGIË "]
["BF","Burkina Faso","","BF-Burkina Faso"]
["BG","Bulgaria","","BG-Bulgaria"]
["BH","Bahrain","","BH-Bahrain"]
["BI","Burundi","","BI-Burundi"]
["BJ","Benin","","BJ-Benin"]
["BL","Saint Barthelemy","","BL-Saint Barthelemy"]
["BM","Bermuda","","BM-Bermuda"]
["BN","Brunei Darussalam","","BN-Brunei Darussalam"]
["BO","Bolivia","","BO-Bolivia"]
["BQ","BONAIRE, SINT EUSTATIUS AND SABA","","BQ-BONAIRE, SINT EUSTATIUS AND SABA"]
["BR","Brazil","","BR-Brazil"]
["BS","Bahamas","","BS-Bahamas"]
["BT","Bhutan","","BT-Bhutan"]
["BV","Bouvet Island","","BV-Bouvet Island"]
["BW","Botswana","","BW-Botswana"]
["BY","Belarus","","BY-Belarus"]
["BZ","Belize","","BZ-Belize"]
["CA","Canada","","CA-Canada"]
["CC","Cocos (Keeling) Islands","","CC-Cocos (Keeling) Islands"]
["CD","Congo, the Democratic Republic of the","","CD-Congo, the Democratic Republic of the"]
["CF","Central African Republic","","CF-Central African Republic"]
["CG","Congo","","CG-Congo"]
["CH","Switzerland","","CH-Switzerland"]
["CI","Cote d`Ivoire","","CI-Cote d`Ivoire"]
["CK","Cook Islands","","CK-Cook Islands"]
["CL","Chile","","CL-Chile"]
["CM","Cameroon","","CM-Cameroon"]
["CN","China","China excluding Taiwan (TW), Hong Kong (HK), Macao (MO)","CN-China"]
["CO","Colombia","","CO-Colombia"]
["CR","Costa Rica","","CR-Costa Rica"]
["CU","Cuba","","CU-Cuba"]
["CV","Cape Verde","","CV-Cape Verde"]
["CW","CURAÇAO","","CW-CURAÇAO"]
["CX","Christmas Island","","CX-Christmas Island"]
["CY","Kýpros","","CY-Kýpros"]
["CZ","Ceská Republika/czech Republic","","CZ-Ceská Republika/czech Republic"]
["DE","Germany/DEUTSCHLAND ","","DE-Germany/DEUTSCHLAND "]
["DJ","Djibouti","","DJ-Djibouti"]
["DK","Denmark","","DK-Denmark"]
["DM","Dominica","","DM-Dominica"]
["DO","Dominican Republic","","DO-Dominican Republic"]
["DZ","Algeria","","DZ-Algeria"]
["E$","European International Organisations","","E$-European International Organisations"]
["EC","Ecuador","","EC-Ecuador"]
["EE","Estonia/EESTI","","EE-Estonia/EESTI"]
["EG","Egypt","",{"$f":"A68&\"-\"&B68","v":"EG-Egypt"}]
["EH","Western Sahara","","EH-Western Sahara"]
["ER","Eritrea","","ER-Eritrea"]
["ES","Spain/ESPAÑA ","","ES-Spain/ESPAÑA "]
["ET","Ethiopia","","ET-Ethiopia"]
["FI","Finland/SUOMI ","Finland excluding Aland (AX)","FI-Finland/SUOMI "]
["FJ","Fiji","","FJ-Fiji"]
["FK","Falkland Islands (Malvinas)","","FK-Falkland Islands (Malvinas)"]
["FM","Micronesia, Federated States of","","FM-Micronesia, Federated States of"]
["FO","Faroe Islands","","FO-Faroe Islands"]
["FR","France","France excluding Guadeloupe (GP), Guyane (GF), La Réunion (RE), Martinique (MQ), Mayotte (YT), Nouvelle-Calédonie (NC), Polynésie française (PF), Saint-Barthélemy (BL), Saint-Martin (MF), Saint-Pierre-et-Miquelon (PM), Terres australes françaises (TF), Wallis-et-Futuna (WF)","FR-France"]
["GA","Gabon","","GA-Gabon"]
["GB","United Kingdom","","GB-United Kingdom"]
["GD","Grenada","","GD-Grenada"]
["GE","Georgia","","GE-Georgia"]
["GF","FRENCH GUIANA","","GF-FRENCH GUIANA"]
["GG","Guernsey","","GG-Guernsey"]
["GH","Ghana","","GH-Ghana"]
["GI","Gibraltar","","GI-Gibraltar"]
["GL","Greenland","","GL-Greenland"]
["GM","Gambia","","GM-Gambia"]
["GN","Guinea","","GN-Guinea"]
["GP","GUADELOUPE","","GP-GUADELOUPE"]
["GQ","Equatorial Guinea","","GQ-Equatorial Guinea"]
["GR","Greece/Ellada","","GR-Greece/Ellada"]
["GS","South Georgia and the South Sandwich Islands","","GS-South Georgia and the South Sandwich Islands"]
["GT","Guatemala","","GT-Guatemala"]
["GU","GUAM","","GU-GUAM"]
["GW","Guinea-Bissau","","GW-Guinea-Bissau"]
["GY","Guyana","","GY-Guyana"]
["HK","HONG KONG","","HK-HONG KONG"]
["HM","Heard Island and McDonald Islands","","HM-Heard Island and McDonald Islands"]
["HN","Honduras","","HN-Honduras"]
["HR","Croatia","","HR-Croatia"]
["HT","Haiti","","HT-Haiti"]
["HU","Hungary/MAGYARORSZÁG","","HU-Hungary/MAGYARORSZÁG"]
["ID","Indonesia","","ID-Indonesia"]
["IE","Ireland","","IE-Ireland"]
["IL","Israel","","IL-Israel"]
["IM","Isle of Man","","IM-Isle of Man"]
["IN","India","","IN-India"]
["IO","British Indian Ocean territory","","IO-British Indian Ocean territory"]
["IQ","Iraq","","IQ-Iraq"]
["IR","Iran, Islamic Republic of","","IR-Iran, Islamic Republic of"]
["IS","Iceland","","IS-Iceland"]
["IT","Italy/ITALIA ","","IT-Italy/ITALIA "]
["JE","Jersey","","JE-Jersey"]
["JM","Jamaica","","JM-Jamaica"]
["JO","Jordan","","JO-Jordan"]
["JP","Japan","","JP-Japan"]
["KE","Kenya","","KE-Kenya"]
["KG","Kyrgyzstan","","KG-Kyrgyzstan"]
["KH","Cambodia","","KH-Cambodia"]
["KI","Kiribati","","KI-Kiribati"]
["KM","Comoros","","KM-Comoros"]
["KN","Saint Kitts and Nevis","","KN-Saint Kitts and Nevis"]
["KP","Korea, Democratic People`s Republic of","","KP-Korea, Democratic People`s Republic of"]
["KR","Korea, Republic of","","KR-Korea, Republic of"]
["KW","Kuwait","","KW-Kuwait"]
["KY","Cayman Islands","","KY-Cayman Islands"]
["KZ","Kazakhstan","","KZ-Kazakhstan"]
["LA","Lao People`s Democratic Republic","","LA-Lao People`s Democratic Republic"]
["LB","Lebanon","","LB-Lebanon"]
["LC","Saint Lucia","","LC-Saint Lucia"]
["LI","Liechtenstein","",{"$f":"A132&\"-\"&B132","v":"LI-Liechtenstein"}]
["LK","Sri Lanka","","LK-Sri Lanka"]
["LR","Liberia","","LR-Liberia"]
["LS","Lesotho","","LS-Lesotho"]
["LT","Lithuania/LIETUVA","","LT-Lithuania/LIETUVA"]
["LU","Luxembourg","","LU-Luxembourg"]
["LV","Latvia/LATVIJA","","LV-Latvia/LATVIJA"]
["LY","Libya","","LY-Libya"]
["MA","Morocco","","MA-Morocco"]
["MC","Monaco","","MC-Monaco"]
["MD","Moldova, Republic of","","MD-Moldova, Republic of"]
["ME","Montenegro","","ME-Montenegro"]
["MF","SAINT MARTIN (FRENCH PART)","","MF-SAINT MARTIN (FRENCH PART)"]
["MG","Madagascar","","MG-Madagascar"]
["MH","Marshall islands","","MH-Marshall islands"]
["MK","Macedonia, The Former Yugoslav Republic of","","MK-Macedonia, The Former Yugoslav Republic of"]
["ML","Mali","","ML-Mali"]
["MM","Myanmar","","MM-Myanmar"]
["MN","Mongolia","","MN-Mongolia"]
["MO","MACAO","","MO-MACAO"]
["MP","NORTHERN MARIANA ISLANDS","","MP-NORTHERN MARIANA ISLANDS"]
["MQ","MARTINIQUE","","MQ-MARTINIQUE"]
["MR","Mauritania","","MR-Mauritania"]
["MS","Montserrat","","MS-Montserrat"]
["MT","Malta","","MT-Malta"]
["MU","Mauritius","","MU-Mauritius"]
["MV","Maldives","","MV-Maldives"]
["MW","Malawi","","MW-Malawi"]
["MX","Mexico","","MX-Mexico"]
["MY","Malaysia","","MY-Malaysia"]
["MZ","Mozambique","","MZ-Mozambique"]
["N$","Non-European International Organisations","","N$-Non-European International Organisations"]
["NA","Namibia","","NA-Namibia"]
["NC","NEW CALEDONIA","","NC-NEW CALEDONIA"]
["NE","Niger","","NE-Niger"]
["NF","Norfolk Island","","NF-Norfolk Island"]
["NG","Nigeria","","NG-Nigeria"]
["NI","Nicaragua","","NI-Nicaragua"]
["NL","Netherlands/NEDERLAND ","Netherlands excluding Aruba (AW), Bonaire, Saint Eustatius and Saba (BQ), Curacao (CW), Sint Maarten (SX)","NL-Netherlands/NEDERLAND "]
["NO","Norway","Norway excluding Svalbard and Jan Mayen (SJ)","NO-Norway"]
["NP","Nepal","","NP-Nepal"]
["NR","Nauru","","NR-Nauru"]
["NU","Niue","","NU-Niue"]
["NZ","New Zealand","","NZ-New Zealand"]
["OM","Oman","","OM-Oman"]
["PA","Panama","","PA-Panama"]
["PE","Peru","","PE-Peru"]
["PF","FRENCH POLYNESIA","","PF-FRENCH POLYNESIA"]
["PG","Papua New Guinea","","PG-Papua New Guinea"]
["PH","Philippines","","PH-Philippines"]
["PK","Pakistan","","PK-Pakistan"]
["PL","Poland/POLSKA","","PL-Poland/POLSKA"]
["PM","SAINT PIERRE AND MIQUELON","","PM-SAINT PIERRE AND MIQUELON"]
["PN","Pitcairn","","PN-Pitcairn"]
["PR","PUERTO RICO","","PR-PUERTO RICO"]
["PS","Palestine, State of","","PS-Palestine, State of"]
["PT","Portugal","","PT-Portugal"]
["PW","Palau","","PW-Palau"]
["PY","Paraguay","","PY-Paraguay"]
["QA","Qatar","","QA-Qatar"]
["RE","RÉUNION","","RE-RÉUNION"]
["RO","Romania/ROMÂNIA","","RO-Romania/ROMÂNIA"]
["RS","Serbia","","RS-Serbia"]
["RU","Russian Federation","","RU-Russian Federation"]
["RW","Rwanda","",{"$f":"A196&\"-\"&B196","v":"RW-Rwanda"}]
["SA","Saudi Arabia","","SA-Saudi Arabia"]
["SB","Solomon Islands","","SB-Solomon Islands"]
["SC","Seychelles","","SC-Seychelles"]
["SD","Sudan","","SD-Sudan"]
["SE","Sweden/SVERIGE","","SE-Sweden/SVERIGE"]
["SG","Singapore","","SG-Singapore"]
["SH","Saint Helena","","SH-Saint Helena"]
["SI","Slovenia/SLOVENIJA","","SI-Slovenia/SLOVENIJA"]
["SJ","SVALBARD AND JAN MAYEN","","SJ-SVALBARD AND JAN MAYEN"]
["SK","Slovakia/SLOVENSKO","","SK-Slovakia/SLOVENSKO"]
["SL","Sierra Leone","","SL-Sierra Leone"]
["SM","San Marino","","SM-San Marino"]
["SN","Senegal","","SN-Senegal"]
["SO","Somalia","","SO-Somalia"]
["SR","Suriname","","SR-Suriname"]
["SS","South Sudan","","SS-South Sudan"]
["ST","Sao Tome and Principe","","ST-Sao Tome and Principe"]
["SV","El Salvador","","SV-El Salvador"]
["SX","SINT MAARTEN (DUTCH PART)","","SX-SINT MAARTEN (DUTCH PART)"]
["SY","Syrian Arab Republic","","SY-Syrian Arab Republic"]
["SZ","Swaziland","","SZ-Swaziland"]
["TC","Turks and Caicos Islands","","TC-Turks and Caicos Islands"]
["TD","Chad","","TD-Chad"]
["TF","FRENCH SOUTHERN TERRITORIES","","TF-FRENCH SOUTHERN TERRITORIES"]
["TG","Togo","","TG-Togo"]
["TH","Thailand","","TH-Thailand"]
["TJ","Tajikistan","","TJ-Tajikistan"]
["TK","Tokelau","","TK-Tokelau"]
["TL","Timor-Leste","","TL-Timor-Leste"]
["TM","Turkmenistan","","TM-Turkmenistan"]
["TN","Tunisia","","TN-Tunisia"]
["TO","Tonga","","TO-Tonga"]
["TR","Turkey","","TR-Turkey"]
["TT","Trinidad and Tobago","","TT-Trinidad and Tobago"]
["TV","Tuvalu","","TV-Tuvalu"]
["TW","TAIWAN, PROVINCE OF CHINA","","TW-TAIWAN, PROVINCE OF CHINA"]
["TZ","Tanzania, United Republic of","","TZ-Tanzania, United Republic of"]
["UA","Ukraine","","UA-Ukraine"]
["UG","Uganda","","UG-Uganda"]
["UM","UNITED STATES MINOR OUTLYING ISLANDS","","UM-UNITED STATES MINOR OUTLYING ISLANDS"]
["US","United States","United States excluding American Samoa (AS), Guam (GU), Northern Mariana Islands (MP), Puerto Rico (PR), United States Minor Outlying Islands (UM), Virgin Islands, U.S. (VI)","US-United States"]
["UY","Uruguay","","UY-Uruguay"]
["UZ","Uzbekistan","","UZ-Uzbekistan"]
["VA","Holy See (Vatican City State)","","VA-Holy See (Vatican City State)"]
["VC","Saint Vincent and the Grenadines","","VC-Saint Vincent and the Grenadines"]
["VE","Venezuela, Bolivarian Republic","","VE-Venezuela, Bolivarian Republic"]
["VG","Virgin Islands, British","","VG-Virgin Islands, British"]
["VI","VIRGIN ISLANDS, U.S.","","VI-VIRGIN ISLANDS, U.S."]
["VN","Viet Nam","","VN-Viet Nam"]
["VU","Vanuatu","","VU-Vanuatu"]
["WF","WALLIS AND FUTUNA","","WF-WALLIS AND FUTUNA"]
["WS","Samoa","","WS-Samoa"]
["YE","Yemen","","YE-Yemen"]
["YT","MAYOTTE","","YT-MAYOTTE"]
["ZA","South Africa","","ZA-South Africa"]
["ZM","Zambia","","ZM-Zambia"]
["ZW","Zimbabwe","","ZW-Zimbabwe"]
[null,null,""]
[null,null,""]
[null,null,""]
[null,null,""]
[null,null,""]
[null,null,""]
[null,null,""]
[null,null,""]
[null,null,""]
[null,null,""]
[null,null,""]
[null,null,""]
[]
[null,null,""]
[null,null,""]
[null,null,""]
[null,null,""]
[null,null,""]
[null,null,""]
[null,null,""]
[null,null,""]
[null,null,""]
[null,null,""]
[null,null,""]
[null,null,""]
[null,null,""]
[null,null,""]
[null,null,""]
[null,null,""]

{"sheet":"Číselník typů identifikátorů","index":5,"n_rows":156,"n_cols":7,"rows_kept":156,"cut":false,"hidden":true,"merged":[]}
["ANACRDT_NTNL_ID - typ národního identifikátoru"]
["KOD","Název","Název EN","Popis","Datový typ","Formát","Aktivní"]
["AE_BL_CD","Business License (BL) Number","Business License (BL) Number","Registration Number","STRNG_ID_4D_TO_5D","^\\d{4,5}$",1]
["AR_CUIT_CD","Argentina Unique Tax Identification Key (CUIT/CUIL)","Argentina Unique Tax Identification Key (CUIT/CUIL)","Tax Identification Number","STRNG_ID_2D_8D_1D","^\\d{2}-\\d{8}-\\d{1}$",1]
["AT_FB_CD","Firmenbuchnummer (FB-Nr.)","National business register identifier","Business register number","STRNG_ID_6D_L_3D","^\\d{1,6}[A-Za-z]\\d{0,3}$",1]
["AT_GEM_CD","Gemeindenummer","Municipality ID, ID of the administrative municipality","Public sector entity identifier","STRNG_NMRC_ID_5","^\\d{5}$",1]
["AT_IDENT_CD","Identnummer","Reporting ID of the OeNB","NCB identifier","STRNG_NMRC_ID_1_TO_8","^\\d{1,8}$",1]
["AT_LAE_CD","Ländernummer","Federal State ID, ID of the administrative region","Public sector entity identifier","STRNG_NMRC_ID_1","^\\d$",1]
["AT_ZVR_CD","Vereinsregisternummer (ZVR)","Register of Associations ","Register of associations","STRNG_NMRC_ID_1_TO_10","^\\d{1,10}$",1]
["AU_ABN_CD","Australia Business Number","Australia Business Number","Business Registration Number","STRNG_ID_2D_3D_3D_3D","^\\d{2} \\d{3} \\d{3} \\d{3}$",1]
["AU_ACN_CD","Australia Company Number","Australia Company Number","Business Registration Number","STRNG_ID_3D_3D_3D","^\\d{3} \\d{3} \\d{3}$",1]
["BA_JIB_CD","Jedinstveni identifikacioni broj (JIB)","Jedinstveni identifikacioni broj (JIB)","Unique identification number","STRNG_ID_13D","^\\d{13}$",1]
["BA_MBS_CD","Matični broj subjekta - MBS","Matični broj subjekta - MBS","Entity registration number","STRNG_ID_1_TO_2_3_TO_5_OR_D_4D_2D_OR_2D_2D_4D_2D","^\\d{1,2}-\\d{3,5}$|^\\d{1}-\\d{4}-\\d{2}$|^\\d{2}-\\d{2}-\\d{4}-\\d{2}$",1]
["BA_PIB_CD","Poreski identifikacioni broj (PIB)","Poreski identifikacioni broj (PIB)","Tax identification number","STRNG_ID_12D","^\\d{12}$",1]
["BE_OND_CD","Numéro d'entreprise / Ondernemingsnummer","Unique identification number assigned to all legal entities, institutional units  and self-employed persons in Belgium","Unique identification number assigned to all legal entities, institutional units  and self-employed persons in Belgium which is used to identify them for all possible transactions, applications, administrative formalities (including taxation), exchanges of information among administration units, ...","STRNG_NMRC_ID_0_9","^[0]\\d{9}$",1]
["BG_BULSTAT_CD","Единен идентификационен код (по БУЛСТАТ) / Edinen identifikacionen kod (po BULSTAT)","BULSTAT register number","Public registry identification number","STRNG_NMRC_ID_9_10_13","^\\d{13}$|^\\d{10}$|^\\d{9}$",1]
["BG_UIC_CD","Единен (Персонален) идентификационен код (ЕИК) / Edinen (Personalen) identifikacionen kod (EIK)","Unified Identification Code (Commercial register code)","Trade register number","STRNG_NMRC_ID_9_13","^\\d{13}$|^\\d{9}$",1]
["BG_VAT_CD","Идентификационен номер по ДДС / Identifikacionen nomer po DDS","VAT identification code given according to art. 94 of Value Added Tax Act.","VAT number","STRNG_ID_BG_9_10","^(BG)\\d{10}$|^(BG)\\d{9}$",1]
["BIC","Bank Identifier Code by SWIFT","Bank Identifier Code by SWIFT","Inernational bank code used to identify banks and financial institutions globally.","STRNG_ID_11D_OR_L","^([A-Z0-9]{11})$",1]
["BM_RN_CD","Bermuda Registration Number","Bermuda Registration Number","Registration number","STRNG_ID_4D_TO_5D","^\\d{4,5}$",1]
["BR_CNPJ_CD","Cadastro Nacional da Pessoa Jurídica","Identification Number","Business register number","STRNG_ID_2D_3D_3D_4D_2D","^\\d{2}.\\d{3}.\\d{3}\\/\\d{4}-\\d{2}$",1]
["BS_NBR_CD","Bahamas national business registern number","Bahamas national business registern number","National business or tin number","STRNG_ID_5D_TO_7D","^\\d{5,7}$",1]
["BY_NBR_CD","Registration number","Registration number","Registration Number","STRNG_NMRC_ID_9","^\\d{9}$",1]
["BZ_TIN_CD","TIN (Tax ID Number)","TIN (Tax ID Number)","Tax Identification Number","STRNG_ID_6","^\\d{6}$",1]
["CA_BN_CD","Business Number / Federal Tax ID","Business Number / Federal Tax ID","Tax code","STRNG_NMRC_ID_9","^\\d{9}$",1]
["CA_REG_ID_CD","Registration Number","Registration Number","Registration Number","STRNG_ID_7D_OR_BC_7D","^\\d{7}$|^(BC)\\d{7}$",1]
["CH_ID_CD","Business register number","Business register number","Business register number","STRNG_ID_CH_11D","^(CH)\\d{11}$",1]
["CH_NUMMER","Business register number","Business register number","No CH_NUMMER is any longer newly issued; In case the CH_NUMMER is linked to a CH_UID_CD in the given source the CH_UID_CD as a rank 1 identifier type shall be used.","STRNG_ID_CH_3D_1D_3D_3D_1D","^(CH)-\\d{3}\\.\\d{1}\\.\\d{3}\\.\\d{3}\\-\\d{1}$",1]
["CH_UID_CD","Unternehmens-Identifikationsnummer","Tax code","Tax code","STRNG_ID_CHE_3D_3D_3D","^(CHE)-\\d{3}\\.\\d{3}\\.\\d{3}$",1]
["CL_RUT_CD","Rol Único Tributario","Rol Único Tributario","Tax Identification Number","STRNG_ID_2D_3D_3D_KORD_OR_8D_KORD","^\\d{2}.\\d{3}.\\d{3}-[K0-9]$|^\\d{8}-[K0-9]$",1]
["CN_CC_CD","Credibility Code, or USCN code","Credibility Code, or USCN code","Tax Identification Number; Tax code","STRNG_ID_18_L_OR_D","^[A-Z0-9]{18}$",1]
["CO_NIT_CD","Número De Identificación Tributaria (NIT)","Número De Identificación Tributaria (NIT)","Tax Identification Number","STRNG_ID_9D_1D","^\\d{9}-\\d{1}$",1]
["CY_CBCID_CD","CBC internal code","Reporting ID assigned by the CBC","Reporting ID assigned by the CBC; NCB identifier","STRNG_ID_2L_1_TO_8D","^[A-Z]{2}\\d{1,8}$",1]
["CY_DRCOR_CD","Αριθμός Εγγραφής στο Τμήμα Εφόρου Εταιρειών και Επίσημου Παραλήπτη /  Arithmós Engraphís sto Tmíma Ephórou Etairión kai Epísimou Paralípti","Registration number given by the Department of Registrar of Companies and Official Receiver","Business register number","STRNG_ID_COP_8D","^(C|O|P)\\d{1,8}$",1]
["CY_GG_CD","Αριθμός μονάδων γενικής κυβέρνησης","General Government Unit identifier allocated by the Central Bank of Cyprus","General Government Unit identifier","STRNG_ID_S13_8D","^(S13)\\d{8}$",1]
["CY_IF_CD","Investment Fund code","List of Investment Funds of the Central Bank of Cyprus","List of Investment Funds of the Central Bank of Cyprus; Investment Fund identifier","STRNG_ID_CYIF_4D","^(CYIF)\\d{4}$",1]
["CY_PF_CD","Pension Fund code","CY Pension Fund code allocated by the Registrar of Occupational Retirement Benefit Funds of the Social Insurance Services","CY Pension Fund code allocated by the Registrar of Occupational Retirement Benefit Funds of the Social Insurance Services; Pension Fund identifier","STRNG_ID_PF_4D","^(PF)\\d{1,4}$",1]
["CY_TIC_CD","αριθμός φορολογικής ταυτότητας (T.I.C. code) / Arithmós phoroloyikís taftótitas (T. I. C.  Code)","Tax Identification Code","Tax code","STRNG_ID_8D_1L","^\\d{8}[A-Z]$",1]
["CY_VAT_CD","Αριθμός Εγγραφής Φ.Π.Α. /  Arithmós Engraphís Ph. P. A.","VAT/Tax Number","VAT number","STRNG_ID_D_7D_L","^(0|1|3|4|5|9)\\d{7}[A-Z]$",1]
["CZ_ICO_CD","Identifikační číslo osoby (ICO)","CZ Business register code","Business register number","STRNG_NMRC_ID_8","^([1-9]\\d{7}|0{1}[1-9]\\d{6}|0{2}[1-9]\\d{5}|0{3}[1-9]\\d{4}|0{4}[1-9]\\d{3}|0{5}[1-9]\\d{2}|0{6}[1-9]\\d{1}|0{7}[1-9])$",1]
["CZ_NID_CD","Náhradní identifikační číslo (NID / KIC)","Alternative Identification Number","Investment/Pension fund identifier","STRNG_NMRC_ID_8_OR_10","^\\d{10}$|^\\d{8}$",1]
["CZ_RC_CD","Rodné číslo","Personal identification number","Rodné číslo (používáno pouze pro CZ FOP)","STRNG_NMRC_ID_9_OR_10","^\\d{10}$|^\\d{9}$",1]
["DE_TAX_CD","Steuernummer","All entities subject to taxation","Tax code","STRNG_ID_13D","^\\d{13}$",1]
["DE_TRD_RGSTR_CD","Genossenschaftsregister, Handelsregister Abteilung A, Handelsregister Abteilung B, Partnerschaftsregister, Vereinsregister","Cooperative register number - Register number for cooperatives, Trade register number A - Trade register number for specific business partnerships (\"Personenhandelsgesellschaften\"), Trade register number B - Trade register number for capital companies, Pa","Trade register number","STRNG_ID_DE_TRD_RGSTR_CD","^((G(n|N)R)|(HRA)|(HRB)|(PR)|(VR))\\d{1,6}[A-Z]{0,5}-[A-Z]\\d{4}$",1]
["DE_VAT_CD","Umsatzsteuer-Identifikationsnummer","All VAT-registered entities","VAT number","STRNG_ID_DE_9D","^DE\\d{9}$",1]
["DK_CVR_CD","CVR-nummer","ID used for identification of legal entities in the Danish Central business register. ","Business register number","STRNG_NMRC_ID_8","^\\d{8}$",1]
["DK_FT_CD","FT-nummer","ID assigned by the Danish Financial supervisory authority for supervised entities or companies related to supervised entities.","National Supervisory Authority code","STRNG_ID_VAR_LEN_D_DASH","^\\d+(-\\d+)*$",1]
["DK_SE_CD","SE-nummer","ID used for identification of administrative units of a legal entity by the tax authorities. The ID is only used for VAT settlement, when a legal unit has more than one VAT account.","VAT number","STRNG_NMRC_ID_8","^\\d{8}$",1]
["EC_RUC_CD","Número de Registro Unico de Contribuyentes (RUC)","Número de Registro Unico de Contribuyentes (RUC)","Tax Identification Number","STRNG_ID_13D","^\\d{13}$",1]
["EE_FON_CD","Aruandja kood (fondi kood)","Unique identifier for investment and pension funds issued by the central bank and used in the reporting.","Investment/Pension fund identifier","STRNG_NMRC_ID_1_TO_4","^\\d{1,4}$",1]
["EE_RG_CD","Äriregistri kood (rg-kood)","Commercial registry code for state and local government agencies, NFCs, ICs, Investment Funds Founded as Public Limited Company, OFIs (Fund Management Companies, Leasing Companies etc) and non-profit institutions serving households.","Business register number","STRNG_NMRC_ID_8","^\\d{8}$",1]
["ES_NIF_CD","Código de Identificación Fiscal (NIF)","Fiscal Identification Number","Tax code","STRNG_ID_9D_OR_L","^[A-Z0-9]{9}$",1]
["FI_ALV_CD","Arvonlisäverotunniste (ALV-tunnus)","The VAT number indicates that a business is VAT liable is essential for the functioning and controlling of the intra-Community trade. VAT liable businesses that are engaged in intra-Community trade form their VAT number themselves.","VAT number","STRNG_ID_FI_8D","^(FI)\\d{8}$",1]
["FI_SIRA_CD","Rahastotunnus (SIRA-tunnus)","Identifier to identify the investment fund in the authority reporting (NCB / NCA). Normally given by the NCA - in some cases by NCB.","Investment/Pension fund identifier","STRNG_ID_8D_#_3D","^\\d{8}(#)\\d{3}$",1]
["FI_Y_CD","Yritys- ja yhteisötunnus / Y-tunnus","The Business ID (Business Identity Code) is a code given to businesses and organizations by the PRH (Finnish Patent and Registration Office) or the Tax Administration. Used also as an identifier in the business register.","Business register number","STRNG_ID_8D_DASH","^\\d{7}[-]?\\d$",1]
["FR_CIB","Code interbancaire (CIB)","Unique code assigned to financial institutions allowed to perform banking activities in FR and Monaco","National Supervisory Authority code","STRNG_NMRC_ID_5","^\\d{5}$",1]
["FR_IF_CD","Investment fund identifier","Code indicated in the list of Investment funds published by the ECB","Investment Fund identifier","STRNG_ID_FR_10L_OR_10D","^(FR)[A-Z0-9]{10}$",1]
["FR_RNA_CD","Association register number - Register number for associations","RNA number assigned to all the associations in France created or having declared a change of situation since 2009, whose headquarters are declared in metropolitan France or in the overseas departments. Also contains associations of public utility -\"ARUP\" ","RNA number assigned to all the associations in France created or having declared a change of situation since 2009, whose headquarters are declared in metropolitan France or in the overseas departments, except in the départements of Moselle, Bas-Rhin et Haut-Rhin, which fall under the Concordat regime. The National Register of Associations also contains recognized associations of public utility (called \"ARUP\").","STRNG_ID_1L_9D","^[A-Z]\\d{9}$",1]
["FR_SIREN_CD","SIREN code","Identification number assigned by INSEE to every company having an activity on the French territory","Identification number assigned by INSEE to every company having an activity on the French territory. It can be check with an algorithm. The SIREN number is also part of the VAT which is composed of: FR (for France) + 99 (a validation key, calculated with an algorithm) + 9-digit SIREN Code","STRNG_NMRC_ID_9","^\\d{9}$",1]
["GB_CRN_CD","Company Registration Number","Business register number","Business register number","STRNG_ID_8DL","^[A-Z0-9]{8}$",1]
["GB_FSR_CD","Financial Services Register code (FSR)","Entity identifier assigned to firms, individuals and other bodies that are, or have been, regulated by the Prudential Regulation Authority (PRA) and/or the Financial Conduct Authority (FCA)","National Supervisory Authority code","STRNG_NMRC_ID_6","^\\d{6}$",1]
["GB_UTR_CD","Unique taxpayer reference","Tax code","Tax Code","STRNG_ID_10D_OR_9DK","^\\d{10}$|^\\d{9}(K)$",1]
["GB_VAT_CD","VAT number (VAT GB)","Value added tax identifier","VAT number","STRNG_ID_GB_VAT","^(GB)\\d{9}$|^(GB)\\d{12}$|^(GBGD)\\d{3}$|^(GBHA)\\d{3}$",1]
["GEN_FOP_CD","Identifikátor zahraniční FOP","Foreighn Entrepreneur ID","Identifikátor zahraniční FOP (mezinárodní)","STRNG_50","^[A-Za-z0-9_@$\\-]([0-9]|[A-Z]|[a-z]|!| |\"|#|\\$|%|&|'|\\*|\\+|\\-|\\.|:|=|@|_|,|/|;|<|>|\\?|\\[|\\\\|\\]|\\^|\\(|\\)|`|\\{|\\||\\}|~){0,49}$",1]
["GEN_IPF_CD","Investment/Pension fund identifier","Entity identifier assigned to investment funds or pension funds","Investment/Pension fund identifier","STRNG_50","^[A-Za-z0-9_@$\\-]([0-9]|[A-Z]|[a-z]|!| |\"|#|\\$|%|&|'|\\*|\\+|\\-|\\.|:|=|@|_|,|/|;|<|>|\\?|\\[|\\\\|\\]|\\^|\\(|\\)|`|\\{|\\||\\}|~){0,49}$",1]
["GEN_NBR_ENTTY_CD","Business register number","National Business register identifier","Business register number","STRNG_50","^[A-Za-z0-9_@$\\-]([0-9]|[A-Z]|[a-z]|!| |\"|#|\\$|%|&|'|\\*|\\+|\\-|\\.|:|=|@|_|,|/|;|<|>|\\?|\\[|\\\\|\\]|\\^|\\(|\\)|`|\\{|\\||\\}|~){0,49}$",1]
["GEN_NCB_ENTTY_CD","NCB identifier","Entity identifier of the resident National Central Bank (NCB)","NCB identifier","STRNG_50","^[A-Za-z0-9_@$\\-]([0-9]|[A-Z]|[a-z]|!| |\"|#|\\$|%|&|'|\\*|\\+|\\-|\\.|:|=|@|_|,|/|;|<|>|\\?|\\[|\\\\|\\]|\\^|\\(|\\)|`|\\{|\\||\\}|~){0,49}$",1]
["GEN_NSA_ENTTY_CD","National supervisory authority code","Entity identifier assigned by the national supervisory authority","National Supervisory Authority code","STRNG_50","^[A-Za-z0-9_@$\\-]([0-9]|[A-Z]|[a-z]|!| |\"|#|\\$|%|&|'|\\*|\\+|\\-|\\.|:|=|@|_|,|/|;|<|>|\\?|\\[|\\\\|\\]|\\^|\\(|\\)|`|\\{|\\||\\}|~){0,49}$",1]
["GEN_NSI_ENTTY_CD","National Statistical Institute number","Entity identifier assigned by the national statistical institute (NSI)","National Statistical Institute number","STRNG_50","^[A-Za-z0-9_@$\\-]([0-9]|[A-Z]|[a-z]|!| |\"|#|\\$|%|&|'|\\*|\\+|\\-|\\.|:|=|@|_|,|/|;|<|>|\\?|\\[|\\\\|\\]|\\^|\\(|\\)|`|\\{|\\||\\}|~){0,49}$",1]
["GEN_PS_CD","Public sector entity identifier","Entity identifier assigned to units belonging to the General Government sector","Public sector entity identifier","STRNG_50","^[A-Za-z0-9_@$\\-]([0-9]|[A-Z]|[a-z]|!| |\"|#|\\$|%|&|'|\\*|\\+|\\-|\\.|:|=|@|_|,|/|;|<|>|\\?|\\[|\\\\|\\]|\\^|\\(|\\)|`|\\{|\\||\\}|~){0,49}$",1]
["GEN_TAX_CD","Tax code","Tax code of an entity","Tax code","STRNG_50","^[A-Za-z0-9_@$\\-]([0-9]|[A-Z]|[a-z]|!| |\"|#|\\$|%|&|'|\\*|\\+|\\-|\\.|:|=|@|_|,|/|;|<|>|\\?|\\[|\\\\|\\]|\\^|\\(|\\)|`|\\{|\\||\\}|~){0,49}$",1]
["GEN_TRD_RGSTR_ENTTY_CD","Trade register number","National trade register identifier of an entity","Trade register number","STRNG_50","^[A-Za-z0-9_@$\\-]([0-9]|[A-Z]|[a-z]|!| |\"|#|\\$|%|&|'|\\*|\\+|\\-|\\.|:|=|@|_|,|/|;|<|>|\\?|\\[|\\\\|\\]|\\^|\\(|\\)|`|\\{|\\||\\}|~){0,49}$",1]
["GEN_VAT_CD","VAT number","Value-added tax identifier","VAT number","STRNG_50","^[A-Za-z0-9_@$\\-]([0-9]|[A-Z]|[a-z]|!| |\"|#|\\$|%|&|'|\\*|\\+|\\-|\\.|:|=|@|_|,|/|;|<|>|\\?|\\[|\\\\|\\]|\\^|\\(|\\)|`|\\{|\\||\\}|~){0,49}$",1]
["GG_RN_CD","Entity Reg Number","Entity Reg Number","Business Number","STRNG_NMRC_ID_5","^\\d{5}$",1]
["GR_AFM_CD","Arithmós Forologikou Mitroou A-Fi-Mi  Αριθμός Φορολογικού Μητρώου Α.Φ.Μ. (AFM) / Arithmós Forologikou Mitroou A-Fi-Mi (AFM)","Tax Registration number","Tax code","STRNG_NMRC_ID_9","^\\d{9}$",1]
["GR_IMO_CD","International Maritime Organisation number (IMO)","International Maritime Organisation number (IMO)","Trade register number","STRNG_NMRC_ID_7","^\\d{7}$",1]
["HK_CR_CD","Corporate Registry Number","Corporate Registry Number","Business register number","STRNG_NMRC_ID_7","^[A-Z]{0,1}\\d{7}$",1]
["HR_MBS_CD","Matični broj subjekta trgovačkog suda","Trade register number","Trade register number","STRNG_ID_0_OR_1_8D","^[0|1]\\d{8}$",1]
["HR_MB_CD","Matični broj poslovnog subjekta","Business register number","Business register number","STRNG_NMRC_ID_8","^\\d{8}$",1]
["HR_OIB_CD","Osobni identifikacijski broj","Tax number","Tax code","STRNG_NMRC_ID_11","^\\d{11}$",1]
["HU_CEG_CD","Cégjegyzékszám","Trade register number","Trade register number","STRNG_ID_2D-2D-6D","^\\d{2}(-)\\d{2}(-)\\d{6}$",1]
["HU_FB_CD","FB kód","FB code - Special identification code of investment funds, which are issued by the central securities depository (KELER Central Depository Ltd.)","Investment fund identifier","STRNG_ID_FB5D_OR_FB3D_1L_2D","^(FB)\\d{6}$|^(FB)\\d{3}[A-Z]\\d{2}$",1]
["HU_KOZ_CD","Közösségi adószám","VAT identification number structure","VAT number","STRNG_ID_HU_8D","^(HU)\\d{8}$",1]
["HU_TOR_CD","Törzsszám","National identification number - All enterprises and other legal units are required to register at the Tax Authority, who issues the individual tax number. ","National identification number - All enterprises and other legal units are required to register at the Tax Authority, who issues the individual tax number. The tax number consists of 3 parts, the first 8 digit part is used for the unique identification of companies.","STRNG_NMRC_ID_8","^\\d{8}$",1]
["ID_NPWP_CD","Nomor Pokok Wajib Pajak (NPWP)","Nomor Pokok Wajib Pajak (NPWP)","Tax Identification Number","STRNG_ID_2D_3D_3D_1D_3D_3D","^\\d{2}.\\d{3}.\\d{3}.\\d{1}-\\d{3}.\\d{3}$",1]
["IE_CRO_CD","Company Registration Office number (CRO number)","Company registration number","Trade register number","STRNG_ID_1D_6D","^[1-9]\\d{1,6}$",1]
["IE_GOV_CD","Government bodies identifier","Government bodies identifier","Register of government bodies, as specificied by the Central Bank of Ireland","STRNG_ID_GV_4D_OR_LA_3D","^(GV)\\d{4}|(LA)\\d{3}$",1]
["IE_VAT_CD","VAT number","VAT number","Value added tax identifier","STRNG_ID_IE_9","^(IE)[A-Z0-9]{1,9}$",1]
["IL_TAX_CD","Israeli Tax Identification Number","Israeli Tax Identification Number","Tax Identification Number","STRNG_NMRC_ID_9","^\\d{9}$",1]
["IM_RN_CD","Isel of Man Registration Number","Isel of Man Registration Number","Registration Number","STRNG_ID_6D_1L","^\\d{6}[A-Z]$",1]
["IM_TAX_CD","Tax Reference Number","Tax Reference Number","Tax Identification Number","STRNG_ID_HCX_6D_2D","^[H,C,X]\\d{6}-\\d{2}$",1]
["IN_CIN_CD","Corporate identity number","Business register number","Business register number","STRNG_ID_21D_OR_L","^[A-Z0-9]{21}$",1]
["IN_PAN_CD","Permanent Account Number","Tax code","Tax code","STRNG_ID_10D_OR_L","^[A-Z0-9]{10}$",1]
["IT_CCIAA_CD","Numero d'iscrizione camerale (CCIAA+REA)","Trade register number","Trade register number","STRNG_ID_2L_7D","^[A-Z]{2}\\d{7}$",1]
["IT_CF_CD","Codice fiscale (CF)","Tax code number","Tax code","STRNG_NMRC_ID_11","^\\d{11}$",1]
["IT_UCITS_CD","Codice OICR","UCITS code","Investment/Pension fund identifier","STRNG_ID_MAX_7D","^\\d{1,7}$",1]
["JE_TAX_CD","Tax reference number","Tax reference number","Tax Identification Number","STRNG_ID_2L_5D","^[A-Z][A-Z]\\d{5}$",1]
["JP_CN_CD","Corporate Number","Business register number","Business register number","STRNG_ID_13D","^\\d{13}$",1]
["KR_TIN_CD","Business registration number (TIN)","Business registration number (TIN)","Business registration number","STRNG_ID_3D_2D_5D","^\\d{3}-\\d{2}-\\d{5}$",1]
["LEI","LEI code","Reference code in line with the International Organization for Standardization’s (ISO) 17442 standard","Tato položka číselníku je navíc oproti ECB specifikaci ANCRDT_NTNL_ID","STRNG_PTTRN_LEI","^[A-Z0-9]{18}[0-9]{2}$",1]
["LI_FL_CD","FL nummer - Registration number","FL nummer - Registration number","Registration number","STRNG_ID_FL_4D_3D_3D_1D","^(FL)-\\d{4}.\\d{3}.\\d{3}-\\d{1}$",1]
["LT_INV_CD","Investicinio/ pensijų fondo kodas","Unique identifier assigned by the central bank to supervised investment and pension funds","Investment/Pension fund identifier","STRNG_ID_LT_INV_CD","^([A-Z]\\d{3}|(SF)\\d{3}|[A-Z]{3}-\\d{2}\\/\\d{2}|[A-Z]{3}-[A-Z]{4})$",1]
["LT_JAR_CD","JAR kodas","Unique national business register identifier assigned to all legal entities registered in Lithuania","Business register number","STRNG_NMRC_ID_9","^\\d{9}$",1]
["LU_IF_CD","Investment fund entity identifier","Fund and Subfund ID attributed by the CSSF and indicated on the list of the ECB","Investment Fund identifier ","STRNG_ID_1L_6D_C_5D","^[A-Z]\\d{6}[C]\\d{5}$",1]
["LU_RCS_CD","Numéro registre de commerce et des sociétés (RCS)","Trade and Companies Register number","Trade register number","STRNG_ID_A_Z_D","^[A-Z]\\d+$",1]
["LU_VAT_CD","Public sector entity identifier","VAT number","VAT number","STRNG_NMRC_ID_8","^\\d{8}$",1]
["LV_FON_CD","Latvijas Republikas ieguldījumu fondu saraksts / Latvijas Republikas ieguldijumu fondu saraksts","List of Investment Funds of the Republic of Latvia; NCB identifier: Unique identifier assigned by the central bank for institutional units that are not legal entities","List of Investment Funds of the Republic of Latvia; NCB identifier: Unique identifier assigned by the central bank for institutional units that are not legal entities","STRNG_ID_LV_FON_CD","^((LV)\\d{11}|(LVAF)\\d{3}(A|B|\\d{1})\\d{2}|(LVB)\\d{6}|(LVIF)\\d{3}(A|B|C|D|E|F|\\d{1})\\d{2}|(LVVF)\\d{6})$",1]
["LV_NBR_CD","Komersanta reģistrācijas numurs Latvijas Republikas Uzņēmumu reģistra komercreģistrā (NBR)","A unique registration number is assigned by the Enterprise Register of The Republic of Latvia","Trade register number","STRNG_NMRC_ID_11","^\\d{11}$",1]
["LV_VAT_CD","Pievienotās vērtības nodokļa (PVN) maksātāja kods","VAT/Tax number","VAT number","STRNG_ID_LV_11D","^(LV)\\d{11}$",1]
["MC_CIB","Code interbancaire","Unique code assigned to financial institutions allowed to perform banking activities in France and Monaco","National Supervisory Authority code","STRNG_NMRC_ID_5","^\\d{5}$",1]
["MC_NIS_CD","Business register number","Statistical Identification number assigned by IMSEE for every entity with an economic activity in Monaco","Mainly applies to commercial, craft and industrial establishments, legal persons governed by public law and legal persons governed by private law with a mission of general interest, liberal professions, civil societies, groups, associations, federations and foundations, administrative officies and commercial agents","STRNG_ID_4D_1L_5D","^\\d{2,4}[A-Z]\\d{5}$",1]
["MC_RCI_CD","Trade register number","Trade register number assigned for companies with activities in Monaco","Mainly applies to commercial activities, companies other than civil societies and economic interest groups","STRNG_ID_2D_3L_5D","^\\d{2}[A-Z]{1,3}\\d{5}$",1]
["MH_NBR_CD","Business register number","Number provided by International Registries inc on behalf of Marshall Islands Maritime and Corporate Registries to all corporates resident in Marshall Islands","Business register number","STRNG_NMRC_ID_4_6","^\\d{4,6}$",1]
["MT_CNUM_CD","Company Registration number assigned by the Malta Business Registry","Number assigned by the Company Registration number assigned by the Malta Business Registry (C number) and/or Tax Code number if the C-number is not available","Malta Financial Services Authority Registration Number","STRNG_50","^[A-Za-z0-9_@$\\-]([0-9]|[A-Z]|[a-z]|!| |\"|#|\\$|%|&|'|\\*|\\+|\\-|\\.|:|=|@|_|,|/|;|<|>|\\?|\\[|\\\\|\\]|\\^|\\(|\\)|`|\\{|\\||\\}|~){0,49}$",1]
["MT_OLE_CD","Other Legal Entities code","Other Legal Entities Code which includes (but is not limited to the following type of entities: Government, Voluntary Organisations, Foundations, Sports Associations and NCB internal codes not assigned by the Malta Business Registry","Other Legal Identifier","STRNG_50","^[A-Za-z0-9_@$\\-]([0-9]|[A-Z]|[a-z]|!| |\"|#|\\$|%|&|'|\\*|\\+|\\-|\\.|:|=|@|_|,|/|;|<|>|\\?|\\[|\\\\|\\]|\\^|\\(|\\)|`|\\{|\\||\\}|~){0,49}$",1]
["MT_VAT_CD","VAT number","VAT registration number","VAT number","STRNG_NMRC_ID_8","^\\d{8}$",1]
["MX_RFC_CD","Clave en el Registro Federal de Contribuyentes","Tax code","Tax Code","STRNG_ID_3L_6D_3D_OR_L","^[A-Z]{3}-\\d{6}-[A-Z0-9]{3}$",1]
["MY_CRN_CD","Company Registration Number Old","Company Registration Number Old","Registration Number","STRNG_ID_6D_DSH_1L","^\\d{6}-[A-Z]$",1]
["NC_NBR_CD","Business register number","Business register number","Business register number","STRNG_ID_10","^\\d{10}$",1]
["NL_KVK_CD","Kamer van Koophandel nummer (KvK-nummer)","A unique identification number issued by the Chamber of Commerce for every business activity or social activity. One Chamber of Commerce number is connected to one Legal person and partnership number.","Trade register number","STRNG_NMRC_ID_8","^\\d{8}$",1]
["NL_RSIN_CD","Rechtspersonen Samenwerkingsverbanden Informatie nummer (RSIN)","Legal person and partnership number - A unique identification number issued by the Chamber of Commerce for every non-natural person, being a legal person or a partnership. One Legal person and partnership number has only one Chamber of Commerce number.","Tax code","STRNG_NMRC_ID_9","^\\d{9}$",1]
["NO_NBR_CD","Brønnøysund Register","Organization number, National business register identifier of an entity","Organization number, National business register identifier of an entity","STRNG_NMRC_ID_9\r\nSTRNG_NMRC_ID_9","^\\d{9}$",1]
["PA_RUC_CD","Single Taxpayer Registry (Registro Único de Contribuyente RUC)","Single Taxpayer Registry (Registro Único de Contribuyente RUC)","Tax Identification Number","STRNG_NMRC_ID_9","^\\d{9}$",1]
["PE_RUC_CD","Registro Único de Contribuyente (RUC)","Registro Único de Contribuyente (RUC)","Tax Identification Number","STRNG_NMRC_ID_11","^\\d{11}$",1]
["PL_KRS_CD","Numer w Krajowym Rejestrze Sądowym (KRS)","Unique national business register identifier assigned to all legal entities registered in Poland","Business register number","STRNG_ID_VAR_LEN","^\\d+$",1]
["PL_NIP_CD","Numer Identyfikacji Podatkowej (NIP)","Tax identification number ","Tax code","STRNG_ID_10","^\\d{10}$",1]
["PL_REGON_CD","Numer identyfikacyjny REGON","Unique national register of entities  which can conduct business, but not necessarily have form of legal entities.","Business register number","STRNG_ID_14_OR_9","^\\d{14}$|^\\d{9}$",1]
["PL_VAT_CD","Numer Identyfikacji Podatkowej NIP z prefixem PL (VAT UE)","National tax identification number proceeded by prefix PL","VAT number","STRNG_ID_PL_10","^(PL)\\d{10}$",1]
["PT_ASF_CD","Código da Autoridade de Supervisão de Seguros e Fundos de Pensões","Supervisory Authority code for Insurance Companies and Pension Funds","National Supervisory Authority code","STRNG_NMRC_ID_4","^\\d{1,4}$",1]
["PT_FSA_CD","Código de agente financeiro (FSA)","Financial supervisory authority code","National Supervisory Authority code","STRNG_ID_MAX_6D","^\\d{1,6}$",1]
["PT_IF_CD","Código da Comissão do Mercado de Valores Mobiliários","Supervisory Authority code for Investment Funds","National Supervisory Authority code","STRNG_ID_MAX_8D","^\\d{1,8}$",1]
["PT_NIF_CD","Número de Identificação de Pessoa Colectiva (NIF/NIPC)","VAT/Tax identification number","Tax code","STRNG_NMRC_ID_9","^\\d{9}$",1]
["RO_CUI_CD","Codul unic de identificare fiscală (CUI)","Unique registration fiscal code","Tax code","STRNG_ID_RO_10D","^(RO)\\d{1,10}$",1]
["RO_TAX_CD","Indentificatorul aferent taxei pe valoarea adaugata","Value added tax identifier","VAT number","STRNG_ID_RO_10D","^(RO)\\d{1,10}$",1]
["RO_TRN_CD","Numarul de inregistrare la registrul comertului","Trade register number","Trade register number","STRNG_ID_J_D_D_D","^(J)\\d{2}\\/\\d{1,9}\\/\\d{4}$",1]
["RS_MB_CD","Matični broj","Matični broj","Registration Number","STRNG_NMRC_ID_8","^\\d{8}$",1]
["RS_PIB_CD","Poreski identifikacioni broj PIB","Poreski identifikacioni broj PIB","Tax Identification Number","STRNG_NMRC_ID_9","^\\d{9}$",1]
["RU_INN_CD","Taxpayer Personal Identification Number","Tax code","Tax code","STRNG_ID_10","^\\d{10}$",1]
["RU_OGRN_CD","Основной государственный регистрационный номер (OGRN)","Major State Registration Number","Business register number","STRNG_ID_13D","^\\d{13}$",1]
["SE_FIN_CD","Finansinspektionens institutnummer","ID code that is assigned to all entites supervised by the Financial Supervisory Authority","National Supervisory Authority code","STRNG_ID_5D","^\\d{5}$",1]
["SE_MOM_CD","Momsregistreringsnummer","Value Added Tax identification number","VAT number","STRNG_ID_SE_12","^(SE)\\d{12}$",1]
["SE_ORG_CD","Organisationsnummer","Business identification code that is assigned to the entity by the authorities responsible for the registration of entities","Business register number","STRNG_ID_2D_3D_4D","^\\d{2}[2-9]\\d{3}-?\\d{4}$",1]
["SG_ROB_CD","UEN – Business (ROB)","UEN – Business (ROB)","Tax Identification Number","STRNG_ID_9D_1L","^\\d{9}[A-Z]$",1]
["SI_DAV_CD","Davčna številka","TAX Code","Tax code","STRNG_NMRC_ID_8","^\\d{8}$",1]
["SI_DDV_CD","ID za DDV","Value added tax identifier","VAT number","STRNG_ID_SI_8","^(SI)\\d{8}$",1]
["SI_MAT_CD","Matična številka","National Business register identifier","Business register number","STRNG_ID_10","^\\d{10}$",1]
["SK_ICO_CD","Identifikačné číslo organizácie (ICO)","Identification number","Identification number","STRNG_ID_8D_OR_8D_1L","^\\d{8}[a-z]{0,1}$",1]
["SK_IF_CD","Kód investičného fondu","Identification code of investment funds","Investment Fund identifier","STRNG_ID_SK_8D_3L_2D","^(SK)\\d{8}[A-Z]{3}\\d{2}$",1]
["SM_COE_CD","Codice operatore economico (C.O.E.)","Codice operatore economico (C.O.E.)","Tax Identification Number","STRNG_NMRC_ID_5","^\\d{5}$",1]
["TH_NBR_CD","Thailand Business register number","Thailand Business register number","Business register number","STRNG_ID_13D","^\\d{13}$",1]
["TR_VKN_CD","Vergi Kimlik Numarası","Tax identification number","Tax code","STRNG_ID_1D_TO_10D","^\\d{1,10}$",1]
["TW_TAX_CD","Tax number","Tax number","Tax Identification Number","STRNG_NMRC_ID_8","^\\d{8}$",1]
["US_CIK_CD","Central Index Key (CIK)","Number given to an individual, company, or foreign government by the United States Securities and Exchange Commission","Every corporation and individual who has filed disclosure with the SEC","STRNG_ID_10D","^\\d{10}$",1]
["US_DSFN_CD","Delaware State File Number","Delaware business register identifier","Business register number","STRNG_ID_6D_7D","^\\d{6,7}$",1]
["US_EIN_CD","Employer Identification Number","Tax code","Tax code","STRNG_ID_2D_7D","^\\d{2}-\\d{7}$",1]
["UY_RUT_CD","Registro Único Tributario (RUT)","Registro Único Tributario (RUT)","Tax Identification Number","STRNG_ID_12D","^\\d{12}$",1]

{"sheet":"NUTS3","index":6,"n_rows":1350,"n_cols":2,"rows_kept":1350,"cut":false,"hidden":true,"merged":[[0,0,0,1]]}
["NUTS3 - územní celek"]
["Kód","Název"]
["AT111","Mittelburgenland"]
["AT112","Nordburgenland"]
["AT113","Südburgenland"]
["AT121","Mostviertel-Eisenwurzen"]
["AT122","Niederösterreich-Süd"]
["AT123","Sankt Pölten"]
["AT124","Waldviertel"]
["AT125","Weinviertel"]
["AT126","Wiener Umland/Nordteil"]
["AT127","Wiener Umland/Südteil"]
["AT130","Wien"]
["AT211","Klagenfurt-Villach"]
["AT212","Oberkärnten"]
["AT213","Unterkärnten"]
["AT221","Graz"]
["AT222","Liezen"]
["AT223","Östliche Obersteiermark"]
["AT224","Oststeiermark"]
["AT225","West- und Südsteiermark"]
["AT226","Westliche Obersteiermark"]
["AT311","Innviertel"]
["AT312","Linz-Wels"]
["AT313","Mühlviertel"]
["AT314","Steyr-Kirchdorf"]
["AT315","Traunviertel"]
["AT321","Lungau"]
["AT322","Pinzgau-Pongau"]
["AT323","Salzburg und Umgebung"]
["AT331","Außerfern"]
["AT332","Innsbruck"]
["AT333","Osttirol"]
["AT334","Tiroler Oberland"]
["AT335","Tiroler Unterland"]
["AT341","Bludenz-Bregenzer Wald"]
["AT342","Rheintal-Bodenseegebiet"]
["ATZZZ","Extra-Regio NUTS 3"]
["BE100","Arr. de Bruxelles-Capitale / Arr. van Brussel-Hoofdstad"]
["BE211","Arr. Antwerpen"]
["BE212","Arr. Mechelen"]
["BE213","Arr. Turnhout"]
["BE221","Arr. Hasselt"]
["BE222","Arr. Maaseik"]
["BE223","Arr. Tongeren"]
["BE231","Arr. Aalst"]
["BE232","Arr. Dendermonde"]
["BE233","Arr. Eeklo"]
["BE234","Arr. Gent"]
["BE235","Arr. Oudenaarde"]
["BE236","Arr. Sint-Niklaas"]
["BE241","Arr. Halle-Vilvoorde"]
["BE242","Arr. Leuven"]
["BE251","Arr. Brugge"]
["BE252","Arr. Diksmuide"]
["BE253","Arr. Ieper"]
["BE254","Arr. Kortrijk"]
["BE255","Arr. Oostende"]
["BE256","Arr. Roeselare"]
["BE257","Arr. Tielt"]
["BE258","Arr. Veurne"]
["BE310","Arr. Nivelles"]
["BE321","Arr. Ath"]
["BE322","Arr. Charleroi"]
["BE323","Arr. Mons"]
["BE324","Arr. Mouscron"]
["BE325","Arr. Soignies"]
["BE326","Arr. Thuin"]
["BE327","Arr. Tournai"]
["BE331","Arr. Huy"]
["BE332","Arr. Liège"]
["BE334","Arr. Waremme"]
["BE335","Arr. Verviers - communes francophones"]
["BE336","Bezirk Verviers - Deutschsprachige Gemeinschaft"]
["BE341","Arr. Arlon"]
["BE342","Arr. Bastogne"]
["BE343","Arr. Marche-en-Famenne"]
["BE344","Arr. Neufchâteau"]
["BE345","Arr. Virton"]
["BE351","Arr. Dinant"]
["BE352","Arr. Namur"]
["BE353","Arr. Philippeville"]
["BEZZZ","Extra-Regio NUTS 3"]
["BG311","Vidin"]
["BG312","Montana"]
["BG313","Vratsa"]
["BG314","Pleven"]
["BG315","Lovech"]
["BG321","Veliko Tarnovo"]
["BG322","Gabrovo"]
["BG323","Ruse"]
["BG324","Razgrad"]
["BG325","Silistra"]
["BG331","Varna"]
["BG332","Dobrich"]
["BG333","Shumen"]
["BG334","Targovishte"]
["BG341","Burgas"]
["BG342","Sliven"]
["BG343","Yambol"]
["BG344","Stara Zagora"]
["BG411","Sofia (stolitsa)"]
["BG412","Sofia"]
["BG413","Blagoevgrad"]
["BG414","Pernik"]
["BG415","Kyustendil"]
["BG421","Plovdiv"]
["BG422","Haskovo"]
["BG423","Pazardzhik"]
["BG424","Smolyan"]
["BG425","Kardzhali"]
["BGZZZ","Extra-Regio NUTS 3"]
["CY000","Kýpros"]
["CYZZZ","Extra-Regio NUTS 3"]
["CZ010","Hlavní Mesto Praha"]
["CZ020","Stredoceský Kraj"]
["CZ031","Jihoceský Kraj"]
["CZ032","Plzenský Kraj"]
["CZ041","Karlovarský kraj"]
["CZ042","Ústecký kraj"]
["CZ051","Liberecký kraj"]
["CZ052","Královéhradecký kraj"]
["CZ053","Pardubický kraj"]
["CZ063","Kraj Vysocina"]
["CZ064","Jihomoravský kraj"]
["CZ071","Olomoucký kraj"]
["CZ072","Zlínský kraj"]
["CZ080","Moravskoslezský kraj"]
["CZZZZ","Extra-Regio NUTS 3"]
["DE111","Stuttgart, Stadtkreis"]
["DE112","Böblingen"]
["DE113","Esslingen"]
["DE114","Göppingen"]
["DE115","Ludwigsburg"]
["DE116","Rems-Murr-Kreis"]
["DE117","Heilbronn, Stadtkreis"]
["DE118","Heilbronn, Landkreis"]
["DE119","Hohenlohekreis"]
["DE11A","Schwäbisch Hall"]
["DE11B","Main-Tauber-Kreis"]
["DE11C","Heidenheim"]
["DE11D","Ostalbkreis"]
["DE121","Baden-Baden, Stadtkreis"]
["DE122","Karlsruhe, Stadtkreis"]
["DE123","Karlsruhe, Landkreis"]
["DE124","Rastatt"]
["DE125","Heidelberg, Stadtkreis"]
["DE126","Mannheim, Stadtkreis"]
["DE127","Neckar-Odenwald-Kreis"]
["DE128","Rhein-Neckar-Kreis"]
["DE129","Pforzheim, Stadtkreis"]
["DE12A","Calw"]
["DE12B","Enzkreis"]
["DE12C","Freudenstadt"]
["DE131","Freiburg im Breisgau, Stadtkreis"]
["DE132","Breisgau-Hochschwarzwald"]
["DE133","Emmendingen"]
["DE134","Ortenaukreis"]
["DE135","Rottweil"]
["DE136","Schwarzwald-Baar-Kreis"]
["DE137","Tuttlingen"]
["DE138","Konstanz"]
["DE139","Lörrach"]
["DE13A","Waldshut"]
["DE141","Reutlingen"]
["DE142","Tübingen, Landkreis"]
["DE143","Zollernalbkreis"]
["DE144","Ulm, Stadtkreis"]
["DE145","Alb-Donau-Kreis"]
["DE146","Biberach"]
["DE147","Bodenseekreis"]
["DE148","Ravensburg"]
["DE149","Sigmaringen"]
["DE211","Ingolstadt, Kreisfreie Stadt"]
["DE212","München, Kreisfreie Stadt"]
["DE213","Rosenheim, Kreisfreie Stadt"]
["DE214","Altötting"]
["DE215","Berchtesgadener Land"]
["DE216","Bad Tölz-Wolfratshausen"]
["DE217","Dachau"]
["DE218","Ebersberg"]
["DE219","Eichstätt"]
["DE21A","Erding"]
["DE21B","Freising"]
["DE21C","Fürstenfeldbruck"]
["DE21D","Garmisch-Partenkirchen"]
["DE21E","Landsberg am Lech"]
["DE21F","Miesbach"]
["DE21G","Mühldorf a. Inn"]
["DE21H","München, Landkreis"]
["DE21I","Neuburg-Schrobenhausen"]
["DE21J","Pfaffenhofen a. d. Ilm"]
["DE21K","Rosenheim, Landkreis"]
["DE21L","Starnberg"]
["DE21M","Traunstein"]
["DE21N","Weilheim-Schongau"]
["DE221","Landshut, Kreisfreie Stadt"]
["DE222","Passau, Kreisfreie Stadt"]
["DE223","Straubing, Kreisfreie Stadt"]
["DE224","Deggendorf"]
["DE225","Freyung-Grafenau"]
["DE226","Kelheim"]
["DE227","Landshut, Landkreis"]
["DE228","Passau, Landkreis"]
["DE229","Regen"]
["DE22A","Rottal-Inn"]
["DE22B","Straubing-Bogen"]
["DE22C","Dingolfing-Landau"]
["DE231","Amberg, Kreisfreie Stadt"]
["DE232","Regensburg, Kreisfreie Stadt"]
["DE233","Weiden i. d. Opf, Kreisfreie Stadt"]
["DE234","Amberg-Sulzbach"]
["DE235","Cham"]
["DE236","Neumarkt i. d. OPf."]
["DE237","Neustadt a. d. Waldnaab"]
["DE238","Regensburg, Landkreis"]
["DE239","Schwandorf"]
["DE23A","Tirschenreuth"]
["DE241","Bamberg, Kreisfreie Stadt"]
["DE242","Bayreuth, Kreisfreie Stadt"]
["DE243","Coburg, Kreisfreie Stadt"]
["DE244","Hof, Kreisfreie Stadt"]
["DE245","Bamberg, Landkreis"]
["DE246","Bayreuth, Landkreis"]
["DE247","Coburg, Landkreis"]
["DE248","Forchheim"]
["DE249","Hof, Landkreis"]
["DE24A","Kronach"]
["DE24B","Kulmbach"]
["DE24C","Lichtenfels"]
["DE24D","Wunsiedel i. Fichtelgebirge"]
["DE251","Ansbach, Kreisfreie Stadt"]
["DE252","Erlangen, Kreisfreie Stadt"]
["DE253","Fürth, Kreisfreie Stadt"]
["DE254","Nürnberg, Kreisfreie Stadt"]
["DE255","Schwabach, Kreisfreie Stadt"]
["DE256","Ansbach, Landkreis"]
["DE257","Erlangen-Höchstadt"]
["DE258","Fürth, Landkreis"]
["DE259","Nürnberger Land"]
["DE25A","Neustadt a. d. Aisch-Bad Windsheim"]
["DE25B","Roth"]
["DE25C","Weißenburg-Gunzenhausen"]
["DE261","Aschaffenburg, Kreisfreie Stadt"]
["DE262","Schweinfurt, Kreisfreie Stadt"]
["DE263","Würzburg, Kreisfreie Stadt"]
["DE264","Aschaffenburg, Landkreis"]
["DE265","Bad Kissingen"]
["DE266","Rhön-Grabfeld"]
["DE267","Haßberge"]
["DE268","Kitzingen"]
["DE269","Miltenberg"]
["DE26A","Main-Spessart"]
["DE26B","Schweinfurt, Landkreis"]
["DE26C","Würzburg, Landkreis"]
["DE271","Augsburg, Kreisfreie Stadt"]
["DE272","Kaufbeuren, Kreisfreie Stadt"]
["DE273","Kempten (Allgäu), Kreisfreie Stadt"]
["DE274","Memmingen, Kreisfreie Stadt"]
["DE275","Aichach-Friedberg"]
["DE276","Augsburg, Landkreis"]
["DE277","Dillingen a.d. Donau"]
["DE278","Günzburg"]
["DE279","Neu-Ulm"]
["DE27A","Lindau (Bodensee)"]
["DE27B","Ostallgäu"]
["DE27C","Unterallgäu"]
["DE27D","Donau-Ries"]
["DE27E","Oberallgäu"]
["DE300","Berlin"]
["DE401","Brandenburg an der Havel, Kreisfreie Stadt"]
["DE402","Cottbus, Kreisfreie Stadt"]
["DE403","Frankfurt (Oder), Kreisfreie Stadt"]
["DE404","Potsdam, Kreisfreie Stadt"]
["DE405","Barnim"]
["DE406","Dahme-Spreewald"]
["DE407","Elbe-Elster"]
["DE408","Havelland"]
["DE409","Märkisch-Oderland"]
["DE40A","Oberhavel"]
["DE40B","Oberspreewald-Lausitz"]
["DE40C","Oder-Spree"]
["DE40D","Ostprignitz-Ruppin"]
["DE40E","Potsdam-Mittelmark"]
["DE40F","Prignitz"]
["DE40G","Spree-Neiße"]
["DE40H","Teltow-Fläming"]
["DE40I","Uckermark"]
["DE501","Bremen, Kreisfreie Stadt"]
["DE502","Bremerhaven, Kreisfreie Stadt"]
["DE600","Hamburg"]
["DE711","Darmstadt, Kreisfreie Stadt"]
["DE712","Frankfurt am Main, Kreisfreie Stadt"]
["DE713","Offenbach am Main, Kreisfreie Stadt"]
["DE714","Wiesbaden, Kreisfreie Stadt"]
["DE715","Bergstraße"]
["DE716","Darmstadt-Dieburg"]
["DE717","Groß-Gerau"]
["DE718","Hochtaunuskreis"]
["DE719","Main-Kinzig-Kreis"]
["DE71A","Main-Taunus-Kreis"]
["DE71B","Odenwaldkreis"]
["DE71C","Offenbach, Landkreis"]
["DE71D","Rheingau-Taunus-Kreis"]
["DE71E","Wetteraukreis"]
["DE721","Gießen, Landkreis"]
["DE722","Lahn-Dill-Kreis"]
["DE723","Limburg-Weilburg"]
["DE724","Marburg-Biedenkopf"]
["DE725","Vogelsbergkreis"]
["DE731","Kassel, Kreisfreie Stadt"]
["DE732","Fulda"]
["DE733","Hersfeld-Rotenburg"]
["DE734","Kassel, Landkreis"]
["DE735","Schwalm-Eder-Kreis"]
["DE736","Waldeck-Frankenberg"]
["DE737","Werra-Meißner-Kreis"]
["DE803","Rostock, Kreisfreie Stadt"]
["DE804","Schwerin, Kreisfreie Stadt"]
["DE80J","Mecklenburgische Seenplatte"]
["DE80K","Landkreis Rostock"]
["DE80L","Vorpommern-Rügen"]
["DE80M","Nordwestmecklenburg"]
["DE80N","Vorpommern-Greifswald"]
["DE80O","Ludwigslust-Parchim"]
["DE911","Braunschweig, Kreisfreie Stadt"]
["DE912","Salzgitter, Kreisfreie Stadt"]
["DE913","Wolfsburg, Kreisfreie Stadt"]
["DE914","Gifhorn"]
["DE915","Göttingen"]
["DE916","Goslar"]
["DE917","Helmstedt"]
["DE918","Northeim"]
["DE919","Osterode am Harz"]
["DE91A","Peine"]
["DE91B","Wolfenbüttel"]
["DE91C","Göttingen"]
["DE922","Diepholz"]
["DE923","Hameln-Pyrmont"]
["DE925","Hildesheim"]
["DE926","Holzminden"]
["DE927","Nienburg (Weser)"]
["DE928","Schaumburg"]
["DE929","Region Hannover"]
["DE931","Celle"]
["DE932","Cuxhaven"]
["DE933","Harburg"]
["DE934","Lüchow-Dannenberg"]
["DE935","Lüneburg, Landkreis"]
["DE936","Osterholz"]
["DE937","Rotenburg (Wümme)"]
["DE938","Soltau-Fallingbostel"]
["DE939","Stade"]
["DE93A","Uelzen"]
["DE93B","Verden"]
["DE941","Delmenhorst, Kreisfreie Stadt"]
["DE942","Emden, Kreisfreie Stadt"]
["DE943","Oldenburg (Oldenburg), Kreisfreie Stadt"]
["DE944","Osnabrück, Kreisfreie Stadt"]
["DE945","Wilhelmshaven, Kreisfreie Stadt"]
["DE946","Ammerland"]
["DE947","Aurich"]
["DE948","Cloppenburg"]
["DE949","Emsland"]
["DE94A","Friesland (DE)"]
["DE94B","Grafschaft Bentheim"]
["DE94C","Leer"]
["DE94D","Oldenburg, Landkreis"]
["DE94E","Osnabrück, Landkreis"]
["DE94F","Vechta"]
["DE94G","Wesermarsch"]
["DE94H","Wittmund"]
["DEA11","Düsseldorf, Kreisfreie Stadt"]
["DEA12","Duisburg, Kreisfreie Stadt"]
["DEA13","Essen, Kreisfreie Stadt"]
["DEA14","Krefeld, Kreisfreie Stadt"]
["DEA15","Mönchengladbach, Kreisfreie Stadt"]
["DEA16","Mülheim an der Ruhr,Kreisfreie Stadt"]
["DEA17","Oberhausen, Kreisfreie Stadt"]
["DEA18","Remscheid, Kreisfreie Stadt"]
["DEA19","Solingen, Kreisfreie Stadt"]
["DEA1A","Wuppertal, Kreisfreie Stadt"]
["DEA1B","Kleve"]
["DEA1C","Mettmann"]
["DEA1D","Rhein-Kreis Neuss"]
["DEA1E","Viersen"]
["DEA1F","Wesel"]
["DEA22","Bonn, Kreisfreie Stadt"]
["DEA23","Köln, Kreisfreie Stadt"]
["DEA24","Leverkusen, Kreisfreie Stadt"]
["DEA26","Düren"]
["DEA27","Rhein-Erft-Kreis"]
["DEA28","Euskirchen"]
["DEA29","Heinsberg"]
["DEA2A","Oberbergischer Kreis"]
["DEA2B","Rheinisch-Bergischer Kreis"]
["DEA2C","Rhein-Sieg-Kreis"]
["DEA2D","Städteregion Aachen"]
["DEA31","Bottrop, Kreisfreie Stadt"]
["DEA32","Gelsenkirchen, Kreisfreie Stadt"]
["DEA33","Münster, Kreisfreie Stadt"]
["DEA34","Borken"]
["DEA35","Coesfeld"]
["DEA36","Recklinghausen"]
["DEA37","Steinfurt"]
["DEA38","Warendorf"]
["DEA41","Bielefeld, Kreisfreie Stadt"]
["DEA42","Gütersloh"]
["DEA43","Herford"]
["DEA44","Höxter"]
["DEA45","Lippe"]
["DEA46","Minden-Lübbecke"]
["DEA47","Paderborn"]
["DEA51","Bochum, Kreisfreie Stadt"]
["DEA52","Dortmund, Kreisfreie Stadt"]
["DEA53","Hagen, Kreisfreie Stadt"]
["DEA54","Hamm, Kreisfreie Stadt"]
["DEA55","Herne, Kreisfreie Stadt"]
["DEA56","Ennepe-Ruhr-Kreis"]
["DEA57","Hochsauerlandkreis"]
["DEA58","Märkischer Kreis"]
["DEA59","Olpe"]
["DEA5A","Siegen-Wittgenstein"]
["DEA5B","Soest"]
["DEA5C","Unna"]
["DEB11","Koblenz, Kreisfreie Stadt"]
["DEB12","Ahrweiler"]
["DEB13","Altenkirchen (Westerwald)"]
["DEB14","Bad Kreuznach"]
["DEB15","Birkenfeld"]
["DEB16","Cochem-Zell"]
["DEB17","Mayen-Koblenz"]
["DEB18","Neuwied"]
["DEB19","Rhein-Hunsrück-Kreis"]
["DEB1A","Rhein-Lahn-Kreis"]
["DEB1B","Westerwaldkreis"]
["DEB1C","Cochem-Zell"]
["DEB1D","Rhein-Hunsrück-Kreis"]
["DEB21","Trier, Kreisfreie Stadt"]
["DEB22","Bernkastel-Wittlich"]
["DEB23","Eifelkreis Bitburg-Prüm"]
["DEB24","Vulkaneifel"]
["DEB25","Trier-Saarburg"]
["DEB31","Frankenthal (Pfalz), Kreisfreie Stadt"]
["DEB32","Kaiserslautern, Kreisfreie Stadt"]
["DEB33","Landau in der Pfalz, Kreisfreie Stadt"]
["DEB34","Ludwigshafen am Rhein, Kreisfreie Stadt"]
["DEB35","Mainz, Kreisfreie Stadt"]
["DEB36","Neustadt an der Weinstraße, Kreisfreie Stadt"]
["DEB37","Pirmasens, Kreisfreie Stadt"]
["DEB38","Speyer, Kreisfreie Stadt"]
["DEB39","Worms, Kreisfreie Stadt"]
["DEB3A","Zweibrücken, Kreisfreie Stadt"]
["DEB3B","Alzey-Worms"]
["DEB3C","Bad Dürkheim"]
["DEB3D","Donnersbergkreis"]
["DEB3E","Germersheim"]
["DEB3F","Kaiserslautern, Landkreis"]
["DEB3G","Kusel"]
["DEB3H","Südliche Weinstraße"]
["DEB3I","Rhein-Pfalz-Kreis"]
["DEB3J","Mainz-Bingen"]
["DEB3K","Südwestpfalz"]
["DEC01","Regionalverband Saarbrücken"]
["DEC02","Merzig-Wadern"]
["DEC03","Neunkirchen"]
["DEC04","Saarlouis"]
["DEC05","Saarpfalz-Kreis"]
["DEC06","St. Wendel"]
["DED21","Dresden, Kreisfreie Stadt"]
["DED2C","Bautzen"]
["DED2D","Görlitz"]
["DED2E","Meißen"]
["DED2F","Sächsische Schweiz-Osterzgebirge"]
["DED41","Chemnitz, Kreisfreie Stadt"]
["DED42","Erzgebirgskreis"]
["DED43","Mittelsachsen"]
["DED44","Vogtlandkreis"]
["DED45","Zwichau"]
["DED51","Leipzig, Kreisfreie Stadt"]
["DED52","Leipzig"]
["DED53","Nordsachsen"]
["DEE01","Dessau-Roßlau, Kreisfreie Stadt"]
["DEE02","Halle (Saale), Kreisfreie Stadt"]
["DEE03","Magdeburg, Kreisfreie Stadt"]
["DEE04","Altmarkkreis Salzwedel"]
["DEE05","Anhalt-Bitterfeld"]
["DEE06","Jerichower Land"]
["DEE07","Börde"]
["DEE08","Burgenland (DE)"]
["DEE09","Harz"]
["DEE0A","Mansfeld-Südharz"]
["DEE0B","Saalekreis"]
["DEE0C","Salzlandkreis"]
["DEE0D","Stendal"]
["DEE0E","Wittenberg"]
["DEF01","Flensburg, Kreisfreie Stadt"]
["DEF02","Kiel, Kreisfreie Stadt"]
["DEF03","Lübeck, Kreisfreie Stadt"]
["DEF04","Neumünster, Kreisfreie Stadt"]
["DEF05","Dithmarschen"]
["DEF06","Herzogtum Lauenburg"]
["DEF07","Nordfriesland"]
["DEF08","Ostholstein"]
["DEF09","Pinneberg"]
["DEF0A","Plön"]
["DEF0B","Rendsburg-Eckernförde"]
["DEF0C","Schleswig-Flensburg"]
["DEF0D","Segeberg"]
["DEF0E","Steinburg"]
["DEF0F","Stormarn"]
["DEG01","Erfurt, Kreisfreie Stadt"]
["DEG02","Gera, Kreisfreie Stadt"]
["DEG03","Jena, Kreisfreie Stadt"]
["DEG04","Suhl, Kreisfreie Stadt"]
["DEG05","Weimar, Kreisfreie Stadt"]
["DEG06","Eichsfeld"]
["DEG07","Nordhausen"]
["DEG09","Unstrut-Hainich-Kreis"]
["DEG0A","Kyffhäuserkreis"]
["DEG0B","Schmalkalden-Meiningen"]
["DEG0C","Gotha"]
["DEG0D","Sömmerda"]
["DEG0E","Hildburghausen"]
["DEG0F","Ilm-Kreis"]
["DEG0G","Weimarer Land"]
["DEG0H","Sonneberg"]
["DEG0I","Saalfeld-Rudolstadt"]
["DEG0J","Saale-Holzland-Kreis"]
["DEG0K","Saale-Orla-Kreis"]
["DEG0L","Greiz"]
["DEG0M","Altenburger Land"]
["DEG0N","Eisenach, Kreisfreie Stadt"]
["DEG0P","Wartburgkreis"]
["DEZZZ","Extra-Regio NUTS 3"]
["DK011","Byen København"]
["DK012","Københavns omegn"]
["DK013","Nordsjælland"]
["DK014","Bornholm"]
["DK021","Østsjælland"]
["DK022","Vest- og Sydsjælland"]
["DK031","Fyn"]
["DK032","Sydjylland"]
["DK041","Vestjylland"]
["DK042","Østjylland"]
["DK050","Nordjylland"]
["DKZZZ","Extra-Regio NUTS 3"]
["EE001","Põhja-Eesti"]
["EE004","Lääne-Eesti"]
["EE006","Kesk-Eesti"]
["EE007","Kirde-Eesti"]
["EE008","Lõuna-Eesti"]
["EEZZZ","Extra-Regio NUTS 3"]
["EL301","Voreios Tomeas Athinon"]
["EL302","Dytikos Tomeas Athinon"]
["EL303","Kentrikos Tomeas Athinon"]
["EL304","Notios Tomeas Athinon"]
["EL305","Anatoliki Attiki"]
["EL306","Dytiki Attiki"]
["EL307","Peiraias, Nisoi"]
["EL411","Lesvos"]
["EL412","Samos"]
["EL413","Chios"]
["EL421","Dodekanisos"]
["EL422","Kyklades"]
["EL431","Irakleio"]
["EL432","Lasithi"]
["EL433","Rethymni"]
["EL434","Chania"]
["EL511","Evros"]
["EL512","Xanthi"]
["EL513","Rodopi"]
["EL514","Drama"]
["EL515","Thasos, Kavala"]
["EL521","Imathia"]
["EL522","Thessaloniki"]
["EL523","Kilkis"]
["EL524","Pella"]
["EL525","Pieria"]
["EL526","Serres"]
["EL527","Chalkidiki"]
["EL531","Grevena, Kozani"]
["EL532","Kastoria"]
["EL533","Florina"]
["EL541","Arta, Preveza"]
["EL542","Thesprotia"]
["EL543","Ioannina"]
["EL611","Karditsa, Trikala"]
["EL612","Larisa"]
["EL613","Magnisia, Sporades"]
["EL621","Zakynthos"]
["EL622","Kerkyra"]
["EL623","Ithaki, Kefallinia"]
["EL624","Lefkada"]
["EL631","Aitoloakarnania"]
["EL632","Achaia"]
["EL633","Ileia"]
["EL641","Voiotia"]
["EL642","Evvoia"]
["EL643","Evrytania"]
["EL644","Fthiotida"]
["EL645","Fokida"]
["EL651","Argolida, Arkadia"]
["EL652","Korinthia"]
["EL653","lakonia, Messinia"]
["ELZZZ","Extra-Regio NUTS 3"]
["ES111","A Coruña"]
["ES112","Lugo"]
["ES113","Ourense"]
["ES114","Pontevedra"]
["ES120","Asturias"]
["ES130","Cantabria"]
["ES211","Álava"]
["ES212","Guipúzcoa"]
["ES213","Vizcaya"]
["ES220","Navarra"]
["ES230","La Rioja"]
["ES241","Huesca"]
["ES242","Teruel"]
["ES243","Zaragoza"]
["ES300","Madrid"]
["ES411","Ávila"]
["ES412","Burgos"]
["ES413","León"]
["ES414","Palencia"]
["ES415","Salamanca"]
["ES416","Segovia"]
["ES417","Soria"]
["ES418","Valladolid"]
["ES419","Zamora"]
["ES421","Albacete"]
["ES422","Ciudad Real"]
["ES423","Cuenca"]
["ES424","Guadalajara"]
["ES425","Toledo"]
["ES431","Badajoz"]
["ES432","Cáceres"]
["ES511","Barcelona"]
["ES512","Girona"]
["ES513","Lleida"]
["ES514","Tarragona"]
["ES521","Alicante / Alacant"]
["ES522","Castellón / Castelló"]
["ES523","Valencia / València"]
["ES531","Eivissa y Formentera"]
["ES532","Mallorca"]
["ES533","Menorca"]
["ES611","Almería"]
["ES612","Cádiz"]
["ES613","Córdoba"]
["ES614","Granada"]
["ES615","Huelva"]
["ES616","Jaén"]
["ES617","Málaga"]
["ES618","Sevilla"]
["ES620","Murcia"]
["ES630","Ceuta"]
["ES640","Melilla"]
["ES703","El Hierro"]
["ES704","Fuerteventura"]
["ES705","Gran Canaria"]
["ES706","La Gomera"]
["ES707","La Palma"]
["ES708","Lanzarote"]
["ES709","Tenerife"]
["ESZZZ","Extra-Regio NUTS 3"]
["FI193","Keski-Suomi"]
["FI194","Etelä-Pohjanmaa"]
["FI195","Pohjanmaa"]
["FI196","Satakunta"]
["FI197","Pirkanmaa"]
["FI1B1","Helsinki-Uusimaa"]
["FI1C1","Varsinais-Suomi"]
["FI1C2","Kanta-Häme"]
["FI1C3","Päijät-Häme"]
["FI1C4","Kymenlaakso"]
["FI1C5","Etelä-Karjala"]
["FI1D1","Etelä-Savo"]
["FI1D2","Pohjois-Savo"]
["FI1D3","Pohjois-Karjala"]
["FI1D4","Kainuu"]
["FI1D5","Keski-Pohjanmaa"]
["FI1D6","Pohjois-Pohjanmaa"]
["FI1D7","Lappi"]
["FI1D8","Kainuu"]
["FI1D9","Pohjois-Pohjanmaa"]
["FI200","Åland"]
["FIZZZ","Extra-Regio NUTS 3"]
["FR101","Paris"]
["FR102","Seine-et-Marne"]
["FR103","Yvelines"]
["FR104","Essonne"]
["FR105","Hauts-de-Seine"]
["FR106","Seine-Saint-Denis"]
["FR107","Val-de-Marne"]
["FR108","Val-d''Oise"]
["FR211","Ardennes"]
["FR212","Aube"]
["FR213","Marne"]
["FR214","Haute-Marne"]
["FR221","Aisne"]
["FR222","Oise"]
["FR223","Somme"]
["FR231","Eure"]
["FR232","Seine-Maritime"]
["FR241","Cher"]
["FR242","Eure-et-Loir"]
["FR243","Indre"]
["FR244","Indre-et-Loire"]
["FR245","Loir-et-Cher"]
["FR246","Loiret"]
["FR251","Calvados"]
["FR252","Manche"]
["FR253","Orne"]
["FR261","Côte-d''Or"]
["FR262","Nièvre"]
["FR263","Saône-et-Loire"]
["FR264","Yonne"]
["FR301","Nord"]
["FR302","Pas-de-Calais"]
["FR411","Meurthe-et-Moselle"]
["FR412","Meuse"]
["FR413","Moselle"]
["FR414","Vosges"]
["FR421","Bas-Rhin"]
["FR422","Haut-Rhin"]
["FR431","Doubs"]
["FR432","Jura"]
["FR433","Haute-Saône"]
["FR434","Territoire de Belfort"]
["FR511","Loire-Atlantique"]
["FR512","Maine-et-Loire"]
["FR513","Mayenne"]
["FR514","Sarthe"]
["FR515","Vendée"]
["FR521","Côtes-d''Armor"]
["FR522","Finistère"]
["FR523","Ille-et-Vilaine"]
["FR524","Morbihan"]
["FR531","Charente"]
["FR532","Charente-Maritime"]
["FR533","Deux-Sèvres"]
["FR534","Vienne"]
["FR611","Dordogne"]
["FR612","Gironde"]
["FR613","Landes"]
["FR614","Lot-et-Garonne"]
["FR615","Pyrénées-Atlantiques"]
["FR621","Ariège"]
["FR622","Aveyron"]
["FR623","Haute-Garonne"]
["FR624","Gers"]
["FR625","Lot"]
["FR626","Hautes-Pyrénées"]
["FR627","Tarn"]
["FR628","Tarn-et-Garonne"]
["FR631","Corrèze"]
["FR632","Creuse"]
["FR633","Haute-Vienne"]
["FR711","Ain"]
["FR712","Ardèche"]
["FR713","Drôme"]
["FR714","Isère"]
["FR715","Loire"]
["FR716","Rhône"]
["FR717","Savoie"]
["FR718","Haute-Savoie"]
["FR721","Allier"]
["FR722","Cantal"]
["FR723","Haute-Loire"]
["FR724","Puy-de-Dôme"]
["FR811","Aude"]
["FR812","Gard"]
["FR813","Hérault"]
["FR814","Lozère"]
["FR815","Pyrénées-Orientales"]
["FR821","Alpes-de-Haute-Provence"]
["FR822","Hautes-Alpes"]
["FR823","Alpes-Maritimes"]
["FR824","Bouches-du-Rhône"]
["FR825","Var"]
["FR826","Vaucluse"]
["FR831","Corse-du-Sud"]
["FR832","Haute-Corse"]
["FRA10","Guadeloupe"]
["FRA20","Martinique"]
["FRA30","Guyane"]
["FRA40","La Réunion"]
["FRA50","Mayotte"]
["FRB01","Cher"]
["FRB02","Eure-et-Loir"]
["FRB03","Indre"]
["FRB04","Indre-et-Loire"]
["FRB05","Loir-et-Cher"]
["FRB06","Loiret"]
["FRC11","Côte-d’Or"]
["FRC12","Nièvre"]
["FRC13","Saône-et-Loire"]
["FRC14","Yonne"]
["FRC21","Doubs"]
["FRC22","Jura"]
["FRC23","Haute-Saône"]
["FRC24","Territoire de Belfort"]
["FRD11","Calvados"]
["FRD12","Manche"]
["FRD13","Orne"]
["FRD21","Eure"]
["FRD22","Seine-Maritime"]
["FRE11","Nord"]
["FRE12","Pas-de-Calais"]
["FRE21","Aisne"]
["FRE22","Oise"]
["FRE23","Somme"]
["FRF11","Bas-Rhin"]
["FRF12","Haut-Rhin"]
["FRF21","Ardennes"]
["FRF22","Aube"]
["FRF23","Marne"]
["FRF24","Haute-Marne"]
["FRF31","Meurthe-et-Moselle"]
["FRF32","Meuse"]
["FRF33","Moselle"]
["FRF34","Vosges"]
["FRG01","Loire-Atlantique"]
["FRG02","Maine-et-Loire"]
["FRG03","Mayenne"]
["FRG04","Sarthe"]
["FRG05","Vendée"]
["FRH01","Côtes-d’Armor"]
["FRH02","Finistère"]
["FRH03","Ille-et-Vilaine"]
["FRH04","Morbihan"]
["FRI11","Dordogne"]
["FRI12","Gironde"]
["FRI13","Landes"]
["FRI14","Lot-et-Garonne"]
["FRI15","Pyrénées-Atlantiques"]
["FRI21","Corrèze"]
["FRI22","Creuse"]
["FRI23","Haute-Vienne"]
["FRI31","Charente"]
["FRI32","Charente-Maritime"]
["FRI33","Deux-Sèvres"]
["FRI34","Vienne"]
["FRJ11","Aude"]
["FRJ12","Gard"]
["FRJ13","Hérault"]
["FRJ14","Lozère"]
["FRJ15","Pyrénées-Orientales"]
["FRJ21","Ariège"]
["FRJ22","Aveyron"]
["FRJ23","Haute-Garonne"]
["FRJ24","Gers"]
["FRJ25","Lot"]
["FRJ26","Hautes-Pyrénées"]
["FRJ27","Tarn"]
["FRJ28","Tarn-et-Garonne"]
["FRK11","Allier"]
["FRK12","Cantal"]
["FRK13","Haute-Loire"]
["FRK14","Puy-de-Dôme"]
["FRK21","Ain"]
["FRK22","Ardèche"]
["FRK23","Drôme"]
["FRK24","Isère"]
["FRK25","Loire"]
["FRK26","Rhône"]
["FRK27","Savoie"]
["FRK28","Haute-Savoie"]
["FRL01","Alpes-de-Haute-Provence"]
["FRL02","Hautes-Alpes"]
["FRL03","Alpes-Maritimes"]
["FRL04","Bouches-du-Rhône"]
["FRL05","Var"]
["FRL06","Vaucluse"]
["FRM01","Corse-du-Sud"]
["FRM02","Haute-Corse"]
["FRY10","Guadeloupe"]
["FRY20","Martinique"]
["FRY30","Guyane"]
["FRY40","La Réunion"]
["FRY50","Mayotte"]
["FRZZZ","Extra-Regio NUTS 3"]
["HR031","Primorsko-goranska županija"]
["HR032","Licko-senjska Županija"]
["HR033","Zadarska županija"]
["HR034","Šibensko-kninska županija"]
["HR035","Splitsko-dalmatinska županija"]
["HR036","Istarska županija"]
["HR037","Dubrovacko-neretvanska Županija"]
["HR041","Grad Zagreb"]
["HR042","Zagrebacka Županija"]
["HR043","Krapinsko-zagorska županija"]
["HR044","Varaždinska županija"]
["HR045","Koprivnicko-križevacka Županija"]
["HR046","Medimurska Županija"]
["HR047","Bjelovarsko-bilogorska županija"]
["HR048","Viroviticko-podravska Županija"]
["HR049","Požeško-slavonska županija"]
["HR04A","Brodsko-posavska županija"]
["HR04B","Osjecko-baranjska Županija"]
["HR04C","Vukovarsko-srijemska županija"]
["HR04D","Karlovacka Županija"]
["HR04E","Sisacko-moslavacka Županija"]
["HRZZZ","Extra-Regio NUTS 3"]
["HU101","Budapest"]
["HU102","Pest"]
["HU110","Budapest"]
["HU120","Pest"]
["HU211","Fejér"]
["HU212","Komárom-Esztergom"]
["HU213","Veszprém"]
["HU221","Gyor-moson-sopron"]
["HU222","Vas"]
["HU223","Zala"]
["HU231","Baranya"]
["HU232","Somogy"]
["HU233","Tolna"]
["HU311","Borsod-Abaúj-Zemplén"]
["HU312","Heves"]
["HU313","Nógrád"]
["HU321","Hajdú-Bihar"]
["HU322","Jász-Nagykun-Szolnok"]
["HU323","Szabolcs-Szatmár-Bereg"]
["HU331","Bács-Kiskun"]
["HU332","Békés"]
["HU333","Csongrád"]
["HUZZZ","Extra-Regio NUTS 3"]
["IE011","Border"]
["IE012","Midland"]
["IE013","West"]
["IE021","Dublin"]
["IE022","Mid-East"]
["IE023","Mid-West"]
["IE024","South-East (IE)"]
["IE025","South-West (IE)"]
["IE041","Border"]
["IE042","West"]
["IE051","Mid-West"]
["IE052","South-East"]
["IE053","South-West"]
["IE061","Dublin"]
["IE062","Mid-East"]
["IE063","Midland"]
["IEZZZ","Extra-Regio NUTS 3"]
["ITC11","Torino"]
["ITC12","Vercelli"]
["ITC13","Biella"]
["ITC14","Verbano-Cusio-Ossola"]
["ITC15","Novara"]
["ITC16","Cuneo"]
["ITC17","Asti"]
["ITC18","Alessandria"]
["ITC20","Valle d''Aosta/Vallée d''Aoste"]
["ITC31","Imperia"]
["ITC32","Savona"]
["ITC33","Genova"]
["ITC34","La Spezia"]
["ITC41","Varese"]
["ITC42","Como"]
["ITC43","Lecco"]
["ITC44","Sondrio"]
["ITC46","Bergamo"]
["ITC47","Brescia"]
["ITC48","Pavia"]
["ITC49","Lodi"]
["ITC4A","Cremona"]
["ITC4B","Mantova"]
["ITC4C","Milano"]
["ITC4D","Monza e della Brianza"]
["ITF11","L''Aquila"]
["ITF12","Teramo"]
["ITF13","Pescara"]
["ITF14","Chieti"]
["ITF21","Isernia"]
["ITF22","Campobasso"]
["ITF31","Caserta"]
["ITF32","Benevento"]
["ITF33","Napoli"]
["ITF34","Avellino"]
["ITF35","Salerno"]
["ITF43","Taranto"]
["ITF44","Brindisi"]
["ITF45","Lecce"]
["ITF46","Foggia"]
["ITF47","Bari"]
["ITF48","Barletta-Andria-Trani"]
["ITF51","Potenza"]
["ITF52","Matera"]
["ITF61","Cosenza"]
["ITF62","Crotone"]
["ITF63","Catanzaro"]
["ITF64","Vibo Valentia"]
["ITF65","Reggio di Calabria"]
["ITG11","Trapani"]
["ITG12","Palermo"]
["ITG13","Messina"]
["ITG14","Agrigento"]
["ITG15","Caltanissetta"]
["ITG16","Enna"]
["ITG17","Catania"]
["ITG18","Ragusa"]
["ITG19","Siracusa"]
["ITG25","Sassari"]
["ITG26","Nuoro"]
["ITG27","Cagliari"]
["ITG28","Oristano"]
["ITG29","Olbia-Tempio"]
["ITG2A","Ogliastra"]
["ITG2B","Medio Campidano"]
["ITG2C","Carbonia-Iglesias"]
["ITH10","Bolzano-Bozen"]
["ITH20","Trento"]
["ITH31","Verona"]
["ITH32","Vicenza"]
["ITH33","Belluno"]
["ITH34","Treviso"]
["ITH35","Venezia"]
["ITH36","Padova"]
["ITH37","Rovigo"]
["ITH41","Pordenone"]
["ITH42","Udine"]
["ITH43","Gorizia"]
["ITH44","Trieste"]
["ITH51","Piacenza"]
["ITH52","Parma"]
["ITH53","Reggio nell''Emilia"]
["ITH54","Modena"]
["ITH55","Bologna"]
["ITH56","Ferrara"]
["ITH57","Ravenna"]
["ITH58","Forlì-Cesena"]
["ITH59","Rimini"]
["ITI11","Massa-Carrara"]
["ITI12","Lucca"]
["ITI13","Pistoia"]
["ITI14","Firenze"]
["ITI15","Prato"]
["ITI16","Livorno"]
["ITI17","Pisa"]
["ITI18","Arezzo"]
["ITI19","Siena"]
["ITI1A","Grosseto"]
["ITI21","Perugia"]
["ITI22","Terni"]
["ITI31","Pesaro e Urbino"]
["ITI32","Ancona"]
["ITI33","Macerata"]
["ITI34","Ascoli Piceno"]
["ITI35","Fermo"]
["ITI41","Viterbo"]
["ITI42","Rieti"]
["ITI43","Roma"]
["ITI44","Latina"]
["ITI45","Frosinone"]
["ITZZZ","Extra-Regio NUTS 3"]
["LT001","Alytaus apskritis"]
["LT002","Kauno apskritis"]
["LT003","Klaipedos Apskritis"]
["LT004","Marijampoles Apskritis"]
["LT005","Panevežio Apskritis"]
["LT006","Šiauliu Apskritis"]
["LT007","Taurages Apskritis"]
["LT008","Telšiu Apskritis"]
["LT009","Utenos apskritis"]
["LT00A","Vilniaus apskritis"]
["LT011","Vilniaus apskritis"]
["LT021","Alytaus apskritis"]
["LT022","Kauno apskritis"]
["LT023","Klaipėdos apskritis"]
["LT024","Marijampolės apskritis"]
["LT025","Panevėžio apskritis"]
["LT026","Šiaulių apskritis"]
["LT027","Tauragės apskritis"]
["LT028","Telšių apskritis"]
["LT029","Utenos apskritis"]
["LTZZZ","Extra-Regio NUTS 3"]
["LU000","Luxembourg"]
["LUZZZ","Extra-Regio NUTS 3"]
["LV003","Kurzeme"]
["LV005","Latgale"]
["LV006","Riga"]
["LV007","Pieriga"]
["LV008","Vidzeme"]
["LV009","Zemgale"]
["LVZZZ","Extra-Regio NUTS 3"]
["MT001","Malta"]
["MT002","Gozo And CominoGhawdex U Kemmuna"]
["MTZZZ","Extra-Regio NUTS 3"]
["NL111","Oost-Groningen"]
["NL112","Delfzijl en omgeving"]
["NL113","Overig Groningen"]
["NL121","Noord-Friesland"]
["NL122","Zuidwest-Friesland"]
["NL123","Zuidoost-Friesland"]
["NL124","Noord-Friesland"]
["NL125","Zuidwest-Friesland"]
["NL126","Zuidoost-Friesland"]
["NL131","Noord-Drenthe"]
["NL132","Zuidoost-Drenthe"]
["NL133","Zuidwest-Drenthe"]
["NL211","Noord-Overijssel"]
["NL212","Zuidwest-Overijssel"]
["NL213","Twente"]
["NL221","Veluwe"]
["NL224","Zuidwest-Gelderland"]
["NL225","Achterhoek"]
["NL226","Arnhem/Nijmegen"]
["NL230","Flevoland"]
["NL310","Utrecht"]
["NL321","Kop van Noord-Holland"]
["NL322","Alkmaar en omgeving"]
["NL323","IJmond"]
["NL324","Agglomeratie Haarlem"]
["NL325","Zaanstreek"]
["NL326","Groot-Amsterdam"]
["NL327","Het Gooi en Vechtstreek"]
["NL328","Alkmaar en omgeving"]
["NL329","Groot-Amsterdam"]
["NL332","Agglomeratie ''s-Gravenhage"]
["NL333","Delft en Westland"]
["NL337","Agglomeratie Leiden en Bollenstreek"]
["NL338","Oost-Zuid-Holland"]
["NL339","Groot-Rijnmond"]
["NL33A","Zuidoost-Zuid-Holland"]
["NL33B","Oost-Zuid-Holland"]
["NL33C","Groot-Rijnmond"]
["NL341","Zeeuwsch-Vlaanderen"]
["NL342","Overig Zeeland"]
["NL411","West-Noord-Brabant"]
["NL412","Midden-Noord-Brabant"]
["NL413","Noordoost-Noord-Brabant"]
["NL414","Zuidoost-Noord-Brabant"]
["NL421","Noord-Limburg"]
["NL422","Midden-Limburg"]
["NL423","Zuid-Limburg"]
["NLZZZ","Extra-Regio NUTS 3"]
["PL113","Miasto Lódz"]
["PL114","Lódzki"]
["PL115","Piotrkowski"]
["PL116","Sieradzki"]
["PL117","Skierniewicki"]
["PL127","Miasto Warszawa"]
["PL128","Radomski"]
["PL129","Warszawski-wschodni"]
["PL12A","Warszawski-zachodni"]
["PL12B","Ciechanowski"]
["PL12C","Plocki"]
["PL12D","Ostrolecki"]
["PL12E","Siedlecki"]
["PL213","Miasto Kraków"]
["PL214","Krakowski"]
["PL217","Tarnowski"]
["PL218","Nowosadecki"]
["PL219","Nowotarski"]
["PL21A","Oswiecimski"]
["PL224","Czestochowski"]
["PL225","Bielski"]
["PL227","Rybnicki"]
["PL228","Bytomski"]
["PL229","Gliwicki"]
["PL22A","Katowicki"]
["PL22B","Sosnowiecki"]
["PL22C","Tyski"]
["PL311","Bialski"]
["PL312","Chelmsko-zamojski"]
["PL314","Lubelski"]
["PL315","Pulawski"]
["PL323","Krosnienski"]
["PL324","Przemyski"]
["PL325","Rzeszowski"]
["PL326","Tarnobrzeski"]
["PL331","Kielecki"]
["PL332","Sandomiersko-jedrzejowski"]
["PL343","Bialostocki"]
["PL344","Lomzynski"]
["PL345","Suwalski"]
["PL411","Pilski"]
["PL414","Koninski"]
["PL415","Miasto Poznan"]
["PL416","Kaliski"]
["PL417","Leszczynski"]
["PL418","Poznanski"]
["PL424","Miasto Szczecin"]
["PL426","Koszalinski"]
["PL427","Szczecinecko-pyrzycki"]
["PL428","Szczecinski"]
["PL431","Gorzowski"]
["PL432","Zielonogórski"]
["PL514","Miasto Wroclaw"]
["PL515","Jeleniogórski"]
["PL516","Legnicko-glogowski"]
["PL517","Walbrzyski"]
["PL518","Wroclawski"]
["PL523","Nyski"]
["PL524","Opolski"]
["PL613","Bydgosko-torunski"]
["PL616","Grudziadzki"]
["PL617","Inowroclawski"]
["PL618","Swiecki"]
["PL619","Wloclawski"]
["PL621","Elblaski"]
["PL622","Olsztynski"]
["PL623","Elcki"]
["PL633","Trójmiejski"]
["PL634","Gdanski"]
["PL636","Slupski"]
["PL637","Chojnicki"]
["PL638","Starogardzki"]
["PL711","Miasto Łódź"]
["PL712","Łódzki"]
["PL713","Piotrkowski"]
["PL714","Sieradzki"]
["PL715","Skierniewicki"]
["PL721","Kielecki"]
["PL722","Sandomiersko-jędrzejowski"]
["PL811","Bialski"]
["PL812","Chełmsko-zamojski"]
["PL814","Lubelski"]
["PL815","Puławski"]
["PL821","Krośnieński"]
["PL822","Przemyski"]
["PL823","Rzeszowski"]
["PL824","Tarnobrzeski"]
["PL841","Białostocki"]
["PL842","Łomżyński"]
["PL843","Suwalski"]
["PL911","Miasto Warszawa"]
["PL912","Warszawski wschodni"]
["PL913","Warszawski zachodni"]
["PL921","Radomski"]
["PL922","Ciechanowski"]
["PL923","Płocki"]
["PL924","Ostrołęcki"]
["PL925","Siedlecki"]
["PL926","Żyrardowski"]
["PLZZZ","Extra-Regio NUTS 3"]
["PT111","Minho-Lima"]
["PT112","Cávado"]
["PT119","Ave"]
["PT11A","Área Metropolitana do Porto"]
["PT11B","Alto Tâmega"]
["PT11C","Tâmega e Sousa"]
["PT11D","Douro"]
["PT11E","Terras de Trás-os-Montes"]
["PT150","Algarve"]
["PT16B","Oeste"]
["PT16D","Região de Aveiro"]
["PT16E","Região de Coimbra"]
["PT16F","Região de Leiria"]
["PT16G","Viseu Dão Lafões"]
["PT16H","Beira Baixa"]
["PT16I","Médio Tejo"]
["PT16J","Beiras e Serra da Estrela"]
["PT170","Área Metropolitana de Lisboa"]
["PT181","Alentejo Litoral"]
["PT184","Baixo Alentejo"]
["PT185","Lezíria do Tejo"]
["PT186","Alto Alentejo"]
["PT187","Alentejo Central"]
["PT200","Região Autónoma dos Açores"]
["PT300","Região Autónoma da Madeira"]
["PTZZZ","Extra-Regio NUTS 3"]
["RO111","Bihor"]
["RO112","Bistrita-nasaud"]
["RO113","Cluj"]
["RO114","Maramures"]
["RO115","Satu Mare"]
["RO116","Salaj"]
["RO121","Alba"]
["RO122","Brasov"]
["RO123","Covasna"]
["RO124","Harghita"]
["RO125","Mures"]
["RO126","Sibiu"]
["RO211","Bacau"]
["RO212","Botosani"]
["RO213","Iasi"]
["RO214","Neamt"]
["RO215","Suceava"]
["RO216","Vaslui"]
["RO221","Braila"]
["RO222","Buzau"]
["RO223","Constanta"]
["RO224","Galati"]
["RO225","Tulcea"]
["RO226","Vrancea"]
["RO311","Arges"]
["RO312","Calarasi"]
["RO313","Dâmbovita"]
["RO314","Giurgiu"]
["RO315","Ialomita"]
["RO316","Prahova"]
["RO317","Teleorman"]
["RO321","Bucuresti"]
["RO322","Ilfov"]
["RO411","Dolj"]
["RO412","Gorj"]
["RO413","Mehedinti"]
["RO414","Olt"]
["RO415","Vâlcea"]
["RO421","Arad"]
["RO422","Caras-severin"]
["RO423","Hunedoara"]
["RO424","Timis"]
["ROZZZ","Extra-Regio NUTS 3"]
["SE110","Stockholms län"]
["SE121","Uppsala län"]
["SE122","Södermanlands län"]
["SE123","Östergötlands län"]
["SE124","Örebro län"]
["SE125","Västmanlands län"]
["SE211","Jönköpings län"]
["SE212","Kronobergs län"]
["SE213","Kalmar län"]
["SE214","Gotlands län"]
["SE221","Blekinge län"]
["SE224","Skåne län"]
["SE231","Hallands län"]
["SE232","Västra Götalands län"]
["SE311","Värmlands län"]
["SE312","Dalarnas län"]
["SE313","Gävleborgs län"]
["SE321","Västernorrlands län"]
["SE322","Jämtlands län"]
["SE331","Västerbottens län"]
["SE332","Norrbottens län"]
["SEZZZ","Extra-Regio NUTS 3"]
["SI031","Pomurska"]
["SI032","Podravska"]
["SI033","Koroška"]
["SI034","Savinjska"]
["SI035","Zasavska"]
["SI036","Posavska"]
["SI037","Jugovzhodna Slovenija"]
["SI038","Primorsko-notranjska"]
["SI041","Osrednjeslovenska"]
["SI042","Gorenjska"]
["SI043","Goriška"]
["SI044","Obalno-kraška"]
["SIZZZ","Extra-Regio NUTS 3"]
["SK010","Bratislavský kraj"]
["SK021","Trnavský kraj"]
["SK022","Trenciansky Kraj"]
["SK023","Nitriansky kraj"]
["SK031","Žilinský kraj"]
["SK032","Banskobystrický kraj"]
["SK041","Prešovský kraj"]
["SK042","Košický kraj"]
["SKZZZ","Extra-Regio NUTS 3"]

{"sheet":"Číselník právní forma","index":7,"n_rows":1217,"n_cols":3,"rows_kept":1217,"cut":false,"hidden":true,"merged":[[0,0,0,2]]}
["LGL_FRM - právní forma"]
["Kód","Název","Název EN"]
["AT102","OG: Offene Gesellschaft","OG: General partnership"]
["AT103","KG: Kommanditgesellschaft","KG: Limited partnership"]
["AT201","AG: Aktiengesellschaft","AG: Public limited company"]
["AT202","GmbH: Gesellschaft mit beschränkter Haftung","GmbH: Limited company"]
["AT401","GEN: Erwerbs- und Wirtschaftsgenossenschaft","GEN: Cooperative"]
["AT501","V: Versicherungsverein auf Gegenseitigkeit","V: Mutual Insurance Corporation"]
["AT603","P: Privatstiftung","P: Private foundation"]
["AT604","S: Sparkasse","S: Mutual Savings Bank"]
["AT605","SR: Sonstiger Rechtsträger","SR: Other Legal Entity"]
["AT607","NA: Nicht anwendbar","NA: Other"]
["AT609","GesbR: Gesellschaft des bürgerlichen Rechts","GesbR: Partnership under civil code; Unincorporated, one or more partner, unlimited liability"]
["AT610","ÖrK: Öffentlich rechtliche Körperschaften","ÖrK: public corporation, corporation of public law"]
["AT611","ÖrS: Öffentlich rechtliche Stiftungen","ÖrS: public trust, corporation of public law"]
["AT612","VER: Vereine","VER: registered association, corporation of public law"]
["AT613","EG: Eigentümergemeinschaft","EG: owner association"]
["BE000","Anciennes formes juridiques (plus applicable) / Oude rechtsvormen (niet langer van toepassing) / Alte Rechtsformen (nicht mehr anwendbar)","Old or dismissed legal forms (no longer applicable)"]
["BE002","OFP: Organisme de financement de pensions / OFP: Organisme voor de Financiering van Pensioenen / OFP: Organismus für die Finanzierung von Pensionen","OFP / OFP / OFP: Pension Finance Institution"]
["BE003","UTVA: Unité TVA / BTWE: BTW-eenheid / MWSE: Mehrwertsteuereinheit","UTVA / BTWE / MWSE: VAT Unit"]
["BE006","SCRI: Société coopérative à responsabilité illimitée / CVOA: Coöperatieve vennootschap met onbeperkte aansprakelijkheid / Gen.mubH: Genossenschaft mit unbeschränkter Haftung","SCRI / CVOA / Gen.mubH: Cooperative partnership with unlimited liability"]
["BE008","SCRL: Société coopérative à responsabilité limitée / CVBA: Coöperatieve vennootschap met beperkte aansprakelijkheid / Gen.mbH: Genossenschaft mit beschränkter Haftung","SCRL / CVBA / Gen.mbH: Cooperative company with limited liability"]
["BE011","SNC: Société en nom collectif / V.O.F.: Vennootschap onder firma / OHG: Offene Handelsgesellschaft","SNC / V.O.F. / OHG: General partnership"]
["BE012","SCS: Société en commandite simple / Comm.V: Gewone commanditaire vennootschap / EKG: Einfache Kommanditgesellschaft","SCS / Comm.V / EKG: Ordinary limited partnership"]
["BE013","SCA: Société en commandite par actions / Comm.VA: Commanditaire vennootschap op aandelen / KGaA: Kommanditgesellschaft auf Aktien","SCA / Comm.VA / KGaA: Partnership limited by shares"]
["BE014","SA: Société anonyme / NV: Naamloze vennootschap / AG: Aktiengesellschaft","SA / NV / AG: Public limited liability company"]
["BE015","SPRL: Société privée à responsabilité limitée / BVBA: Besloten vennootschap met beperkte aansprakelijkheid / PGmbH: Privatgesellschaft mit beschränkter Haftung","SPRL / BVBA / PGmbH: Private limited liability company"]
["BE017","ASBL: Association sans but lucratif / VZW: Vereniging zonder winstoogmerk / VoG: Vereinigung ohne Gewinnerzielungsabsicht","ASBL / VZW / VoG: Not for profit association"]
["BE019","MUTU: Mutualité / Société Mutualiste / Union nationale de mutualités / ZIEK F: Ziekenfonds / Maatschappij van onderlinge bijstand / Landsbond van ziekenfondsen / Kankenka: Krankenkasse / Gesellschaft auf Gegenseitigkeit / Krankenkassenlandesverband","MUTU / ZIEK F / Kankenka: Mutual insurance society"]
["BE020","UP: Union professionnelle / BV: Beroepsvereniging / BV: Berufsvereinigung","UP / BV / BV: Professional Union"]
["BE021","Association d'assurances mutuelles / Caisse commune d'assurances de droit privé / Onderlinge verzekeringsvereniging / Gemeenschappelijke verzekeringskas van privaat recht / Versicherungsvereinigung auf Gegenseitigkeit / Privatrechtliche Versicherungsgesel","AAM / OVV / PRVGaG: Association of mutual insurance societies"]
["BE023","AEP: Associations étrangères privées avec établissement, agence, bureau, succursale en Belgique / BPR: Buitenlandse privaatrechtelijke verenigingen met vestiging, agentschap, kantoor of bijhuis in België / PRaV: Privatrechtliche ausländische Vereinigungen","AEP / BPR / PRaV: Foreign private associations with establishment in Belgium"]
["BE025","S. Agr.: Société agricole / LV: Landbouwvennootschap / LG: Landwirtschaftliche Gesellschaft","S. Agr. / LV / LG: Agricultural company"]
["BE026","FONDPRIV: Fondation privée / PRIV ST.: Private stichting / PrSt: Privatstiftung","FONDPRIV / PRIV ST. / PrSt: Private Foundation"]
["BE028","ISBL: Institution sans but lucratif / IZW: Instelling zonder winstoogmerk / EoG: Einrichtung ohne Gewinnerzielungsabsicht","ISBL / IZW / EoG: Not for profit institution"]
["BE029","FUP: Fondation d'utilité publique / SON: Stichting van openbaar nut / gnS: Gemeinnützige Stiftung","FUP / SON / gnS: Foundation with public purpose"]
["BE030","ENT E: Entreprise étrangère / BO: Buitenlandse onderneming / AGes.: Ausländische Gesellschaft","ENT E / BO / AGes.: Foreign company"]
["BE051","FDP PJ: Autre forme de droit privé avec personnalité juridique / PRV: Andere privaatrechtelijke vorm met rechtspersoonlijkheid / PRRFmRP: Andere privatrechtliche Rechtsform mit Rechtspersönlichkeit","FDP PJ / PRV / PRRFmRP: Other form of private law"]
["BE060","GIE: Groupement d'intérêt économique / ESV: Economisch samenwerkingsverband  / WIV: Wirtschaftliche Interessenvereinigung","GIE / ESV / WIV: Economic interest grouping"]
["BE070","ACP: Association des copropriétaires / VME: Vereniging van mede-eigenaars / MEV: Miteigentümervereinigung","ACP / VME / MEV: Association of landlords"]
["BE107","SCRI CP: Coopérative à responsabilité illimitée, coopérative de participation, de droit public / CVOA CD: Coöperatieve vennootschap met onbeperkte aansprakelijkheid, bij wijze van deelneming van publiek recht / GmuH: Öffentlich-rechtliche Genossenschaft","SCRI CP / CVOA CD / GmuHGB: Cooperative partnership with unlimited liability in public law"]
["BE108","SCRL DPU: Société coopérative à responsabilité limitée de droit public / CVBA PR: Coöperatieve vennootschap met beperkte aansprakelijkheid van publiek recht / ÖfrGmbH: Öffentlich-rechtliche Genossenschaft mit beschränkter Haftung","SCRL DPU / CVBA PR / ÖfrGmbH: Cooperative partnership with limited liability in public law"]
["BE114","SA DPU: Société anonyme de droit public / NV PR: Naamloze vennootschap van publiek recht / Ö.-r.AG: Öffentlich-rechtliche Aktiengesellschaft","SA DPU / NV PR / Ö.-r.AG: Public limited liability company in public law"]
["BE117","ASBL DPU: Association sans but lucratif de droit public / VZW PR: Vereniging zonder winstoogmerk van publiek recht / ÖrVohGza: Öffentlich-rechtliche Vereinigung ohne Gewinnerzielungsabsicht","ASBL DPU / VZW PR / ÖrVohGza: Not for profit association of public law"]
["BE121","SAM DPU: Association d'assurances mutuelles de droit public / OVV PR: Onderlinge verzekeringsvereniging van publiek recht / ÖrVgGe: Öffentlich-rechtliche Versicherungsvereinigung auf Gegenseitigkeit","SAM DPU / OVV PR / ÖrVgGe: Association of mutual insurance societies of public law"]
["BE124","ETSPUBLI: Etablissement public / OI: Openbare instelling / ÖE: Öffentliche Einrichtung","ETSPUBLI / OI / ÖE: Public Institution"]
["BE125","AISBL: Association internationale sans but lucratif / IVZW: Internationale vereniging zonder winstoogmerk / IVoG: Internationale Vereinigung ohne Gewinnerzielungsabsicht","AISBL / IVZW / IVoG: Not for profit international association"]
["BE127","PIETE: Monts-de-Piété / BVB: Berg van Barmhartigheid / LH: Pfandleihhaus","PIETE / BVB / LH: Pawnshop"]
["BE129","PW: Polder - wateringue / PW: Polder - Watering / Ewg-Bwg: Entwässerungsgenossenschaft - Bewässerungsgenossenschaft","PW / PW / Ewg-Bwg: Polder - watering"]
["BE151","AFJ: Autre forme juridique / AV: Andere rechtsvorm / ARF: Andere Rechtsform","AFJ / AV / ARF: Other legal form"]
["BE160","OPEI: Organisme public étranger ou international / BIPO: Buitenlandse of internationale publieke organisatie / AIÖE: Ausländische oder internationale öffentliche Einrichtungen","OPEI / BIPO / AIÖE: Foreign or international public institution"]
["BE200","SF: Société en formation / VV: Vennootschap in oprichting / GbG: In Gründung befindliche Gesellschaft","SF / VV / GbG: Company in creation"]
["BE206","SC SCRI: Société civile sous forme de société coopérative à responsabilité illimitée / BV CVOA: Burgerlijke vennootschap onder vorm van coöperatieve vennootschap met onbeperkte aansprakelijkheid / ZvGGug: Zivilrechtliche Gesellschaft in der Rechtsform","SC SCRI / BV CVOA / ZvGGugcH: Cooperative partnership with unlimited liability"]
["BE208","SC SCRL: Société civile sous forme de société coopérative à responsabilité limitée / BV CVBA: Burgerlijke vennootschap onder vorm van coöperatieve vennootschap met beperkte aansprakelijkheid / ZvGGbH: Zivilrechtliche Gesellschaft in der Rechtsform einer","SC SCRL / BV CVBA / ZvGGbH: Cooperative partnership with limited liability"]
["BE211","SC SNC: Société civile sous forme de société en nom collectif / BV VOF: Burgerlijke vennootschap onder vorm van vennootschap onder firma / ZRG OHG: Zivilrechtliche Gesellschaft in der Rechtsform einer offenen Handelsgesellschaft","SC SNC / BV VOF / ZRG OHG: General partnership"]
["BE212","SC SCS: Société civile sous forme de société en commandite simple / BV GCV: Burgerlijke vennootschap onder vorm van gewone commanditaire vennootschap / ZRG EKG: Zivilrechtliche Gesellschaft in der Rechtsform einer einfachen Kommanditgesellschaft","SC SCS / BV GCV / ZRG EKG: Ordinary limited partnership"]
["BE213","SC SCA: Société civile sous forme de société en commandite par actions/ BV CVA: Burgerlijke vennootschap onder vorm van commanditaire vennootschap op aandelen/ ZRG KGaA: Zivilrechtliche Gesellschaft in der Rechtsform einer Kommanditgesellschaft auf Aktien","SC SCA / BV CVA / ZRG KGaA: Partnership limited by shares"]
["BE214","SC SA: Société civile sous forme de société anonyme / BV NV: Burgerlijke vennootschap onder vorm van naamloze vennootschap / ZRG AG: Zivilrechtliche Gesellschaft in der Rechtsform einer Aktiengesellschaft","SC SA / BV NV / ZRG AG: Public limited liability company"]
["BE215","SC SPRL: Société civile sous forme de société privée à responsabilité limitée / BV BVBA: Burgerlijke vennootschap onder vorm van besloten vennootschap met beperkte aansprakelijkheid / ZvGPgbH: Zivilrechtliche Gesellschaft in der Rechtsform einer","SC SPRL / BV BVBA / ZvGPgbH: Private limited liability company"]
["BE217","PPEU: Europese politieke partij / PPEU: Parti politique européen / EUPP: Europäische politische Partei","PPEU / PPEU / EUPP: European political party"]
["BE218","FPEU: Europese politieke stichting / FPEU: Fondation politique européenne / FPEU: Europäische politische Stiftung","FPEU / FPEU / EUPS: European political foundation"]
["BE225","SC SAGR: Société civile sous forme de société agricole / BV LV: Burgerlijke Vennootschap onder vorm van Landbouwvennootschap (BV LV) / ZRG LG: Zivilrechtliche Gesellschaft in der Rechtsform einer landwirtschaftlichen Gesellschaft","SC SAGR / BV LV / ZRG LG: Agricultural partnership"]
["BE301","SPF: Service public fédéral / FOD: Federale overheidsdienst / FÖD: Föderaler öffentlicher Dienst","SPF / FOD / FÖD: Federal Public Service"]
["BE302","SPP: Service public fédéral de programmation / POD: Programmatorische federale overheidsdienst / FÖP: Föderaler öffentlicher Programmierungsdienst","SPP / POD / FÖP: Federal Public Service"]
["BE303","SERVFEDE: Autre service fédéral / FEDEDIEN: Andere federale dienst / FödD: Anderer föderale Dienst","SERVFEDE / FEDEDIEN / FödD: Other federal service"]
["BE310","REGCOMNL: Autorité de la Région flamande et de la Communauté flamande / VLGEWGEM: Overheid van het Vlaamse Gewest en van de Vlaamse Gemeenschap / FlRG: Behörde der Flämischen Region und der Flämischen Gemeinschaft","REGCOMNL / VLGEWGEM / FlRG: Flemish Region and Community Authority"]
["BE320","RW: Autorité de la Région wallonne / WG: Overheid van het Waalse Gewest / WR: Behörde der Wallonischen Region","RW / WG / WR: Walloon Region Authority"]
["BE325","AISBL DPU / IVZW PR / ÖrIVoG: International non-profit association, governed by public law","Internationale vereniging zonder winstoogmerk van publiek recht / Öffentlich-rechtliche Internationale Vereinigung ohne Gewinnerzielungsabsicht / AISBL DPU"]
["BE330","REGBRXCA: Autorité de la Région de Bruxelles-Capitale / BRUHOOGE: Overheid van het Brusselse Hoofdstedelijk Gewest / RBH: Behörde der Region Brüssel-Hauptstadt","REGBRXCA / BRUHOOGE / RBH: Brussels-Capital Authority"]
["BE340","COMMFRAN: Autorité de la Communauté française / FRAGEMEE: Overheid van de Franse Gemeenschap / FrG: Behörde der Französischen Gemeinschaft","COMMFRAN / FRAGEMEE / FrG: French Community Authority"]
["BE350","COMGERMA: Autorité de la Communauté germanophone / DUITGEME: Overheid van de Duitstalige Gemeenschap / DG: Behörde der Deutschsprachigen Gemeinschaft","COMGERMA / DUITGEME / DG: German Community Authority"]
["BE400","AUTOPROV: Autorité provinciale / PROVOVER: Provinciale overheid / Provbehö: Provinzialbehörde","AUTOPROV / PROVOVER / Provbehö: Provincial Authority"]
["BE411","Ville / commune / Stad / gemeente / Stadt / Gemeinde","COMMUNES / GEMEENTE / Gemeinde: Municipality"]
["BE412","CPAS: Centre public d'action sociale / OCMW: Openbaar centrum voor maatschappelijk welzijn / ÖSHZ: Öffentliches Sozialhilfezentrum","CPAS / OCMW / ÖSHZ: Public Center with social purpose"]
["BE413","POLLOC: Police locale / LOKPOL: Lokale politiezone / LP: Lokale Polizeizone","POLLOC / LOKPOL / LP: Local Police"]
["BE414","IC: Intercommunale / IC: Intercommunale / IK: Interkommunale","IC / IC / IK: Intermunicipal associations"]
["BE415","APROJ: Association de projet / PROJ V: Projectvereniging / Prjverng: Projektvereinigung","APROJ / PROJ V / Prjverng: Association of projects"]
["BE416","ASS SERV: Association prestataire de services (Région flamande) / DIENSTV: Dienstverlenende vereniging (Vlaams Gewest) / DlvFL: Dienstleistungsvereinigung (Flämische Region)","ASS SERV / DIENSTV / DlvFL: Services provider association (Flemish Region)"]
["BE417","ACMISS: Association chargée de mission (Région flamande) / OPDRAVER: Opdrachthoudende vereniging (Vlaams Gewest) / BVerFL: Beauftragte Vereinigung (Flämische Region)","ACMISS / OPDRAVER / BVerFL: Project entrusted association (Flemish Region)"]
["BE418","RCOMAUT: Régie communale autonome / AUTOGEMB: Autonoom gemeentebedrijf / AutGemRg: Autonome Gemeinderegie","RCOMAUT / AUTOGEMB / AutGemRg: Autonomous departments of public works (municipality)"]
["BE419","RPROVAUT: Régie provinciale autonome / AUTOPRB: Autonoom provinciebedrijf / AutPrvRg: Autonome Provinzialregie","RPROVAUT / AUTOPRB / AutPrvRg: RPROVAUT / AUTOPRB / AutPrvRg: Autonomous departments of public works (province)"]
["BE420","Ass.CPAS: Association de CPAS / Ver.OCMW: Vereniging van OCMW's / VÖSHZ: Vereinigung von öffentlichen Sozialhilfezentren","Ass.CPAS / Ver.OCMW / VÖSHZ: Association of Public Centers with social purpose"]
["BE422","ZDS: Zone de secours / HVZ: Hulpverleningszone / HLZ: Hilfeleistungszone","ZDS / HVZ / HLZ: Emergency zone"]
["BE506","SCRI FS: Société coopérative à responsabilité illimitée à finalité sociale / CVOA SO: Coöperatieve vennootschap met onbeperkte aansprakelijkheid met een sociaal oogmerk / GuHsZ: Genossenschaft mit unbeschränkter Haftung mit sozialer Zielsetzung","SCRI FS / CVOA SO / GuHsZ: Cooperative company with unlimited liability with social purpose"]
["BE508","SCRL FS: Société coopérative à responsabilité limitée à finalité sociale / CVBA SO: Coöperatieve vennootschap met beperkte aansprakelijkheid met een sociaal oogmerk / GbHsZ: Genossenschaft mit beschränkter Haftung mit sozialer Zielsetzung","SCRL FS / CVBA SO / GbHsZ: Cooperative company with limited liability with social purpose"]
["BE511","SNC FS: Société en nom collectif à finalité sociale / VOF SO: Vennootschap onder firma met een sociaal oogmerk / OHGmsZ: Offene Handelsgesellschaft mit sozialer Zielsetzung","SNC FS / VOF SO / OHGmsZ: General company with social purpose"]
["BE512","SCS FS: Société en commandite simple à finalité sociale / GCW SO: Gewone commanditaire vennootschap met een sociaal oogmerk / EKGmsZ: Einfache Kommanditgesellschaft mit sozialer Zielsetzung","SCS FS / GCW SO / EKGmsZ: Ordinary limited company with social purpose"]
["BE513","SCA FS: Société en commandite par actions à finalité sociale / CVA SO: Commanditaire vennootschap op aandelen met een sociaal oogmerk / KGaAmsZ: Kommanditgesellschaft auf Aktien mit sozialer Zielsetzung","SCA FS / CVA SO / KGaAmsZ: Company limited by shares with social purpose"]
["BE514","SA FS: Société anonyme à finalité sociale / NV SO: Naamloze vennootschap met een sociaal oogmerk / AGmsZ: Aktiengesellschaft mit sozialer Zielsetzung","SA FS / NV SO / AGmsZ: Public limited liability company with social purpose"]
["BE515","SPRL FS: Société privée à responsabilité limitée à finalité sociale / BVBA SO: Besloten vennootschap met beperkte aansprakelijkheid met een sociaal oogmerk / PmbHsZ: Privatgesellschaft mit beschränkter Haftung mit sozialer Zielsetzung","SPRL FS / BVBA SO / PmbHsZ: Private limited liability company with social purpose"]
["BE560","GIE FS: Groupement d'intérêt économique à finalité sociale / ESV SO: Economisch samenwerkingsverband met een sociaal oogmerk / WIVmsZ: Wirtschaftliche Interessenvereinigung mit sozialer Zielsetzung","GIE FS / ESV SO / WIVmsZ: Economic interest grouping with social purpose"]
["BE610","SRL / BV / GmbH: Limited liability company","Société à responsabilité limitée / Besloten Vennootschap / Gesellschaft mit beschränkter Haftung"]
["BE612","Scomm / CommV / KommG: Limited partnership","Société en commandite / Commanditaire vennootschap / Kommanditgesellschaft"]
["BE616","SRL DPU / BV PR / SDPU: Limited liability company, governed by public law","Société à responsabilité limitée de droit public / Besloten Vennootschap van publiek recht / Öffentlich-rechtliche Gesellschaft mit beschränkter Haftung"]
["BE617","SCommDPU / CommV PR / SDPU: Limited partnership, governed by public law","SCommDPU / CommV PR / SDPU: Société en commandite de droit public / Commanditaire vennootschap van publiek recht / Öffentlich-rechtliche Kommanditgesellschaft"]
["BE651","FORME FS: Autre forme à finalité sociale de droit public / VORM SO: Andere vorm met een sociaal oogmerk van publiek recht / RFmsZ: Andere öffentlich-rechtliche Rechtsform mit sozialer Zielsetzung","FORME FS / VORM SO / RFmsZ: Other form with social purpose of public law"]
["BE702","SDC: Société de droit commun / MS: Maatschap / GaR: Gesellschaft des allgemeinen Rechts","SDC / MS / GaR: Company of common law"]
["BE706","SC / CV /  SC: Cooperative partnership","Société coopérative /  Coöperatieve vennootschap / Öffentlich-rechtliche Kommanditgesellschaft"]
["BE716","SC DPU / CV PR /  SDPU: Cooperative partnership, governed by public law","Société coopérative de droit public / Coöperatieve vennootschap van publiek recht / Genossenschaft"]
["BE721","SASPJ: Société ou association sans personnalité juridique / VVZRL: Vennootschap of vereniging zonder rechtspersoonlijkheid / GVoRP: Gesellschaften oder Vereinigungen ohne Rechtspersönlichkeit","SASPJ / VVZRL / GVoRP: Company or association without legal personality"]
["BG101","AD: Акционерно дружество (АД)","AD: Joint-stock company"]
["BG102","OOD: Дружество с ограничена отговорност (ООД)","OOD: Limited liability company"]
["BG103","KDA: Командиртно дружество с акции (КДА)","KDA: Partnership limited by shares"]
["BG104","EAD: Еднолично акционерно дружество (ЕАД)","EAD: Single person joint-stock company"]
["BG105","EOOD: Еднолично дружество с ограничена отговорност (ЕООД)","EOOD: Single person limited liability company"]
["BG106","KD: Командиртно дружество (КД)","KD: Limited partnership"]
["BG107","SD/S-ie: Събирателно дружество (СД)/Съдружие (С-ие)","SD/S-ie: General partnership"]
["BG1539","ADSIC: Акционерно дружество със специална инвестиционна цел (АДСИЦ)","ADSIC: Joint-Stock Special Investment Company"]
["BG462","ET: Едноличен търговец (ЕТ)","ET: Sole proprietor"]
["BG466","Coop: Кооперация","Coop: Cooperation/Cooperative society"]
["BG472","DZZD: Дружество учредено по Закона за задълженията и договорите (ДЗЗД)","DZZD: Partnership by Law of Obligations And Contracts"]
["CY102","LTD: Ιδιωτική Εταιρεία","LTD: Private limited company/ Ltd"]
["CY103","PLC: Δημόσια Εταιρεία","PLC: Public limited company/ Plc"]
["CY109","P: Συνεταιρισμός ","P: Partnership"]
["CY111","COOP: Συνεργατικά Πιστωτικά Ιδρύματα ","COOP: Cooperative Societies "]
["CY112","SP: Αυτοτελώς εργαζόμενος","SP: Sole proprietorship"]
["CY113","SF: Σωματεία και Ιδρυμάτα ","SF: Societies & Foundations "]
["CY114","PUBLaw: Οντότητες που διέπονται από το δημόσιο δίκαιο","PUBLaw: Entities governed by public law"]
["CY115","B: Eμπορική Επωνυμία","B: Business Name"]
["CY116","PF: Ταμεία Προνοίας/ Συντάξεως","PF: Pension/ Provident Funds"]
["CY117","OTH: Άλλη νομική μορφή","OTH: Other legal form"]
["CZ100","Podnikající fyzická osoba tuzemská","Natural person in business (sole proprietor)"]
["CZ111","v.o.s.: Veřejná obchodní společnost","v.o.s.: General partnership"]
["CZ112","s.r.o.: Společnost s ručením omezeným","s.r.o.: Ltd (UK)"]
["CZ113","k.s.: Společnost komanditní","k.s.: Limited partnership"]
["CZ115","Společný podnik","Joint venture"]
["CZ116","z.s.: Zájmové sdružení","z.s.: Special interest club"]
["CZ117","Nadace","Foundation"]
["CZ118","Nadační fond","Foundation fund"]
["CZ121","a.s.: Akciová společnost","a.s.: Plc (UK)"]
["CZ141","o.p.s.: Obecně prospěšná společnost","o.p.s.: One of the legal forms for non-governmental non-profit organizations"]
["CZ145","svj: Společenství vlastníků jednotek","svj: Owners’ association (apartment owners’ association)"]
["CZ151","Komoditní burza","Commodity exchange"]
["CZ152","Garanční fond obchodníků s cennými papíry","Guarantee Fund of Investment Firms"]
["CZ161","Ústav","Institute"]
["CZ205","Družstvo","Cooperative"]
["CZ301","s.p.: Státní podnik","s.p.: State enterprise"]
["CZ313","Česká národní banka","Czech National Bank"]
["CZ325","Organizační složka státu","Organisational unit of the state"]
["CZ326","Stálý rozhodčí soud","Permanent Court of Arbitration"]
["CZ331","p.o.: Příspěvková organizace","p.o.: Subsidised organisation, semi-budgetary organisation"]
["CZ352","Správa železniční dopravní cesty, státní organizace","Railway Transport Route Administration (state organisation)"]
["CZ353","Rada pro veřejný dohled nad auditem","Council for Public Audit Supervision"]
["CZ361","Veřejnoprávní instituce (ČT,ČRo,ČTK)","Public law institution (Czech Television, Czech Radio, Czech Press Agency)"]
["CZ381","Fond (ze zákona)","Fund (statutory)"]
["CZ391","Zdravotní pojišťovna","Health insurance company"]
["CZ421","Odštěpný závod zahraniční právnické osoby","Branch of the foreign legal entity"]
["CZ422","Organizační složka zahraničního nadačního fondu","Organisational unit of a foreign foundation fund"]
["CZ423","Organizační složka zahraniční nadace","Organisational unit of a foreign foundation"]
["CZ424","Zahraniční fyzická osoba","Foreign natural person"]
["CZ425","Odštěpný závod zahraniční fyzické osoby","Branch of foreign natural person"]
["CZ426","Zastoupení zahraniční banky","Foreign bank representative office"]
["CZ501","Odštěpný závod nebo jiná organizační složka podniku zapisující se do obchodního rejstříku","Branch or other organisational unit of an incorporated enterprise"]
["CZ521","Samostatná drobná provozovna obecního úřadu","Independent small office of a municipal office"]
["CZ541","Podílový nebo penzijní fond","Unit trust or pension fund"]
["CZ601","Vysoká škola","University, college"]
["CZ641","Školská právnická osoba","Educational legal entity"]
["CZ661","Veřejná výzkumná instituce","Public research institution"]
["CZ703","Odborová organizace a organizace zaměstnavatelů","Trade union organisation and emloyers’ organisation"]
["CZ704","Zvláštní organizace pro zastoupení českých zájmů v mezinárodních nevládních organizacích","Special organisation to represent Czech interests in international non-governmental organisations"]
["CZ705","Podnik nebo hospodářské zařízení sdružení","Enterprise or economic organisation of an association"]
["CZ706","Spolek","Society"]
["CZ707","Odborová organizace","Trade union organisation"]
["CZ708","Organizace zaměstnavatelů","Employers organisation"]
["CZ711","Politická strana, politické hnutí","Political party, political movement"]
["CZ715","Podnik nebo hospodářské zařízení politické strany","Enterprise or economic organisation of a political party"]
["CZ721","Církevní organizace a náboženské společnosti","Church organisation and religious societes"]
["CZ722","Evidované církevní právnické osoby","Registered church (legal entity)"]
["CZ723","Svazy církví a náboženských společností","Unions of churches and religious societies"]
["CZ731","Organizační jednotka sdružení","Organisational unit of an association"]
["CZ732","Organizační jednotka politické strany nebo politického hnutí","Organisational unit of a political party or political movement"]
["CZ733","Organizační jednotka odborové organizace a organizace zaměstnavatelů","Organisational unit of a trade union organisation and emloyers’ organisation"]
["CZ734","Organizační jednotka zvláštní organizace pro zastoupení českých zájmů v mezinárodních nevládních organizacích","Special organisation to represent Czech interests in international non-governmental organisations"]
["CZ736","Pobočný spolek","Subsidiary society"]
["CZ741","Stavovská organizace - profesní komora","Professional chamber"]
["CZ745","Komora (s výjimkou profesních komor)","Chamber (excluding professional chambers)"]
["CZ751","Zájmové sdružení právnických osob","Special interest club of legal entities"]
["CZ761","Honební společenstvo","Hunting society"]
["CZ771","Svazek obcí","Union of municipalities"]
["CZ801","Obec nebo městská část hlavního města Prahy","Municipality or city district of Prague"]
["CZ804","Kraj a hlavní město Praha","Region or capital city Prague"]
["CZ805","Regionální rada regionu soudržnosti","Regional Council of a cohesion region"]
["CZ901","Zastupitelský orgán jiných států","Representative office of another state"]
["CZ906","Zahraniční spolek","Foreign society"]
["CZ907","Mezinárodní odborová organizace","International trade union organisation"]
["CZ908","Mezinárodní organizace zaměstnavatelů","International organisation of employers"]
["CZ911","Zahraniční kulturní, informační středisko, rozhlasová, tisková a televizní agentura","Foreign cultural or information centre, radio, press or television agency"]
["CZ921","Mezinárodní nevládní organizace","International non-governmental organisation"]
["CZ922","Organizační jednotka mezinárodní nevládní organizace","Organisational unit of the international non-governmental organisation"]
["CZ931","EZHS: Evropské zájmové hospodářské sdružení","An eu legal entity designed to enable cross-border cooperation between companies"]
["CZ932","ES: Evropská společnost","ES: A european (public) limited company (societas europaea) - Plc (UK)"]
["CZ933","SCE: Evropská družstevní společnost","SCE: A european cooperative (societas cooperativa europaea)"]
["CZ936","Zahraniční pobočný spolek","Foreign subsidiary society"]
["CZ937","Pobočná mezinárodní odborová organizace","Subsidiary international trade union organisation"]
["CZ938","Pobočná mezinárodní organizace zaměstnavatelů","Subsidiary international organisation of employers"]
["CZ941","Evropské seskupení pro územní spolupráci","European grouping of territorial cooperation"]
["CZ950","Subjekt právním řádem výslovně neupravený","Entity not explicitly defined by law"]
["CZ951","Mezinárodní vojenská organizace","International military organization"]
["CZ960","Právnická osoba zřízená zvláštním zákonem zapisovaná do veřejného rejstříku","Legal entity of an public register established by the special law"]
["CZ961","Svěřenský fond","Trust fund"]
["CZ962","Zahraniční svěřenský fond","Foreign trust fund"]
["DE101","GbR: Gesellschaft bürgerlichen Rechts / BGB-Gesellschaft","GbR: Partnership under civil law"]
["DE102","OHG: Offene Handelsgesellschaft","OHG: General partnership"]
["DE103","KG: Kommanditgesellschaft","KG: Limited partnership"]
["DE105","PartG: Partnerschaftsgesellschaft","PartG: Registered partnership company"]
["DE108",".. & Co. KG: Kommanditgesellschaft mit haftungsbeschränktem Komplementär",".. & Co. KG: Limited partnership (fully limited)"]
["DE109",".. & Co. KGaA: Kommanditgesellschaft auf Aktien mit haftungsbeschränktem Komplementär",".. & Co. KGaA: Partnership limited by shares (fully limited)"]
["DE110",".. & Co. OHG: Offene Handelsgesellschaft mit haftungsbeschränktem Gesellschafter",".. & Co. OHG: General partnership (partially limited)"]
["DE201","AG: Aktiengesellschaft","AG: Company limited by shares, like a Plc."]
["DE202","KGaA: Kommanditgesellschaft auf Aktien","KGaA: Partnership limited by shares"]
["DE206","GmbH: Gesellschaft mit beschränkter Haftung","GmbH: Private limited company, like a Ltd."]
["DE207","UG (haftungsbeschränkt): Unternehmergesellschaft (haftungsbeschränkt)","UG (haftungsbeschränkt): Private limited company, like a Ltd."]
["DE210","ÖPP: Öffentlich-private Partnerschaft","ÖPP: Public-private-Partnership"]
["DE301","eG: Eingetragene Genossenschaft","eG: Registered cooperative company"]
["DE401","VVaG: Versicherungsverein auf Gegenseitigkeit","VVaG: Mutual insurance company"]
["DE501","G: Gebietskörperschaft","G: Regional Authority"]
["DE502","AöR: Anstalt des öffentlichen Rechts","AöR: Corporation established under public law"]
["DE503","KöR: Körperschaft des öffentlichen Rechts","KöR: Corporation established under public law"]
["DE504","SöR: Stiftung des öffentlichen Rechts","SöR: Public foundation"]
["DE505","BeG: Betriebe der Gebietskörperschaften","BeG: Municipal undertaking"]
["DE507","ZweckV: Zweckverband","ZweckV: Corporation established under public law"]
["DE601","SpR: Stiftung des privaten Rechts","SpR: Private foundation"]
["DE602","e.V.: Eingetragener Verein","e.V.: Registered association"]
["DE605","SnP: Sonstige nichtrechtsfähige Personenvereinigung","SnP: Other association of individuals without legal capacity"]
["DE701","Sonstige: Sonstige","Sonstige: Other"]
["DK100","Erhvervsdrivende fond","Commercial foundation"]
["DK110","Forening","Association"]
["DK115","Frivillig forening","Voluntary association"]
["DK130","Andelsselskab (-forening)","Cooperative society"]
["DK140","a.m.b.a.: Andelsselskab (-forening) begr. ansvar","a.m.b.a.: Limited liability cooperative society"]
["DK150","Forening eller selskab med begr. ansvar","Limited liability association"]
["DK151","s.m.b.a.: Selskab med begrænset ansvar","s.m.b.a.: Limited liability company"]
["DK152","f.m.b.a.: Forening med begrænset ansvar","f.m.b.a.: Limited liability association"]
["DK20","Dødsbo","Estate of deceased person"]
["DK230","Statslig administrativ enhed","Entitiy of central government"]
["DK235","Selvstændig offentlig virksomhed","Independent public company"]
["DK240","Amtskommune","County"]
["DK245","Region","Region"]
["DK250","Primærkommune","Municipality"]
["DK260","Folkekirkelige Institutioner","Establishmentarian church institution"]
["DK280","Øvrige virksomhedsformer","Other companies"]
["DK285","Særlig Finansiel virksomhed","Special financial company"]
["DK30","I/S: Interessentskab","I/S: General partnership"]
["DK40","K/S: Kommanditselskab","K/S: Limited partnership"]
["DK45","Medarbejderinvesteringsselskab","Employee investment company"]
["DK50","Partrederi","Shipping partnership"]
["DK60","A/S: Aktieselskab","A/S: Limited company"]
["DK70","Kommanditaktieselskab/Partnerselskab","Limited partnership"]
["DK80","ApS: Anpartselskab","ApS: Private limited company"]
["DK81","IVS: Iværksætterselskab","IVS: Entrepreneurial limited company"]
["DK90","Fonde og andre selvejende institutioner","Self-governing institution, association, foundation etc."]
["EE101","AS: Aktsiaselts","AS: Public limited company"]
["EE102","OÜ: Osaühing","OÜ: Private limited company"]
["EE201","TÜ: Täisühing","TÜ: General partnership"]
["EE202","UÜ: Usaldusühing","UÜ: Limited partnership"]
["EE203","MTÜ: Mittetulundusühing","MTÜ: Non-profit association"]
["EE204","TuÜ: Tulundusühistu","TuÜ: Commercial association"]
["EE205","SA: Sihtasutus","SA: Foundation"]
["EE206","RKOA: Riigi ja kohaliku omavalitsuse asutused","RKOA: Central and local government authorities"]
["EE207","KÜ: Korteriühistu","KÜ: Apartment association"]
["ESC04","SA: Sociedad Anónima","SA: Public limited company"]
["ESC05","SAU: Sociedad Anónima Unipersonal","SAU: Single-member public limited company"]
["ESC06","SAL/SA LABORAL: Sociedad Anónima Laboral","SAL/SA LABORAL: Worker-owned public limited company"]
["ESC07","SL/SRL: Sociedad de responsabilidad limitada","SL/SRL: Private limited company"]
["ESC08","SLU/SRLU: Sociedad Limitada Unipersonal","SLU/SRLU: Single-member private limited company"]
["ESC09","SLL/SL LABORAL: Sociedad Limitada Laboral","SLL/SL LABORAL: Worker-owned private limited company"]
["ESC10","SLNE: Sociedad Limitada Nueva Empresa","SLNE: New firm private limited company"]
["ESC11","SC/SRC: Sociedad colectiva","SC/SRC: General partnerships"]
["ESC12","S. EN C. o S. COM.: Sociedad Comanditaria Simple","S. EN C. o S. COM.: Simple limited partnership"]
["ESC13","S. COM. P.A.: Sociedad Comanditaria por acciones","S. COM. P.A.: Limited stock partnership"]
["ESC14","S COOP: Sociedad Cooperativa","S COOP: Cooperative company"]
["ESC16","SGR: Sociedad de garantía recíproca","SGR: Mutual Guarantee Company"]
["ESC17","SAT: Sociedad agraria de transformación","SAT: Farming partnerships"]
["ESC19","Sociedad Civil con personalidad jurídica","Non-commercial partnership with independent legal status"]
["ESC20","Mutua","Mutual company"]
["ESC21","AIE: Agrupación de Interés económico","AIE: Economic interest grouping"]
["ESC25","Otras formas jurídicas","Other legal forms"]
["ESC30","SP: Sociedad profesional","SP: Private company of professional members"]
["ESC31","Fundación","Foundation"]
["ESC32","Asociaciones y otras instituciones sin fines de lucro a servicio de los hogares","Associations and other non-profit institutions serving households"]
["ESC33","Entidad de derecho público","Public law entity"]
["ESC34","Fondo de inversión sin personalidad jurídica","Investment funds without independent legal status"]
["EU100","SE: Societas Europea","European company (a type of public, limited-liability company regulated under EU law)"]
["EU200","SCE: Societas Cooperativa Europea","SCE: European cooperative society"]
["EU300","EEIG: European Economic Interest Grouping","EEIG: European economic interest grouping"]
["EU400","EGTC: European Grouping of Territorial cooperation","EGTC: European Grouping of Territorial cooperation"]
["FBRANCH","Zahraniční pobočka (formální)","Conventional legal form for the branch of a foreign entity"]
["FFOP","Zahraniční FOP","Foreighn Entrepreneur"]
["FI10","Avoin yhtiö","General partnership"]
["FI11","ky/kb: Kommandiittiyhtiö","ky/kb: Limited partnership"]
["FI12","oy/oyj/ab/abp: Osakeyhtiö","oy/oyj/ab/abp: Limited company"]
["FI13","as oy: Asunto-osakeyhtiö","as oy: Housing company"]
["FI14","Laivanisännistöyhtiö","Shipping company under joint ownership"]
["FI16","Keskinäinen kiinteistö-Oy","Mutual joint-stock property company"]
["FI17","Muu kiinteistö Oy (ei-keskinäinen)","Other joint-stock property company (not mutual)"]
["FI19","Muu yhtiö","Other enterprise"]
["FI20","Aatteellinen yhdistys","Voluntary association"]
["FI21","Erityislainsäädäntöön perustuva yhdistys","Association based on separate legislation"]
["FI22","Keskinäinen vahinkovakuutusyhdistys","Mutual indemnity insurance association"]
["FI23","Metsänhoitoyhdistys","Forestry society"]
["FI24","op: Osuuspankki","op: Cooperative bank"]
["FI25","osk: Osuuskunta","osk: Co-operative society"]
["FI26","Avustuskassa","Mutual benefit society"]
["FI27","Työttömyyskassa","Unemployment fund"]
["FI28","Muu taloudellinen yhdistys","Other economic association"]
["FI29","Muu yhdistys","Other association"]
["FI30","sr: Säätiö (säätiölain mukainen)","sr: Foundation (according to the Foundations Act)"]
["FI31","sp: Säästöpankki","sp: Savings bank"]
["FI32","Eläkesäätiö (säädekirjalla perustettu)","Pension foundation (founded by a charter of foundation)"]
["FI33","Työeläkekassa","Pension fund"]
["FI35","Hypoteekkiyhdistys","Mortgage society"]
["FI39","Muu säätiö","Other foundation"]
["FI40","Valtio ja sen laitokset","State and its agencies"]
["FI41","Kunta","Municipality"]
["FI42","Kuntayhtymä","Joint municipal board"]
["FI43","Ahvenanmaan maakunta ja sen virastot","Region of Åland and its agencies"]
["FI44","Evankelis-luterilainen kirkko","Evangelical Lutheran Church"]
["FI45","Ortodoksinen kirkko","Greek Orthodox Church"]
["FI46","Rekisteröity uskonnollinen yhdyskunta","Registered religious community"]
["FI47","Ylioppilaskunta tai osakunta","Students' union or association"]
["FI48","Erillishallinnollinen valtion laitos","Governmental institution with separate administration"]
["FI49","Muu julkisoikeudellinen oikeushenkilö","Other legal person subject to public law"]
["FI50","Yhteisetuudet (esim. kalastuskunta)","Mutual interest bodies (e.g. fishery collectives)"]
["FI51","Verotusyhtymä","Corporation subject to taxation"]
["FI52","Yhteisvastuullinen pidätysvelvollinen","Body jointly and severally liable for tax withholding"]
["FI54","Konkurssipesä","Bankrupt’s estate"]
["FI55","Yhteismetsä","Jointly owned forest"]
["FI57","Elinkeinoyhtymä","Trade association"]
["FI59","Muu verotuksen yksikkö","Other units subject to taxation"]
["FI60","Valtion liikelaitos","State-owned company"]
["FI61","Kunnallinen liikelaitos","Municipally-owned company"]
["FI62","Kuntainliiton (kuntayhtymän) liikelaitos","Joint local authority company"]
["FI63","Ahvenanmaan liikelaitos","Company owned by the Regional Government of Åland"]
["FI99","Muut (esim. tilapäinen oikeudellinen muoto)","Others (e.g. temporary legal form)"]
["FR0000","Organisme de placement collectif en valeurs mobilières sans personnalité morale","Undertaking for collective investment in transferable securities without legal personality"]
["FR001","SARL, SÀRL: Société à responsabilité limitée","SARL, SÀRL: Limited Liability (UK)"]
["FR002","SA : Société anonyme","SA : Public Limited Company Plc (UK)"]
["FR003","SCA: Société en commandite par actions","SCA: Publicly traded partnership"]
["FR004","SICAV: Société d'investissement à capital variable","SICAV: Investment company with variable capital (icvc), open-ended investment company (oeic) (UK)"]
["FR005","Société d'investissement à capital fixe","Investment trust (UK)"]
["FR006","EURL: Entreprise unipersonnelle à responsabilité limitée","EURL: Single shareholder limited company (sme pvt) (UK)"]
["FR007","SCOP : Société coopérative de production","SCOP : Cooperative corporation"]
["FR008","SEM: Société d'économie mixte","SEM: Government-owned corporation"]
["FR009","SAS : Société par actions simplifiée","SAS : Unlisted public company"]
["FR010","Micro-entreprise","Special framework for minute businesses, a recent addition to french business law -with both revenue and pre-tax net income caps, of which auto-entrepreneur (below) is a special case"]
["FR0110","FCP: Fonds commun de placement dénués de personnalité morale","FCP: Mutual fund without legal personality"]
["FR012","Profession libérale","Sole proprietorship"]
["FR0120","OT: Organismes de titrisation dénués de personnalité morale","OT: Securitization bodies without legal personality"]
["FR013","Sociétés d'exercice libéral","The incorporated equivalent of the latter, sole shareholder limited liability being key"]
["FR014","EI: Entreprise individuelle/entreprise en nom personnel","EI: Sole Proprietorship"]
["FR015","EURL, SASU: U-unipersonnelle","EURL, SASU: Limited liability, sole shareholder ltd. company (UK)"]
["FR016","FCP: Fond commun de placement","FCP: Unincorporated investment fund"]
["FR017","GIE: Groupement d'intérêt économique","GIE: Economic interest grouping"]
["FR018","Association","Nonprofit association"]
["FR019","Association non-déclarée","Unincorporated association (UK)"]
["FR020","Association déclarée","Incorporated association"]
["FR021","SEP: Société en participation","SEP: Equity partnership"]
["FR022","SNC: Société en nom collectif","SNC: General partnership"]
["FR024","Association coopérative de droit local"]
["FR025","Etablissement de crédit sans but lucratif à conseil d'administration(outre-mer)"]
["FR026","Etablissement de crédit sans but lucratif à conseil d'orientation et de surveillance - Loi du 1er juillet 1983"]
["FR027","Etablissement de crédit sans but lucratif à conseil d'orientation et de surveillance (Outre-mer)"]
["FR028","Etablissement de crédit sans but lucratif-conseil d'orientation et de surveillance et directoire-Loi du 1er juillet 1983"]
["FR029","Etablissement public communal à caractère industriel ou commercial"]
["FR030","Etablissement public communal administratif"]
["FR031","Etablissement public communal de crédit et d'aide sociale"]
["FR032","Etablissement public industriel et commercial"]
["FR033","Etablissement public national à caractère industriel ou commercial"]
["FR034","Etablissement public national administratif"]
["FR035","Etablissement public national administratif à conseil de surveillance"]
["FR036","Société anonyme à capital variable"]
["FR037","Société anonyme coopérative à capital fixe"]
["FR038","Société anonyme coopérative à capital variable à conseil d'administration"]
["FR039","Société anonyme coopérative à capital variable à directoire et à conseil de surveillance"]
["FR040","Société anonyme coopérative de banque à conseil d'administration"]
["FR041","Société anonyme coopérative de banque à directoire et à conseil de surveillance"]
["FR042","Forme mutuelle avec intermédiaires"]
["FR043","Forme mutuelle sans intermédiaires"]
["FR044","Mutuelle locale et professionnelle"]
["FR045","Mutuelle agricole"]
["FR046","Tontine"]
["FR047","Société anonyme coopérative de banque populaire à capital fixe - Art. L512-2,3 et 4"]
["FR048","Pools contrôlés"]
["FR049","Institution de prévoyance"]
["FR050","Origine CCMIP - mutuelles"]
["FR051","Société anonyme coopérative de banque populaire à capital variable - Art. L512-2 et suivants"]
["FR052","Société anonyme coopérative de caution mutuelle à capital variable - Art. L515-4 à L515-12"]
["FR053","Société anonyme d'économie mixte"]
["FR054","Société civile"]
["FR055","Société coopérative à capital variable - Art. L512-20 à L512-54"]
["FR056","Société coopérative à capital variable - Art. L512-68 à L512-84"]
["FR057","Société coopérative de banque populaire à capital fixe -    Art. L512-2,3 et 4"]
["FR058","Société coopérative de banque populaire à capital variable -Art. L512-2,3 et 4"]
["FR059","Société coopérative de caution mutuelle à capital variable -Art. L515-4 à L515-12"]
["FR060","Société coopérative, conseil d'orientation et de surveillance et directoire -  Art. L512-85 à 104 (à capital fixe)"]
["FR061","Société professionnelle - Loi du 17 novembre 1943"]
["FR062","Union de sociétés coopératives à capital variable"]
["FR063","Union de sociétés coopératives à capital variable - Art. L512-20 à L512-54"]
["FR064","Société en commandite simple"]
["FR065","Société coopérative à capital fixe"]
["FR066","Société coopérative à capital variable"]
["FR1100","Artisan-commerçant"]
["FR1200","Commerçant"]
["FR1300","Artisan"]
["FR1400","Officier public ou ministériel"]
["FR1500","Profession libérale"]
["FR1600","Exploitant agricole"]
["FR1700","Agent commercial"]
["FR1800","Associé gérant de Société"]
["FR2110","Indivision entre personnes physiques"]
["FR2120","Indivision avec personne morale"]
["FR2210","Société créée de fait entre personnes physiques","De facto company created between natural persons"]
["FR2220","Société créée de fait avec personne morale","De facto company created with a legal entity"]
["FR2310","Société en participation entre personnes physiques","Joint venture between natural persons"]
["FR2320","Société en participation avec personne morale","Joint venture with a legal entity"]
["FR2385","Société en participation de professions libérales","Joint venture between professionals"]
["FR2400","Fiducie","Trust"]
["FR2700","Paroisse hors zone concordataire","Parish not subject to concordat law"]
["FR2900","Autre groupement de droit privé non doté de la personnalité morale","Other private-law group not having legal personality"]
["FR3110","Représentation ou agence commerciale d'état ou organisme public étranger immatriculé au RCS"]
["FR3120","Société commerciale étrangère immatriculée au RCS"]
["FR3205","Organisation internationale"]
["FR3210","État, collectivité ou établissement public étranger"]
["FR3220","Société étrangère non immatriculée au RCS"]
["FR3290","Autre personne morale de droit étranger"]
["FR4110","Établissement public national à caractère industriel ou commercial doté d'un comptable public","National industrial or commercial public undertaking having a public accountant"]
["FR4120","Établissement public national à caractère industriel ou commercial non doté d'un comptable public","National industrial or commercial public undertaking not having a public accountant"]
["FR4130","Exploitant public","Public operator"]
["FR4140","Établissement public local à caractère industriel ou commercial","Local industrial or commercial public undertaking"]
["FR4150","Régie d'une collectivité locale à caractère industriel ou commercial","Management of an industrial or commercial local authority"]
["FR4160","Institution Banque de France","Bank of France institution"]
["FR5130","Société en libre partenariat (SLP)","Free partnership company (SLP)"]
["FR5191","Société de caution mutuelle","Mutual guarantee company"]
["FR5192","Société coopérative de banque populaire","A popular bank cooperative"]
["FR5193","Caisse de crédit maritime mutuel","Mutual maritime lending institution"]
["FR5194","Caisse (fédérale) de crédit mutuel","(Federal) mutal lending institution"]
["FR5195","Association coopérative inscrite (droit local Alsace Moselle)","Registered cooperative association (local law of Alsace Moselle)"]
["FR5196","Caisse d'épargne et de prévoyance à forme coopérative","Cooperative savings and provident bank"]
["FR5202","Société en nom collectif","Commercial partnership"]
["FR5203","Société en nom collectif coopérative","Cooperative commercial partnership"]
["FR5306","Société en commandite simple","Ordinary limited partnership"]
["FR5307","Société en commandite simple coopérative","Ordinary cooperative limited partnership"]
["FR5308","Société en commandite par actions","Partnership limited by shares"]
["FR5309","Société en commandite par actions coopérative","Cooperative partnership limited by shares"]
["FR5370","SPFPL SCA: Société de Participations Financières de Profession Libérale Société en commandite par actions","Professional holding company Partnership limited by shares"]
["FR5385","Société d'exercice libéral en commandite par actions","Partnership limited by shares for a professional private practice"]
["FR5410","SARL nationale","National limited liability company"]
["FR5415","SARL d'économie mixte","Mixed economy limited liability company"]
["FR5422","SARL immobilière pour le commerce et l'industrie (SICOMI)","Limited liability real estate company for trade and industry"]
["FR5426","SARL immobilière de gestion","Limited liability real estate management company"]
["FR5430","SARL d'aménagement foncier et d'équipement rural (SAFER)","Limited liability company for land development and rural establishment"]
["FR5431","SARL mixte d'intérêt agricole (SMIA)","Limited liability company with mixed agricultural purposes"]
["FR5432","SARL d'intérêt collectif agricole (SICA)","Limited liability company for collective agricultural purposes"]
["FR5442","SARL d'attribution","Limited liability allocation company"]
["FR5443","SARL coopérative de construction","Cooperative construction limited liability company"]
["FR5451","SARL coopérative de consommation","Cooperative consumer limited liability company"]
["FR5453","SARL coopérative artisanale","Cooperative craftworkers' limited liability company"]
["FR5454","SARL coopérative d'intérêt maritime","Cooperative limited liability company for maritime purposes"]
["FR5455","SARL coopérative de transport","Cooperative limited liability transport company"]
["FR5458","SARL coopérative ouvrière de production (SCOP)","Cooperative workers' production limited liability company"]
["FR5459","SARL union de sociétés coopératives","Limited liability union of cooperative companies"]
["FR5460","Autre SARL coopérative","Other cooperative limited liability company"]
["FR5470","SPFPL SARL: Société de Participations Financières de Profession Libérale Société à responsabilité limitée","SPFPL SARL: Professional holding company Limited liability company"]
["FR5485","Société d'exercice libéral à responsabilité limitée","Limited liability company for a professional private practice"]
["FR5499","Société à responsabilité limitée (sans autre indication)","Limited liability company (with no further details)"]
["FR5505","SA à participation ouvrière à conseil d'administration","Workers' cooperative in the form of a public limited company with a board of directors"]
["FR5510","SA nationale à conseil d'administration","National public limited company with a board of directors"]
["FR5515","SA d'économie mixte à conseil d'administration","Mixed economy public limited company with a board of directors"]
["FR5520","Société d'investissement à capital variable (SICAV) à conseil d'administration","Open-end investment company with a board of directors"]
["FR5522","SA immobilière pour le commerce et l'industrie (SICOMI) à conseil d'administration","Real estate public limited company for trade and industry with a board of directors"]
["FR5525","SA immobilière d'investissement à conseil d'administration","Real estate investment public limited company with a board of directors"]
["FR5530","SA d'aménagement foncier et d'équipement rural (SAFER) à conseil d'administration","Public limited company for land development and rural establishment with a board of directors"]
["FR5531","Société anonyme mixte d'intérêt agricole (SMIA) à conseil d'administration","Public limited company with mixed agricultural purposes with a board of directors"]
["FR5532","SA d'intérêt collectif agricole (SICA) à conseil d'administration","Public limited company for collective agricultural purposes with a board of directors"]
["FR5542","SA d'attribution à conseil d'administration","Public limited allocation company with a board of directors"]
["FR5543","SA coopérative de construction à conseil d'administration","Public limited cooperative construction company with a board of directors"]
["FR5546","SA de HLM à conseil d'administration","Affordable housing public limited company with a board of directors"]
["FR5547","SA coopérative de production de HLM à conseil d'administration","Cooperative affordable housing production public limited company with a board of directors"]
["FR5548","SA de crédit immobilier à conseil d'administration","Real estate lending public limited company with a board of directors"]
["FR5551","SA coopérative de consommation à conseil d'administration","Consumer cooperative public limited company with a board of directors"]
["FR5552","SA coopérative de commerçants-détaillants à conseil d'administration","Retailers' cooperative public limited company with a board of directors"]
["FR5553","SA coopérative artisanale à conseil d'administration","Cooperative craftworkers' public limited company with a board of directors"]
["FR5554","SA coopérative (d'intérêt) maritime à conseil d'administration","Cooperative public limited company for maritime purposes with a board of directors"]
["FR5555","SA coopérative de transport à conseil d'administration","Cooperative transport public limited company with a board of directors"]
["FR5558","SA coopérative ouvrière de production (SCOP) à conseil d'administration","Cooperative workers' production public limited company with a board of directors"]
["FR5559","SA union de sociétés coopératives à conseil d'administration","Union of cooperative companies public limited company with a board of directors"]
["FR5560","Autre SA coopérative à conseil d'administration","Other cooperative public limited company with a board of directors"]
["FR5570","Société de Participations Financières de Profession Libérale Société anonyme à conseil d'administration (SPFPL SA à conseil d'administration)","Professional holding company Public liability company with a board of directors"]
["FR5585","Société d'exercice libéral à forme anonyme à conseil d'administration","Public limited company for a professional private practice with a board of directors"]
["FR5599","SA à conseil d'administration (s.a.i.)","Public limited company with a board of directors (real estate public limited company)"]
["FR5605","SA à participation ouvrière à directoire","Workers' cooperative in the form of a public limited company with a management board"]
["FR5610","SA nationale à directoire","National public limited company with a management board"]
["FR5615","SA d'économie mixte à directoire","Mixed economy public limited company with a management board"]
["FR5620","Société d'investissement à capital variable (SICAV) à directoire","Open-end investment company with a management board"]
["FR5622","SA immobilière pour le commerce et l'industrie (SICOMI) à directoire","Real estate public limited company for trade and industry with a management board"]
["FR5625","SA immobilière d'investissement à directoire","Real estate investment public limited company with a management board"]
["FR5630","Safer anonyme à directoire","Public limited company for land development and rural establishment with a management board"]
["FR5631","SA mixte d'intérêt agricole (SMIA)","Public limited company with mixed agricultural purposes with a management board"]
["FR5632","SA d'intérêt collectif agricole (SICA)","Public limited company for collective agricultural purposes with a management board"]
["FR5642","SA d'attribution à directoire","Public limited allocation company with a management board"]
["FR5643","SA coopérative de construction à directoire","Public limited cooperative construction company with a management board"]
["FR5646","SA de HLM à directoire","Affordable housing public limited company with a management board"]
["FR5647","Société coopérative de production de HLM anonyme à directoire","Cooperative affordable housing production public limited company with a management board"]
["FR5648","SA de crédit immobilier à directoire","Real estate lending public limited company with a management board"]
["FR5651","SA coopérative de consommation à directoire","Consumer cooperative public limited company with a management board"]
["FR5652","SA coopérative de commerçants-détaillants à directoire","Retailers' cooperative public limited company with a management board"]
["FR5653","SA coopérative artisanale à directoire","Cooperative craftworkers' public limited company with a management board"]
["FR5654","SA coopérative d'intérêt maritime à directoire","Cooperative public limited company for maritime purposes with a management board"]
["FR5655","SA coopérative de transport à directoire","Cooperative transport public limited company with a management board"]
["FR5658","SA coopérative ouvrière de production (SCOP) à directoire","Cooperative workers' production public limited company with a management board"]
["FR5659","SA union de sociétés coopératives à directoire","Union of cooperative companies public limited company with a management board"]
["FR5660","Autre SA coopérative à directoire","Other cooperative public limited company with a management board"]
["FR5670","Société de Participations Financières de Profession Libérale Société anonyme à Directoire (SPFPL SA à directoire)","Professional holding company Public limited company with a management board"]
["FR5685","Société d'exercice libéral à forme anonyme à directoire","Public limited company for a professional private practice with a management board"]
["FR5699","SA à directoire (s.a.i.)","Public limited company with a management board (real estate public limited company)"]
["FR5710","SAS, société par actions simplifiée","Simplified joint stock company"]
["FR5770","SPFPL SAS: Société de Participations Financières de Profession Libérale Société par actions simplifiée","Professional holding company Simplified joint stock company"]
["FR5785","Société d'exercice libéral par action simplifiée","Simplifed joint stock company for a professional private practice"]
["FR6100","Caisse d'Épargne et de Prévoyance","Savings and provident bank"]
["FR6220","GIE: Groupement d'intérêt économique","Economic interest grouping"]
["FR6316","CUMA: Coopérative d'utilisation de matériel agricole en commun","Cooperative for shared use of agricultural equipment"]
["FR6317","Société coopérative agricole","Agricultural cooperative"]
["FR6318","Union de sociétés coopératives agricoles","Union of agricultural cooperatives"]
["FR6411","Société d'assurance à forme mutuelle","Mutual insurance company"]
["FR6511","Sociétés Interprofessionnelles de Soins Ambulatoires ","Inter-professional outpatient care companies"]
["FR6521","SCPI: Société civile de placement collectif immobilier","Collective real estate investment civil-law company"]
["FR6532","Société civile d'intérêt collectif agricole (SICA)","Civil-law company for collective agricultural purposes"]
["FR6533","GAEC: Groupement agricole d'exploitation en commun","Collective farming grouping "]
["FR6534","Groupement foncier agricole","Agricultural land grouping"]
["FR6535","Groupement agricole foncier","Agricultural land grouping"]
["FR6536","Groupement forestier","Forestry grouping"]
["FR6537","Groupement pastoral","Pastoral grouping"]
["FR6538","Groupement foncier et rural","Land and rural grouping"]
["FR6539","Société civile foncière","Land civil-law company"]
["FR6540","Société civile immobilière","Property civil-law company"]
["FR6541","Société civile immobilière de construction-vente","Property civil-law company for construction and sale"]
["FR6542","Société civile d'attribution","Civil-law allocation company"]
["FR6543","Société civile coopérative de construction","Civil-law construction cooperative company"]
["FR6544","Société civile immobilière d' accession progressive à la propriété","Property civil-law company for gradual accession to ownership"]
["FR6551","Société civile coopérative de consommation","Civil-law cooperative consumer company"]
["FR6554","Société civile coopérative d'intérêt maritime","Civil-law company for maritime purposes"]
["FR6558","Société civile coopérative entre médecins","Civil-law cooperative company between doctors"]
["FR6560","Autre société civile coopérative","Other civil-law cooperative company"]
["FR6561","SCP d'avocats","Civil-law professional partnership of lawyers "]
["FR6562","SCP d'avocats aux conseils","Civil-law professional partnership of legal counsel"]
["FR6563","SCP d'avoués d'appel","Civil-law professional partnership of solicitors"]
["FR6564","SCP d'huissiers","Civil-law professional partnership of bailiffs"]
["FR6565","SCP de notaires","Civil-law professional partnership of notaries"]
["FR6566","SCP de commissaires-priseurs","Civil-law professional partnership of valuers and auctioneers"]
["FR6567","SCP de greffiers de tribunal de commerce","Civil-law professional partnership of clerks of the commercial court"]
["FR6568","SCP de conseils juridiques","Civil-law professional partnership of legal advisors"]
["FR6569","SCP de commissaires aux comptes","Civil-law professional partnership of auditors"]
["FR6571","SCP de médecins","Civil-law professional partnership of doctors"]
["FR6572","SCP de dentistes","Civil-law professional partnership of dentists"]
["FR6573","SCP d'infirmiers","Civil-law professional partnership of nurses"]
["FR6574","SCP de masseurs-kinésithérapeutes","Civil-law professional partnership of masseurs and physiotherapists"]
["FR6575","SCP de directeurs de laboratoire d'analyse médicale","Civil-law professional partnership of directors of medical analysis laboratories"]
["FR6576","SCP de vétérinaires","Civil-law professional partnership of veterinary surgeons"]
["FR6577","SCP de géomètres experts","Civil-law professional partnership of expert surveyors"]
["FR6578","SCP d'architectes","Civil-law professional partnership of architects"]
["FR6585","Autre société civile professionnelle","Other civil-law professional partnership"]
["FR6589","Société civile de moyens","Resourcing civil-law partnership"]
["FR6595","Caisse locale de crédit mutuel","Local mutual lending bank"]
["FR6596","Caisse de crédit agricole mutuel","Mutual agricultural lending bank"]
["FR6597","Société civile d'exploitation agricole","Civil-law partnership for agricultural operations"]
["FR6598","Exploitation agricole à responsabilité limitée","Limited liability farm"]
["FR6599","Autre société civile","Other civil-law company"]
["FR6901","Autre personne de droit privé inscrite au registre du commerce et des sociétés","Other private-law person registered in the trade and companies register"]
["FR7111","Autorité constitutionnelle","Constitutional authority"]
["FR7112","Autorité administrative indépendante","Independent administrative authority"]
["FR7113","Ministère","Ministry"]
["FR7120","Service central d'un ministère","Central department of a ministry"]
["FR7150","Service du ministère de la Défense","Ministry of Defence department"]
["FR7160","Service déconcentré à compétence nationale d'un ministère (hors Défense)","Decentralised department of a ministry (excluding Defence) with national jurisdiction"]
["FR7171","Service déconcentré de l'État à compétence (inter) régionale","Decentralised State department with (inter-)regional jurisdiction"]
["FR7172","Service déconcentré de l'État à compétence (inter) départementale","Decentralised State department with (inter-)departmental jurisdiction"]
["FR7179","(Autre) Service déconcentré de l'État à compétence territoriale","(Other) decentralised State department with territorial jurisdiction"]
["FR7190","Ecole nationale non dotée de la personnalité morale","National school not having legal entity status"]
["FR7210","Commune et commune nouvelle","Municipality and new municipality"]
["FR7220","Département","Department"]
["FR7225","Collectivité et territoire d'Outre Mer","Overseas collectivity and territory"]
["FR7229","(Autre) Collectivité territoriale","(Other) territorial collectivity"]
["FR7230","Région","Region"]
["FR7312","Commune associée et commune déléguée","Associated municipality and delegated municipality"]
["FR7313","Section de commune","Section of a municipality"]
["FR7314","Ensemble urbain","Conurbation"]
["FR7321","Association syndicale autorisée","Authorised trade union association"]
["FR7322","Association foncière urbaine","Urban land association"]
["FR7323","Association foncière de remembrement","Land consolidation association"]
["FR7331","Établissement public local d'enseignement","Local public information undertaking"]
["FR7340","Pôle métropolitain","Metropolitan centre"]
["FR7341","Secteur de commune","Sector of a municipality"]
["FR7342","District urbain","Urban district"]
["FR7343","Communauté urbaine","Urban community"]
["FR7344","Métropole","Metropolis"]
["FR7345","SIVOM: Syndicat intercommunal à vocation multiple","SIVOM: Inter-municipality syndicate with multiple aims"]
["FR7346","Communauté de communes","Community of districts"]
["FR7347","Communauté de villes","Community of towns"]
["FR7348","Communauté d'agglomération","Community of an urban area"]
["FR7349","Autre établissement public local de coopération non spécialisé ou entente","Other local non-specialist public cooperation entity or agreement"]
["FR7351","Institution interdépartementale ou entente","Inter-departmental institution or agreement"]
["FR7352","Institution interrégionale ou entente","Inter-regional institution or agreement"]
["FR7353","SIVU: Syndicat intercommunal à vocation unique","SIVU: Inter-municipality syndicate with a single aim"]
["FR7354","Syndicat mixte fermé","Mixed closed syndicate"]
["FR7355","Syndicat mixte ouvert","Mixed open syndicate"]
["FR7356","Commission syndicale pour la gestion des biens indivis des communes","Trade union committee for the management of shared property of municipalities"]
["FR7357","PETR: Pôle d'équilibre territorial et rural","PETR: Centre for territorial and rural balance"]
["FR7361","Centre communal d'action sociale","Municipal social welfare centre"]
["FR7362","Caisse des écoles","Education funding authority"]
["FR7363","Caisse de crédit municipal","Municipal lending bank"]
["FR7364","Établissement d'hospitalisation","Hospital establishment"]
["FR7365","Syndicat inter hospitalier","Inter-hospital syndicate"]
["FR7366","Établissement public local social et médico-social","Local public social and medical/social undertaking"]
["FR7367","CIAS: Centre Intercommunal d'action sociale","CIAS: Inter-municipality social welfare centre"]
["FR7371","OPHLM: Office public d'habitation à loyer modéré","OPHLM: Public affordable housing office"]
["FR7372","SDIS: Service départemental d'incendie et de secours","SDIS: Departmental fire and safety department"]
["FR7373","Établissement public local culturel","Local public cultural undertaking"]
["FR7378","Régie d'une collectivité locale à caractère administratif","Management of a local authority of an administrative nature"]
["FR7379","(Autre) Établissement public administratif local","(Other) local public administrative undertaking"]
["FR7381","Organisme consulaire","Consular body"]
["FR7382","Établissement public national ayant fonction d'administration centrale","National public undertaking having a central administration role"]
["FR7383","Établissement public national à caractère scientifique culturel et professionnel","National public undertaking of a scientific, cultural and professional nature"]
["FR7384","Autre établissement public national d'enseignement","Other national public teaching undertaking"]
["FR7385","Autre établissement public national administratif à compétence territoriale limitée","Other national public administrative undertaking with limited territorial jurisdiction"]
["FR7389","Établissement public national à caractère administratif","National public undertaking of an administrative nature"]
["FR7410","GIP: Groupement d'intérêt public","GIP: Public interest grouping"]
["FR7430","Établissement public des cultes d'Alsace-Lorraine","Public religious undertaking of Alsace-Lorraine"]
["FR7450","Etablissement public administratif, cercle et foyer dans les armées","Public administrative undertaking, army assistance centres"]
["FR7470","Groupement de coopération sanitaire à gestion publique","Publicly-managed cooperative healthcare group"]
["FR7490","Autre personne morale de droit administratif","Other administrative law legal entity"]
["FR8110","Régime général de la Sécurité Sociale","General social security scheme"]
["FR8120","Régime spécial de Sécurité Sociale","Special social security scheme"]
["FR8130","Institution de retraite complémentaire","Supplementary pension institution"]
["FR8140","Mutualité sociale agricole","Agricultural social mutual fund"]
["FR8150","Régime maladie des non-salariés non agricoles","Sickness scheme for non-employed, non-agricultural workers"]
["FR8160","Régime vieillesse ne dépendant pas du régime général de la Sécurité Sociale","Retirement scheme not forming part of the general social security scheme"]
["FR8170","Régime d'assurance chômage","Unemployment insurance scheme"]
["FR8190","Autre régime de prévoyance sociale","Other social welfare scheme"]
["FR8210","Mutuelle","Mutual fund"]
["FR8250","Assurance mutuelle agricole","Mutual agricultural insurance"]
["FR8290","Autre organisme mutualiste","Other mutual organisation"]
["FR8310","Comité central d'entreprise","Central works council"]
["FR8311","Comité d'établissement","Works committee"]
["FR8410","Syndicat de salariés","Employees' trade union"]
["FR8420","Syndicat patronal","Employers' association"]
["FR8450","Ordre professionnel ou assimilé","Professional body or similar"]
["FR8470","Centre technique industriel ou comité professionnel du développement économique","Technical industrial centre or professional committee for economic development"]
["FR8490","Autre organisme professionnel","Other professional organisation"]
["FR8510","Institution de prévoyance","Welfare institution"]
["FR8520","Institution de retraite supplémentaire","Supplementary pension institution"]
["FR9110","Syndicat de copropriété","Association of co-owners"]
["FR9150","Association syndicale libre","Voluntary landowners' association"]
["FR9210","Association non déclarée","Undeclared association"]
["FR9220","Association déclarée","Declared association"]
["FR9221","Association déclarée d'insertion par l'économique","Declared association for integration through work"]
["FR9222","Association intermédiaire","Intermediary association"]
["FR9223","Groupement d'employeurs","Grouping of employers"]
["FR9224","Association d'avocats à responsabilité professionnelle individuelle","Association of lawyers with individual professional liability"]
["FR9230","Association déclarée, reconnue d'utilité publique","Declared recognised public interest association"]
["FR9240","Congrégation","Religious order"]
["FR9260","Association de droit local (Bas-Rhin, Haut-Rhin et Moselle)","Local law association (Bas-Rhin, Haut-Rhin and Moselle)"]
["FR9300","Fondation","Foundation"]
["FR9900","Autre personne morale de droit privé","Other private-law legal entity"]
["FR9970","Groupement de coopération sanitaire à gestion privée","Privately-managed cooperative healthcare grouping"]
["GB100","Corporations","Corporations"]
["GB200","Cooperatives","Cooperatives"]
["GB300","Partnerships","Partnerships"]
["GB400","Sole traders","Sole traders"]
["GB500","Limited liability company","Limited liability company"]
["GB600","Other","Other"]
["GR901","SP: Αστική (Προσωπική) Εταιρία / Astiki (Proswpiki) Eteria","SP: Sole Proprietorship and partnerships"]
["GR902","OE: Ομόρρυθμη Εταιρία / Omórithmi Etería","OE: General Partnership"]
["GR903","EE: Ετερόρρυθμη Εταιρία / Eterórithmi Etería","EE: Limited partnership (partnership company)"]
["GR904","SLP: Αφανής Εταιρία / Afanis Eteria","SLP: Silent Partnership"]
["GR905","SA: SA: Ανώνυμη Εταιρία / Anónimi Etería","SA: Public Limited Company, Societe Anonyme, Incorporated Company, Joint-stock Company"]
["GR906","EPE: Εταιρία Περιορισμένης Ευθύνης / Etería Periorisménis Euthínis","EPE: Limited Liability Company"]
["GR907","IKE: Ιδιωτική Κεφαλαιουχική Εταιρία / Idiotiki kefaleouhiki Eteria","IKE: Private Capital Company"]
["GR908","JSO: Συμπλοιοκτησία / Simplioktisia","JSO: Joint Ship-ownership"]
["GR909","SC: Ναυτική εταιρία / Naftiki eteria","SC: Shipping Company"]
["GR910","COOP: Συνεταιρισμός / Sinetairismos","COOP: Cooperative Company, Association"]
["GR911","CLF: CLF: Σωματεία - Ιδρύματα / Somatia - Idrimata","CLF: Club, Union, Syndicate, Foundation"]
["GR912","JV: Κοινοπραξία / Kinopraxia","JV: Joint Venture"]
["GR913","PL: PL: Νομικά Πρόσωπα Δημοσίου Δικαίου / Nomika Prosopa Dimosiou Dikeou","PL: Legal Entities of Public Law"]
["GR999","Other: Λοιπά /Lipa'","Other: Other Legal Forms"]
["HR01","d.d.: Dioničko društvo","d.d.: Joint stock company"]
["HR02","d.o.o.: Društvo s ograničenom odgovornošću","d.o.o.: Limited liability company"]
["HR03","j.t.d: Javno trgovačko društvo","j.t.d: Public company"]
["HR04","k.d.: Komanditno društvo","k.d.: Limited partnership"]
["HR05","Inozemni osnivač / Podružnice inozemnih trgovačkih društava","Foreign founder / Non-resident company's branches"]
["HR06","Ustanova","Institution"]
["HR07","Nedefinirano / Ostalo","Other"]
["HR08","j.d.o.o.: Jednostavno društvo s ograničenom odgovornošću","j.d.o.o.: Simple limited liability company"]
["HR09","Druga osoba za koje je upis propisan zakonom","Other entities as prescribed by law"]
["HR10","Društvene organizacije","Public organisations"]
["HR13","Fondovi","Funds"]
["HR14","Fundacije","Foundations"]
["HR15","Gospodarska udruženja","Economic cooperations"]
["HR16","GIU: Gospodarsko interesno udruženje","GIU: Economic interest grouping"]
["HR17","Grad","Town"]
["HR18","Gradonačelnik","Mayor"]
["HR19","Gradsko poglavarstvo","City government"]
["HR20","Gradsko vijeće","City council"]
["HR21","Hrvatska narodna banka","Croatian National Bank"]
["HR22","Hrvatski sabor","Croatian Parliament"]
["HR23","Investicijski i mirovinski fondovi","Investment and pension funds"]
["HR25","Ministarstva i ostali samostalni organi državne uprave","Ministries and other independent bodies of government administration"]
["HR26","Mirovinski fondovi","Pension funds"]
["HR27","Mjesni odbor, gradski kotar i gradska četvrt","Local committee, town district and town block"]
["HR28","Nenovčani investicijski fondovi","Non-money market investment funds"]
["HR29","Općina","Municipality"]
["HR30","Općinski načelnik","Municipal prefect"]
["HR31","Općinsko poglavarstvo","Municipal government"]
["HR32","Općinsko vijeće","Municipal council"]
["HR34","Ostale organizacije","Other organisations"]
["HR35","Ostali oblici organiziranja","Other organisational forms"]
["HR37","Političke stranke","Political parties"]
["HR38","Pravosuđe","Justice"]
["HR39","Predsjednik Republike Hrvatske","President of the Republic of Croatia"]
["HR40","Privatno poduzeće","Private enterprise"]
["HR42","Republika Hrvatska","Republic of Croatia"]
["HR44","Stručne službe, uredi i druga tijela","Administrative staffs, offices and other bodies"]
["HR45","s.d.d: Športsko dioničko društvo","s.d.d: Sport joint-stock company"]
["HR47","Udruga","Association"]
["HR48","Udruge građana","Civil cooperatives"]
["HR49","Udruge više razine","Higher-level association"]
["HR51","Ustavni sud Republike Hrvatske","Constitutional Court of the Republic of Croatia"]
["HR52","Vlada Republike Hrvatske","Government of the Republic of Croatia"]
["HR53","Zadruga","Cooperative"]
["HR55","Zajednica ustanova","Communities of institutions"]
["HR57","Zaklade","Trusts"]
["HR58","Župan","County prefect"]
["HR59","Županija","County"]
["HR60","Županijska skupština","County Assembly"]
["HR61","Županijsko poglavarstvo","County government"]
["HR62","Novčani investicijski fondovi","Money market investment funds"]
["HU113","Kft.: Korlátolt felelosségu társaság","Kft.: Private limited-liability company"]
["HU114","Rt.: Részvénytársaság","Rt.: Limited company"]
["HU116","Kkt.: Közkereseti társaság","Kkt.: General partnership"]
["HU117","Bt.: Betéti társaság","Bt.: Limited partnership"]
["HU122","Takarék- és hitelszövetkezet","Savings and loan association savings and credit cooperative"]
["HU129","Egyéb szövetkezet","Other cooperative"]
["HU226","Külföldi székhelyu vállalkozás fióktelepe"]
["HU524","Kölcsönös biztosító egyesület","Mutual insurance association"]
["HU529","Egyéb egyesület","Other association"]
["HU581","Önkéntes kölcsönös biztosítópénztár","Voluntary mutual insurance fund"]
["HU582","Magánnyugdíjpénztár","Private pension fund"]
["HU611","Külföldi székhelyu vállalkozás kereskedelmi képviselete"]
["HU736","Kht.: Közhasznú társaság","Kht.: Public benefit nonprofit institution"]
["HU915","Befektetési alap","Investment fund"]
["HU916","OBA: Országos betétbiztosítási alap","OBA: National deposit insurance fund"]
["HU999","Egyéb jogi forma","Other legal form"]
["IE01","LTD: Private Company Limited by Shares (LTD company)","LTD: Private Company Limited by Shares (LTD company)"]
["IE02","DAC: Designated Activity Company (DAC) – (limited by shares).","DAC: Designated Activity Company (DAC) – (limited by shares)."]
["IE03","DAC: Designated Activity Company Limited by Guarantee (DAC) – (limited by guarantee)","DAC: Designated Activity Company Limited by Guarantee (DAC) – (limited by guarantee)"]
["IE04","CLG: Company Limited by Guarantee (CLG) (limited by guarantee not having a share capital)","CLG: Company Limited by Guarantee (CLG) (limited by guarantee not having a share capital)"]
["IE05","PLC: Public Limited Company (PLC)","PLC: Public Limited Company (PLC)"]
["IE06","SMC: Single Member Company","SMC: Single Member Company"]
["IE07","UC : Unlimited company ","UC : Unlimited company "]
["IE08","UCITS: Undertakings for Collective Investment in Transferable Securities (UCITS) ","UCITS: Undertakings for Collective Investment in Transferable Securities (UCITS) "]
["IE11","Industrial and Provident Society","Industrial and Provident Society"]
["IE12","Friendly Society","Friendly Society"]
["IE13","Trade union","Trade union"]
["IE14","Local authority","Local authority"]
["IE15","Statutory corporation","Statutory corporation"]
["IE16","Other legal form","Other legal form"]
["IT101","PA: PUBBLICA AMMINISTRAZIONE","PA: General government"]
["IT201","SNC: SOCIETA' IN NOME COLLETTIVO","SNC: General partnership (commercial)"]
["IT301","SAS: SOCIETA' IN ACCOMANDITA SEMPLICE","SAS: Limited partnership"]
["IT401","SS: SOCIETA' SEMPLICE","SS: General partnership (non commercial)"]
["IT402","SDF: SOCIETA' DI FATTO","SDF: De facto corporation"]
["IT501","AIMP: AZIENDA PROVINCIALE / CONSORZIO","AIMP: Consortium"]
["IT601","COOP: SOCIETA' COOPERATIVA","COOP: Cooperative society"]
["IT701","SPA: SOCIETA' PER AZIONI","SPA: Plc (UK)"]
["IT702","SAA: SOCIETA' IN ACCOMANDITA PER AZIONI","SAA: Partnership limited by shares"]
["IT703","SRL: SOCIETA' A RESPONSABILITA' LIMITATA","SRL: Ltd (UK)"]
["IT999","Other: ALTRI, e.g. FONDAZIONE","Other: Other, e.g. Foundation"]
["LT101","AB: Akcinė bendrovė","AB: Public Limited Company"]
["LT102","UAB: Uždaroji akcinė bendrovė","UAB: Private Limited Company"]
["LT103","KO: Kooperatinė bendrovė (kooperatyvas)","KO: Cooperative Society (Cooperative)"]
["LT104","TUB: Tikroji ūkinė bendrija","TUB: General Partnership"]
["LT105","KUB: Komanditinė ūkinė bendrija","KUB: Limited Partnership"]
["LT106","A: Asociacija","A: Association"]
["LT107","MB: Mažoji bendrija","MB: Small Partnership"]
["LT108","ZUB: Žemės ūkio bendrovė","ZUB: Agricultural Company"]
["LT109","II: Individuali įmonė","II: Individual Enterprise / Sole proprietorship"]
["LT110","APB: Advokatų profesinė bendrija","APB: Lawyers' Professional Partnership"]
["LT111","PDB: Privačių detektyvų bendrija","PDB: Society of Private Detectives"]
["LT201","VI: Valstybės įmonė","VI: State Enterprise"]
["LT202","SI: Savivaldybės įmonė","SI: Municipal Enterprise"]
["LT203","VS: Viešoji įstaiga","VS: Public Institution"]
["LT204","BI: Biudžetinė įstaiga","BI: Budgetary Institution"]
["LT205","LF: Labdaros ir paramos fondas","LF: Charity and Sponsorship Fund"]
["LT206","BN: Bendrija","BN: Partnership"]
["LT207","SD: Sodininkų bendrija","SD: Gardeners’ Partnership"]
["LT208","PP: Politinė partija","PP: Political Party"]
["LT209","TR: Tradicinė religinė bendruomenė ar bendrija","TR: Traditional Lithuanian Religious Congregation or Community"]
["LT210","RB: Religinė bendruomenė ar bendrija","RB: Religious Community and Association"]
["LT211","PS: Profesinė sąjunga ar susivienijimas","PS: Trade Union"]
["LT212","NA: Nuolatinė komercinio arbitražo institucija","NA: Domicile Arbitration Institution"]
["LT213","S: Šeimyna","S: Foster Family"]
["LT214","PR: Prekybos, pramonės ir amatų rūmai","PR: Chamber of commerce, industry and crafts"]
["LT215","LPRA: Lietuvos prekybos, pramonės ir amatų rūmų asociacija","LPRA: The Association of Lithuanian Chambers of Commerce, Industry and Crafts"]
["LT216","CRC: Bendras valdymo ir pranešimų centras","CRC: Combined Control and Reporting Centre"]
["LT301","CB: Centrinis bankas","CB: Central Bank"]
["LU01","EI: Entreprise individuelle","EI: Sole proprietorship"]
["LU02","SENC: Société en nom collectif","SENC: General partnership"]
["LU03","SARL : Société à responsabilité limitée","SARL: Limited liability company"]
["LU04","SARLS: Société à responsabilité limitée simplifiée","SARLS: Simplified limited liability company"]
["LU05","SECS: Société en commandite simple","SECS: Limited partnership"]
["LU06","SECSP: Société en commandite speciale","SECSP: Special limited partnership"]
["LU07","SA : Société anonyme","SA : Public limited company"]
["LU08","SECA: Société en commandite par actions","SECA: Partnership limited by shares"]
["LU09","SICAV: Société d'investissement à capital variable","SICAV: Open-ended investment company"]
["LU10","SICAF: Société d'investissement à capital fixe","SICAF: Closed-ended investment company"]
["LU11","SEPCAV: Société d’épargne-pension à capital variable","SEPCAV: Variable Capital Pension Savings Company"]
["LU12","SCOP: Société coopérative","SCOP: Cooperative company"]
["LU13","SC: Société civile","SC: Civil company"]
["LU14","AM: Association momentanée","AM: Temporary partnership"]
["LU15","GIE: Groupement d'intérêt économique","GIE: Economic interest group"]
["LU16","ASBL: Association sans but lucratif","ASBL: Non-profit association"]
["LU17","FON: Fondation","FON: Foundation"]
["LU18","ASSEP: Association d'épargne pension","ASSEP: Pensions Savings Association"]
["LU19","AAM: Association d'assurances mutuelles","AAM: Mutual Insurance Association"]
["LU20","AA: Association agricole","AA: Agricultural association"]
["LU21","EP: Etablissement public","EP: Public establishment"]
["LU22","SNC: Société en nom collectif","SNC: Partnership"]
["LU23","SSC: Succursale de société commerciale","SSC: Company branch"]
["LU24","SSARLS: Succursale de société à responsabilité limitée simplifiée","SSARLS: Branch of a simplified limited liability company"]
["LU26","FCP: Fonds commun de placement","FCP: Mutual Funds"]
["LU27","FIAR: Fonds d'investissement alternatif reservé","FIAR: Alternative investment funds reserved"]
["LU32","AUT: Autres personnes morales dont l'immatriculation est prévue par l'article 1 de la loi modifiée du 19 décembre 2002 concernant le registre de commerce et des sociétésdes entreprises","AUT: Other legal person"]
["LU33","SP: Secteur public","SP: Public sector"]
["LU34","SICAR: Société d'investissement à capital risque","SICAR: Risk capital investment company"]
["LV101","AS: Akciju sabiedrība","AS: Stock company"]
["LV103","SIA: Sabiedrība ar ierobežotu atbildību","SIA: Limited liability company"]
["LV104","VU: Valsts uzņēmums","VU: State enterprise"]
["LV105","PSV: Pašvaldības uzņēmums","PSV: Municipal enterprise"]
["LV106","UZN: Uzņēmējsabiedrības uzņēmums","UZN: Enterprise of the company"]
["LV107","PS: Pilnsabiedrība","PS: General partnership"]
["LV108","KS: Komandītsabiedrība","KS: Limited partnership"]
["LV109","LIG: Līgumsabiedrība ar pilnu atbildību","LIG: Partnership with full responsibility"]
["LV110","PAJ: Paju sabiedrība","PAJ: Joint stock company"]
["LV111","PAP: Sabiedrība ar papildu atbildību","PAP: Additional liability company"]
["LV301","GIM: Ģimenes uzņēmums","GIM: Sole proprietorship"]
["LV302","IK: Individuālais komersants","IK: Individual merchant"]
["LV303","IND: Individuālais uzņēmums","IND: Sole proprietorship"]
["LV401","KB: Kooperatīvā sabiedrība","KB: Cooperative society"]
["LV402","KBS: Kooperatīvo biedrību savienība","KBS: Union of cooperative societies"]
["LV403","KBU: Kooperatīvo biedrību uzņēmums","KBU: Enterprise of cooperative societies"]
["LV404","KSS: Kooperatīvo biedrību savienības uzņēmums","KSS: Enterprise of union of cooperative societies"]
["LV405","ZEM: Zemnieku saimniecība","ZEM: Farm (farming enterprise)"]
["LV406","ZVJ: Zvejnieku saimniecība","ZVJ: Farm (fishing enterprise)"]
["LV701","PPI: Publiskās personas un iestādes","PPI: Public persons and authorities"]
["LV801","REL: Reliģiskas organizācijas uzņēmums","REL: Enterprise of religious organisation"]
["LV802","SOU: Sabiedriskās organizācijas uzņēmums","SOU: Enterprise of NGO"]
["LV803","ARA: Arodbiedrību apvienība","Trade union association / labour organisation association"]
["LV804","ARB: Arodbiedrība","Trade union / labour organisation"]
["LV805","ARV: Arodbiedrības patstāvīgā vienība","Trade union independent unit / labour organisation independent unit"]
["LV806","ROROIG: Reliģiskās organizācijas un reliģisko organizāciju iestādes","Religious Organisations and institutions of Religious Organisations"]
["LV807","BDR: Biedrība","Association"]
["LV808","NOD: Nodibinājums","Fondation"]
["LV809","PP: Politiskā partija","Political party"]
["LV810","PPA: Politisko partiju apvienība","Association of political parties"]
["LV901","AKF: Ārzemju komersanta filiāle","AKF: Branch of a foreign enterprise"]
["LV903","PAR: Pārstāvniecība","PAR: Permanent representative office"]
["MT010","Sole proprietor","Sole proprietor"]
["MT020","PCOMM: En commandite","PCOMM: A limited Partnership"]
["MT021","P: En nom collectif","P: A general Partnership"]
["MT030","LTD: Limited","LTD: Private limited company"]
["MT031","OC: Overseas Company","OC: Overseas Company"]
["MT033","SV: SICAV (Société d’Investissement à Capital Variable)","SV: Investment companies with variable share capital"]
["MT040","VO: Voluntary / Non-for profit Organisations","VO: Voluntary / Non-for profit Organisations"]
["MT050","General Government","General Government"]
["MT060","PLC: Public limited company","PLC: Public limited company"]
["MT070","Corporations","Corporations"]
["MT080","COOP: Cooperatives","COOP: Cooperatives"]
["NL101","BV: Besloten vennootschap","BV: private limited company"]
["NL102","NV: Naamloze vennootschap","NV: public limited company"]
["NL11","CVA: Commanditaire Vennootschap met rechtspersoonlijkheid"]
["NL201","Coöperatie","Cooperative"]
["NL202","OWM: Onderlinge waarborgmaatschappij","OWM: mutual insurance association"]
["NL203","Vereniging","association, society"]
["NL204","VVE: Vereniging van eigenaars","VVE: (home) owners' association"]
["NL205","Kerkgenootschap","church or spiritual organisation"]
["NL206","Stichting","foundation, trust"]
["NL207","Overige privaatrechtelijke personen","other legal entities governed by private law"]
["NL301","Eenmanszaak","Sole proprietorship"]
["NL302","Maatschap","partnership"]
["NL303","CV: Commanditaire vennootschap","CV: limited partnership"]
["NL304","VOF: Vennootschap onder firma","VOF: general partnership, partnership firm"]
["NL401","Publiekrechtelijke rechtspersonen op basis van artikel 2:1 lid 1 BW","Legal entities governed by public law under Section 2:1(1) of the Dutch Civil Code, legal entities under public law as referred to in Section 2:1(1) of the DCC"]
["NL402","Publiekrechtelijke rechtspersonen op basis van artikel 2:1 lid 2 BW","Legal entities governed by public law under Section 2:1(2) of the Dutch Civil Code, legal entities under public law as referred to in Section 2:1(2) of the DCC"]
["NL501","Rederij","shipping company"]
["NL7","BA: Coöperatie met Beperkte Aansprakelijkheid"]
["NL9","COV: Coöperatieve Vereniging"]
["NL901","Rechtspersoon in oprichting","legal entity in formation"]
["PLA019","s.c.: spółki cywilne","s.c.: civil law partnership"]
["PLA044","uczelnie","higher education institution"]
["PLA070","partie polityczne","political party"]
["PLA085","wspólnoty mieszkaniowe","condominium"]
["PLA099","osoby fizyczne prowadzące działalność gospodarczą","sole proprietor"]
["PLA115","sp.p.: spółki partnerskie","sp.p.: professional partnership"]
["PLA116","S.A.: spółki akcyjne","S.A.: joint-stock company"]
["PLA117","sp. z o.o.: spółki z ograniczoną odpowiedzialnością","sp. z o.o.: limited liability company"]
["PLA118","s.j.: spółki jawne","s.j.: registered partnership"]
["PLA120","sp.k.: spółki komandytowe","sp.k.: limited partnership"]
["PLA121","S.K.A.: spółki komandytowo - akcyjne","S.K.A.: limited joint-stock partnership"]
["PLA124","przedsiębiorstwa państwowe","state-owned enterprise (SOE)"]
["PLA126","TUW: towarzystwa ubezpieczeń wzajemnych","TUW: mutual insurance society"]
["PLA132","instytucje gospodarki budżetowej","state budget entity"]
["PLA134","towarzystwa reasekuracji wzajemnej","mutual reinsurance society"]
["PLA140","spółdzielnie","co-operative"]
["PLA146","samodzielne publiczne zakłady opieki zdrowotnej","independent public health care unit"]
["PLA148","fundacje","foundation"]
["PLA177","kółka rolnicze","machinery ring"]
["PLA180","spółdzielcze kasy oszczędnościowo-kredytowe","co-operative savings and credit union"]
["PLA403","wspólnoty samorządowe","self-governed community"]
["PLA409","Skarb Państwa","the State Treasury"]
["PLA428","państwowe jednostki organizacyjne","state organizational unit"]
["PLB050","kościoły i związki wyznaniowe","churches and religious unions"]
["PLB055","stowarzyszenia i związki stowarzyszeń","association or union of associations"]
["PLB060","organizacje społeczne i zawodowe","non-profit or professional organisatoin"]
["PLB133","związki zawodowe","trade union"]
["PLB137","zrzeszenia","federation"]
["PLB138","związki inne niż zawodowe","union other than a trade union"]
["PLB141","instytuty badawcze","research institute"]
["PLB147","cechy i izby rzemieślnicze, izby gospodarcze","guild and craft chamber, chamber of commerce"]
["PLB381","placówki systemu oświaty","education system institution"]
["PLB401","organy władzy, administracji rządowej, kontroli państwowej i ochrony prawa oraz sądy i trybunały","public authority body, government administration authority, state inspection authority"]
["PLB429","samorządowe jednostki organizacyjne","self-government organizational unit"]
["PLC049","fundusze inwestycyjne","investment fund"]
["PLD049","OFE: otwarte fundusze emerytalne","OFE: open pension fund"]
["PLE049","fundusze inne niż inwestycyjne i inne niż otwarte fundusze emerytalne","fund other than investment fund or open pension fund"]
["PT111","ACE: Agrupamento Complementar de Empresas (ACE)","ACE: Complementary Grouping of Companies"]
["PT121","Lda: Sociedade por Quotas","Lda: Private limited company"]
["PT122","SUni: Sociedade Unipessoal Por Quotas","SUni: Single quotaholder private limited company"]
["PT131","SA : Sociedade Anónima","SA : Public limited company"]
["PT141","Coman: Sociedades em comandita","Coman: Limited partnership"]
["PT151","SNC: Sociedades em nome coletivo","SNC: Partnerships"]
["PT171","SOCI: Sociedade Civil","SOCI: Civil society"]
["PT181","Sociedade Irregular","Unregistered company"]
["PT182","EIRL: Estabelecimento Individual de Responsabilidade Limitada","EIRL: Individual business with limited liability"]
["PT211","Coop: Cooperativa","Coop: Cooperative"]
["PT221","Assoc: Associação","Assoc: Association"]
["PT231","Fund: Fundação","Fund: Foundation"]
["PT311","EPE: Empresa Pública Empresarial","EPE: Public corporation"]
["PT312","PCDP: Pessoa Coletiva de Direito Público","PCDP: Public law institution"]
["PT321","EPMR: Entidade Publica Municipal, Intermunicipal e Regional","EPMR: Municipal, Intermunicipal and Regional public company"]
["PT331","OAP: Organismo da Administracao Publica","OAP: Public Institution"]
["PT411","PCR: Pessoa Colectiva Religiosa","PCR: Religious legal person"]
["PT711","Fundos","Funds"]
["PT901","OI: Organizacoes Internacionais","OI: International Organizations"]
["RO101","SA: Societate pe acţiuni","SA: Joint Stock Company"]
["RO102","SRL: Societate cu răspundere limitată","SRL: Limited Liability Company (Ltd)"]
["RO103","SCS: Societate în comandită simplă","SCS: Limited partnership"]
["RO104","SCA: Societate în comandită pe acţiuni","SCA: Limited partnership with shares"]
["RO105","Alte forme de proprietate","Other legal forms"]
["RO107","ONG: Organizație non-guvernamentală","ONG: Non-Governmental Organization/Non-Profit institution"]
["RO108","SNC: Societate în nume colectiv","SNC: General partnership"]
["RO110","RA: Regie autonomă","RA: Public company"]
["RO111","GIE: Grupul de interes economic","GIE: Economic interest grouping"]
["RO114","Cooperativă de consum","Consumer cooperative"]
["RO115","Cooperativă de credit","Credit cooperative"]
["RO116","Cooperativă meșteșugărească","Handicraft cooperative"]
["RO117","Reprezentanta","Representative Office"]
["RO120","Sucursala","Branch"]
["RO121","Reprezentant fiscal","Fiscal representative"]
["RO122","Societate agricolă","Agricultural company"]
["RW100","Corporations","Corporations"]
["RW200","Cooperatives","Cooperatives"]
["RW300","Partnerships","Partnerships"]
["RW400","Sole traders","Sole traders"]
["RW500","Limited liability company","Limited liability company"]
["RW600","Other","Other"]
["SE21","Enkelt bolag","Regulated partnership between two parts"]
["SE22","Partrederier","Limited shipping partnerships"]
["SE31","HB, KB: Handelsbolag, kommanditbolag (HB, KB)","HB, KB: Limited partnership"]
["SE41","AB: Bankaktiebolag (AB)","AB: Limited banking companies"]
["SE42","AB: Försäkringsaktiebolag (AB)","AB: Limited insurance companies"]
["SE49","AB: Övriga aktiebolag (AB)","AB: Other limited companies"]
["SE51","Ek. för.: Ekonomisk förening (Ek. för.)","Ek. för.: Economic association (minimum three members)"]
["SE53","BRF: Bostadsrättsförening (BRF)","BRF: Tenant owners’ associations"]
["SE54","Kooperativ hyresrättsförening","Cooperative renting rights associations"]
["SE61","Ideell förening","Non-profit organisation"]
["SE62","Samfälligheter","Joint-ownership associations"]
["SE63","Registrerat trossamfund","Registered religious communities"]
["SE71","Familjestiftelser","Family foundations"]
["SE72","Övriga stiftelser och fonder, inkl pensionsstiftelser och personalstiftelser","Other foundations and funds"]
["SE81","Statliga enheter","Entities of central government"]
["SE82","Kommuner","Municipalities"]
["SE83","Kommunalförbund","Federations of local government authorities"]
["SE84","Landsting","County councils"]
["SE87","Offentliga korporationer och anstalter","Public corporate bodies and institutions"]
["SE88","Hypoteksföreningar","Mortgage associations"]
["SE91","Oskiftade dödsbon","Estates of deceased persons"]
["SE92","Ömsesidiga försäkringsbolag","Mutual insurance corporations"]
["SE93","Spb: Sparbanker (Spb)","Spb: Savings banks"]
["SE94","Understödsföreningar, Försäkringsföreningar","Friendly societies"]
["SE95","Arbetslöshetskassor","Unemployment benefit funds"]
["SE98","Övriga svenska juridiska personer bildade enligt särskild lagstiftning","Other Swedish legal persons subject to special legislation"]
["SI101","d.n.o.: Družba z neomejeno odgovornostjo d.n.o.","d.n.o.: Unlimited company (UK)"]
["SI102","k.d.: Komanditna družba k.d.","k.d.: Limited partnership (UK)"]
["SI103","d.o.o.: Družba z omejeno odgovornostjo d.o.o.","d.o.o.: Ltd (UK)"]
["SI104","d.d.: Delniška družba d.d.","d.d.: Plc (UK)"]
["SI105","k.d.d.: Komanditna delniška družba k.d.d.","k.d.d.: Limited partnership with share capital"]
["SI108","GIZ: Gospodarsko interesno združenje GIZ","GIZ: Economic Interest Grouping EIG"]
["SI112","z.o.o.: Zadruga z.o.o.","z.o.o.: Cooperative z.o.o."]
["SI113","z.b.o.: Zadruga z.b.o.","z.b.o.: Cooperative z.b.o."]
["SI201","Centralna banka","Central Bank"]
["SI210","Sklad","Trust"]
["SI211","d.v.z.: Družba za vzajemno zavarovanje d.v.z.","d.v.z.: Mutual insurance company d.v.z."]
["SI213","Javni sklad","Public Fund"]
["SI300","Javna agencija","Public Agency"]
["SI301","Republika Slovenija","Republic of Slovenia"]
["SI302","Predsednik republike","President of the Republic"]
["SI303","Predstavniški organ (DZ, DS)","Representative body (parliament, National council)"]
["SI304","Varuh človekovih pravic","Human rights ombudsman"]
["SI305","Ustavno sodišče","Constitutional Court"]
["SI306","Računsko sodišče","The court of Auditors"]
["SI307","Vlada, vladna služba","Government, government service"]
["SI308","Ministrstvo","Ministry"]
["SI309","Sodišče (vrhovno, višja, okrožna, okrajna)","Court (supreme, higher, district, county)"]
["SI310","Tožilstvo","The prosecutor's office"]
["SI311","Pravobranilstvo","Attorneys Office"]
["SI313","Upravni organ v sestavi","Administrative body"]
["SI315","Upravna enota","Administrative unit"]
["SI316","Organ, organizacija širše lokalne skupnosti","Authority, organization wider local community"]
["SI318","Lokalne skupnosti","Local communities"]
["SI319","Krajevna skupnost, druge ožje lokalne skupnosti","The local community, other local community"]
["SI321","Pooblaščenec za dostop do informacij javnega značaja","The Commissioner for Access to Public Information"]
["SI322","Samostojni in neodvisni državni organ","Autonomous and independent state authority"]
["SI352","Javni gospodarski zavod","Public economic institute"]
["SI354","Zavod","Institute"]
["SI355","Javni zavod","Public institute"]
["SI357","Skupnost zavodov","Community of institutes"]
["SI358","Zbornica","Chamber"]
["SI359","Članica univerze","University member"]
["SI360","Gospodarska zbornica","Chamber of Commerce"]
["SI361","Javni raziskovalni zavod","Public research institut"]
["SI362","Skupnost lastnikov stanovanj","Community of homeowners"]
["SI401","Ustanova","Institution"]
["SI402","Agrarne, pašne in vaške skupnosti","Agriculture, grazing and village communities"]
["SI403","Druge skupnosti","Other communities"]
["SI404","Mladinski svet","Youth Council"]
["SI405","Narodnostna skupnost","Ethnic community"]
["SI406","Študentska organizacija","Student organization"]
["SI407","Nevladna organizacija","Non-government organization"]
["SI451","Politična stranka","Political party"]
["SI452","Sindikat","Union"]
["SI453","Društvo, zveza društev","Association, Federation"]
["SI458","Verska skupnost in podobne verske organizacije","Religious community and religious organizations"]
["SI703","Obrtna zadruga","Chamber of Crafts"]
["SI708","Kmetijska zadruga","Agricultural cooperative"]
["SI713","zavod v zaseb. last.","Institute in private property"]
["SI715","Družbeno podj., p. o.","Social enterprise"]
["SI719","zadruga","Cooperative"]
["SI799","Druge oblike poslovnih subjektov","Other forms of business entities"]
["SI804","Poslovna enota","Business unit"]
["SI899","Druge oblike delov poslovnih subjektov","Other forms of business entities"]
["SK111","v.o.s.: Verejná obchodná spoločnosť","v.o.s.: Public commercial company"]
["SK112","s.r.o.: Spoločnosť s ručením obmedzeným","s.r.o.: Limited liability company"]
["SK113","k. s.: Komanditná spoločnosť","k. s.: Société commandite"]
["SK117","Nadácia","Foundation"]
["SK118","Neinvestičný fond","Non-investment fund"]
["SK119","N.O.: Nezisková organizácia","N.O.: Not profitable organization"]
["SK120","Nezisková organizácia poskytujúca všeobecne prospešné služby","Non-profit organization providing community services"]
["SK121","a.s.: Akciová spoločnosť","a.s.: Joint stock company"]
["SK125","Jednoduchá spoločnosť na akcie","Simple joint stock company"]
["SK141","Poľovnícka organizácia","Hunting organization"]
["SK205","Družstvo","Cooperative"]
["SK271","Spoločenstvá vlastníkov pozemkov, bytov a pod.","Associations of land owners, flats owner etc."]
["SK272","Pozemkové spoločenstvo","Land community"]
["SK273","Združenie účastníkov pozemkových úprav","Association of participants in land readjustment"]
["SK301","š.p.: Štátny podnik","š.p.: State enterprise"]
["SK311","Národná banka Slovenska","National Bank of Slovakia"]
["SK312","Banka-štátny peňažný ústav","Bank - state monetary institution"]
["SK321","Rozpočtová organizácia","Budgetary organization"]
["SK331","Príspevková organizácia","Organization based on state contributions"]
["SK333","Verejná výskumná inštitúcia","Public research institution"]
["SK381","Fondy","Funds"]
["SK382","Verejnoprávna inštitúcia","Public legal institution"]
["SK383","Iná organizácia verejnej správy","Other organization of public administration"]
["SK421","Zahraničná osoba, právnická osoba so sídlom mimo územia SR","Foreign person, legal unit"]
["SK434","Doplnková dôchodková poisťovňa","Complementary pension funding"]
["SK445","Komoditná burza","Commodity Exchange"]
["SK701","Združenie (zväz, spolok, spoločnosť, klub ai.)","Association (league, union, society, club, etc.)"]
["SK711","Politická strana, politické hnutie","Political party, political movement"]
["SK721","Cirkevná organizácia","Ecclesiastical organization"]
["SK741","Stavovská organizácia - profesná komora","Professional organization - professional chamber"]
["SK745","Komora (s výnimkou profesných komôr)","Chamber (except professional chambers)"]
["SK751","Záujmové združenie právnických osôb","Interest association of legal persons"]
["SK801","Obec (obecný úrad), mesto (mestský úrad)","Municipality (municipal office)"]
["SK803","VÚC: Samosprávny kraj (úrad samosprávneho kraja)","VÚC: Office of local government (regional level)"]
["SK901","Zastupiteľské orgány iných štátov","Diplomatic corps of foreign country"]
["SK911","Zahraničné kultúrne, informačné stredisko, rozhlasová, tlačová a televízna agentúra","Foreign centre for culture and information, agency for radio, press and television"]
["SK921","Medzinárodné organizácie a združenia","International organization and association"]
["SK931","Zastúpenie zahraničnej právnickej osoby","Representation of foreign legal unit"]
["SPFUND","Nadnárodní právní forma - speciální fondy","Conventional legal form for Special funds"]
["SI145","Samostojni novinar","Freelance journalist"]
["SI146","Izvršitelj","Executor"]
["SI147","Zasebni športni delavec","Private sports worker"]
["SI148","Morski ribič","Sea fisherman"]
["SI151","Notar","Notary"]
["SI152","Evidentirani odvetnik","Recorded lawyer"]
["SI153","Registrirani zdravnik, zobozdravnik, zasebni zdravstveni delavec","Registered doctor, dentist, private health worker"]
["SI154","Registrirani lekarnar","Registered pharmacist"]
["SI156","Samozaposleni v kulturi","Self-employed in culture"]
["SI157","Registrirani zasebni izvajalec raziskovalec","Registered private contractor researcher"]
["SI158","Evidentirani detektiv","Detective"]
["SI160","Druga fizična oseba","Other natural person"]
["SI163","Nosilec dopolnilne dejavnosti na kmetiji","The holder of supplementary activity on the farm"]
["SI166","Zasebni učitelj oziroma vzgojitelj","Private teacher or educator"]
["SI167","Proizvajalec električne energije","Electricity producer"]
["SI201","Centralna banka","Central Bank"]
["SI210","Sklad","Trust"]
["SI211","d.v.z.: Družba za vzajemno zavarovanje d.v.z.","d.v.z.: Mutual insurance company d.v.z."]
["SI213","Javni sklad","Public Fund"]
["SI300","Javna agencija","Public Agency"]
["SI301","Republika Slovenija","Republic of Slovenia"]
["SI302","Predsednik republike","President of the Republic"]
["SI303","Predstavniški organ (DZ, DS)","Representative body (parliament, National council)"]
["SI304","Varuh človekovih pravic","Human rights ombudsman"]
["SI305","Ustavno sodišče","Constitutional Court"]
["SI306","Računsko sodišče","The court of Auditors"]
["SI307","Vlada, vladna služba","Government, government service"]
["SI308","Ministrstvo","Ministry"]
["SI309","Sodišče (vrhovno, višja, okrožna, okrajna)","Court (supreme, higher, district, county)"]
["SI310","Tožilstvo","The prosecutor's office"]
["SI311","Pravobranilstvo","Attorneys Office"]
["SI313","Upravni organ v sestavi","Administrative body"]
["SI315","Upravna enota","Administrative unit"]
["SI316","Organ, organizacija širše lokalne skupnosti","Authority, organization wider local community"]
["SI318","Lokalne skupnosti","Local communities"]
["SI319","Krajevna skupnost, druge ožje lokalne skupnosti","The local community, other local community"]
["SI321","Pooblaščenec za dostop do informacij javnega značaja","The Commissioner for Access to Public Information"]
["SI322","Samostojni in neodvisni državni organ","Autonomous and independent state authority"]
["SI351","Javno podjetje","Public company"]
["SI352","Javni gospodarski zavod","Public economic institute"]
["SI354","Zavod","Institute"]
["SI355","Javni zavod","Public institute"]
["SI357","Skupnost zavodov","Community of institutes"]
["SI358","Zbornica","Chamber"]
["SI359","Članica univerze","University member"]
["SI360","Gospodarska zbornica","Chamber of Commerce"]
["SI361","Javni raziskovalni zavod","Public research institut"]
["SI362","Skupnost lastnikov stanovanj","Community of homeowners"]
["SI401","Ustanova","Institution"]
["SI402","Agrarne, pašne in vaške skupnosti","Agriculture, grazing and village communities"]
["SI403","Druge skupnosti","Other communities"]
["SI404","Mladinski svet","Youth Council"]
["SI405","Narodnostna skupnost","Ethnic community"]
["SI406","Študentska organizacija","Student organization"]
["SI407","Nevladna organizacija","Non-government organization"]
["SI451","Politična stranka","Political party"]
["SI452","Sindikat","Union"]
["SI453","Društvo, zveza društev","Association, Federation"]
["SI456","Podružnica tujega društva","Branch of a foreign Society"]
["SI458","Verska skupnost in podobne verske organizacije","Religious community and religious organizations"]
["SI702","Stanovanjska zadruga","Housing Association"]
["SI703","Obrtna zadruga","Chamber of Crafts"]
["SI704","Hran. kredit. služba","Savings and credit services"]
["SI706","p. o.","p. o."]
["SI708","Kmetijska zadruga","Agricultural cooperative"]
["SI713","zavod v zaseb. last.","Institute in private property"]
["SI715","Družbeno podj., p. o.","Social enterprise"]
["SI719","zadruga","Cooperative"]
["SI799","Druge oblike poslovnih subjektov","Other forms of business entities"]
["SI801","Podružnica domačega podjetja","Branch of domestic companies"]
["SI802","Podružnica s. p.","Branch of sole proprietorship"]
["SI803","Režijski obrat","Overheads plant"]
["SI804","Poslovna enota","Business unit"]
["SI806","Zadružna enota","The cooperative unit"]
["SI807","Organizacijska enota","Organizational unit"]
["SI810","Del pri sobodajalcu","Partial landloard"]
["SI899","Druge oblike delov poslovnih subjektov","Other forms of business entities"]
["SK111","v.o.s.: Verejná obchodná spoločnosť","v.o.s.: Public commercial company"]
["SK112","s.r.o.: Spoločnosť s ručením obmedzeným","s.r.o.: Limited liability company"]
["SK113","k. s.: Komanditná spoločnosť","k. s.: Société commandite"]
["SK117","Nadácia","Foundation"]
["SK118","Neinvestičný fond","Non-investment fund"]
["SK119","N.O.: Nezisková organizácia","N.O.: Not profitable organization"]
["SK120","Nezisková organizácia poskytujúca všeobecne prospešné služby","Non-profit organization providing community services"]
["SK121","a.s.: Akciová spoločnosť","a.s.: Joint stock company"]
["SK122","EEIG: Európske zoskupenie hospodárskych záujmov","EEIG: European Economic Interest Grouping"]
["SK123","SE: Európska spoločnosť","SE: European company"]
["SK124","SCE: Európske družstvo","SCE: European Cooperative Society"]
["SK125","Jednoduchá spoločnosť na akcie","Simple joint stock company"]
["SK141","Poľovnícka organizácia","Hunting organization"]
["SK205","Družstvo","Cooperative"]
["SK271","Spoločenstvá vlastníkov pozemkov, bytov a pod.","Associations of land owners, flats owner etc."]
["SK272","Pozemkové spoločenstvo","Land community"]
["SK273","Združenie účastníkov pozemkových úprav","Association of participants in land readjustment"]
["SK301","š.p.: Štátny podnik","š.p.: State enterprise"]
["SK311","Národná banka Slovenska","National Bank of Slovakia"]
["SK312","Banka-štátny peňažný ústav","Bank - state monetary institution"]
["SK321","Rozpočtová organizácia","Budgetary organization"]
["SK331","Príspevková organizácia","Organization based on state contributions"]
["SK333","Verejná výskumná inštitúcia","Public research institution"]
["SK381","Fondy","Funds"]
["SK382","Verejnoprávna inštitúcia","Public legal institution"]
["SK383","Iná organizácia verejnej správy","Other organization of public administration"]
["SK421","Zahraničná osoba, právnická osoba so sídlom mimo územia SR","Foreign person, legal unit"]
["SK434","Doplnková dôchodková poisťovňa","Complementary pension funding"]
["SK445","Komoditná burza","Commodity Exchange"]
["SK701","Združenie (zväz, spolok, spoločnosť, klub ai.)","Association (league, union, society, club, etc.)"]
["SK711","Politická strana, politické hnutie","Political party, political movement"]
["SK721","Cirkevná organizácia","Ecclesiastical organization"]
["SK741","Stavovská organizácia - profesná komora","Professional organization - professional chamber"]
["SK745","Komora (s výnimkou profesných komôr)","Chamber (except professional chambers)"]
["SK751","Záujmové združenie právnických osôb","Interest association of legal persons"]
["SK801","Obec (obecný úrad), mesto (mestský úrad)","Municipality (municipal office)"]
["SK803","VÚC: Samosprávny kraj (úrad samosprávneho kraja)","VÚC: Office of local government (regional level)"]
["SK901","Zastupiteľské orgány iných štátov","Diplomatic corps of foreign country"]
["SK911","Zahraničné kultúrne, informačné stredisko, rozhlasová, tlačová a televízna agentúra","Foreign centre for culture and information, agency for radio, press and television"]
["SK921","Medzinárodné organizácie a združenia","International organization and association"]
["SK931","Zastúpenie zahraničnej právnickej osoby","Representation of foreign legal unit"]
["SPFUND","Nadnárodní právní forma - speciální fondy","Conventional legal form for Special funds"]

{"sheet":"Číselník sektor","index":8,"n_rows":137,"n_cols":2,"rows_kept":137,"cut":false,"hidden":true,"merged":[[0,0,0,1]]}
["CNB_SEKTOR - institucionální sektor (BA0036)"]
["Kód","Název"]
[1100100,"Nefinanční podniky veřejné"]
[1100200,"Nefinanční podniky soukromé národní"]
[1100300,"Nefinanční podniky soukromé pod zahraniční kontrolou"]
[1210000,"Centrální banka"]
[1220100,"Instituce přijímající vklady veřejné"]
[1220200,"Instituce přijímající vklady soukromé národní"]
[1220300,"Instituce přijímající vklady soukromé pod zahraniční kontrolou"]
[1221100,"Banky veřejné"]
[1221200,"Banky soukromé národní"]
[1221300,"Banky soukromé pod zahraniční kontrolou"]
[1222100,"Jiné instituce přijímající vklady veřejné"]
[1222200,"Spořitelní a úvěrní družstva soukromé národní"]
[1222300,"Spořitelní a úvěrní družstva soukromé pod zahraniční kontrolou"]
[1224200,"Jiné instituce přijímající vklady soukromé národní"]
[1224300,"Jiné instituce přijímající vklady soukromé pod zahraniční kontrolou"]
[1230100,"Fondy peněžního trhu veřejné"]
[1230200,"Fondy peněžního trhu soukromé národní"]
[1230300,"Fondy peněžního trhu soukromé pod zahraniční kontrolou"]
[1240100,"Fondy kolektivního investování (kromě FPT) veřejné"]
[1240200,"Fondy kolektivního investování (kromě FPT) soukromé národní"]
[1240300,"Fondy kolektivního investování (kromě FPT) pod zahraniční kontrolou"]
[1250100,"Ostatní finanční zprostředkovatelé (kromě IC a PF) - veřejní"]
[1250110,"Účelové finanční instituce pro sekuritizaci aktiv - veřejní"]
[1250120,"Obchodníci s cennými papíry a deriváty - veřejní"]
[1250130,"Finanční instituce poskytující úvěry - veřejní"]
[1250140,"Specializované finanční instituce - veřejní"]
[1250200,"Ostatní finanční zprostředkovatelé (kromě IC a PF) - soukromí národní"]
[1250210,"Účelové finanční instituce pro sekuritizaci aktiv - soukromí národní"]
[1250220,"Obchodníci s cennými papíry a deriváty - soukromí národní"]
[1250230,"Finanční instituce poskytující úvěry - soukromí národní"]
[1250240,"Specializované finanční instituce - soukromí národní"]
[1250300,"Ostatní finanční zprostředkovatelé (kromě IC a PF) -pod zahraniční kontrolou"]
[1250310,"Účelové finanční instituce pro sekuritizaci aktiv - pod zahraniční kontrolou"]
[1250320,"Obchodníci s cennými papíry a deriváty - pod zahraniční kontrolou"]
[1250330,"Finanční instituce poskytující úvěry - pod zahraniční kontrolou"]
[1250340,"Specializované finanční instituce - pod zahraniční kontrolou"]
[1260100,"Pomocné finanční instituce veřejné"]
[1260200,"Pomocné finanční instituce soukromé národní"]
[1260300,"Pomocné finanční instituce pod zahraniční kontrolou"]
[1270100,"Kaptivní finanční instituce a půjčovatelé peněz veřejné"]
[1270200,"Kaptivní finanční instituce a půjčovatelé peněz soukromé národní"]
[1270300,"Kaptivní finanční instituce a půjčovatelé peněz pod zahraniční kontrolou"]
[1280100,"Pojišťovací společnosti (IC) veřejné"]
[1280200,"Pojišťovací společnosti (IC) soukromé národní"]
[1280300,"Pojišťovací společnosti (IC) pod zahraniční kontrolou"]
[1290100,"Penzijní fondy (PF) veřejné"]
[1290200,"Penzijní fondy (PF) soukromé národní"]
[1290300,"Penzijní fondy (PF) pod zahraniční kontrolou"]
[1300000,"Vládní instituce"]
[1311000,"Ústřední vládní instituce"]
[1312000,"Národní vládní instituce"]
[1313000,"Místní vládní instituce"]
[1314000,"Fondy sociálního zabezpečení"]
[1400000,"Domácnosti"]
[1410000,"Zaměstnavatelé"]
[1420000,"Osoby samostatně výdělečně činné"]
[1430000,"Zaměstnanci"]
[1440000,"Příjemci důchodů z vlastnictví a transférových důchodů (včetně SVJ)"]
[1441000,"Příjemci důchodů z vlastnictví"]
[1442000,"Příjemci penzí"]
[1443000,"Příjemci ostatních transferů (obsahuje výhradně SVJ)"]
[1500000,"Neziskové instituce sloužící domácnostem"]
[1500200,"Neziskové instituce sloužící domácnostem soukromé národní"]
[1500300,"Neziskové instituce sloužící domácnostem pod zahraniční kontrolou"]
[2001001,"Nefinanční podniky veřejné"]
[2001002,"Nefinanční podniky soukromé národní"]
[2001003,"Nefinanční podniky soukromé pod zahraniční kontrolou"]
[2002100,"Centrální banka"]
[2002201,"Instituce přijímající vklady veřejné"]
[2002202,"Instituce přijímající vklady soukromé národní"]
[2002203,"Instituce přijímající vklady soukromé pod zahraniční kontrolou"]
[2002211,"Banky veřejné"]
[2002212,"Banky soukromé národní"]
[2002213,"Banky soukromé pod zahraniční kontrolou"]
[2002221,"Jiné instituce přijímající vklady veřejné"]
[2002222,"Spořitelní a úvěrní družstva soukromé národní"]
[2002223,"Spořitelní a úvěrní družstva soukromé pod zahraniční kontrolou"]
[2002242,"Jiné instituce přijímající vklady soukromé národní"]
[2002243,"Jiné instituce přijímající vklady soukromé pod zahraniční kontrolou"]
[2002301,"Fondy peněžního trhu veřejné"]
[2002302,"Fondy peněžního trhu soukromé národní"]
[2002303,"Fondy peněžního trhu soukromé pod zahraniční kontrolou"]
[2002401,"Fondy kolektivního investování (kromě FPT) veřejné"]
[2002402,"Fondy kolektivního investování (kromě FPT) soukromé národní"]
[2002403,"Fondy kolektivního investování (kromě FPT) pod zahraniční kontrolou"]
[2002501,"Ostatní finanční zprostředkovatelé (kromě IC a PF) - veřejní"]
[2002502,"Ostatní finanční zprostředkovatelé (kromě IC a PF) - soukromí národní"]
[2002503,"Ostatní finanční zprostředkovatelé (kromě IC a PF) -pod zahraniční kontrolou"]
[2002511,"Účelové finanční instituce pro sekuritizaci aktiv - veřejní"]
[2002512,"Účelové finanční instituce pro sekuritizaci aktiv - soukromí národní"]
[2002513,"Účelové finanční instituce pro sekuritizaci aktiv - pod zahraniční kontrolou"]
[2002521,"Obchodníci s cennými papíry a deriváty - veřejní"]
[2002522,"Obchodníci s cennými papíry a deriváty - soukromí národní"]
[2002523,"Obchodníci s cennými papíry a deriváty - pod zahraniční kontrolou"]
[2002531,"Finanční instituce poskytující úvěry - veřejní"]
[2002532,"Finanční instituce poskytující úvěry - soukromí národní"]
[2002533,"Finanční instituce poskytující úvěry - pod zahraniční kontrolou"]
[2002541,"Specializované finanční instituce - veřejní"]
[2002542,"Specializované finanční instituce - soukromí národní"]
[2002543,"Specializované finanční instituce - pod zahraniční kontrolou"]
[2002601,"Pomocné finanční instituce veřejné"]
[2002602,"Pomocné finanční instituce soukromé národní"]
[2002603,"Pomocné finanční instituce pod zahraniční kontrolou"]
[2002701,"Kaptivní finanční instituce a půjčovatelé peněz veřejné"]
[2002702,"Kaptivní finanční instituce a půjčovatelé peněz soukromé národní"]
[2002703,"Kaptivní finanční instituce a půjčovatelé peněz pod zahraniční kontrolou"]
[2002801,"Pojišťovací společnosti (IC) veřejné"]
[2002802,"Pojišťovací společnosti (IC) soukromé národní"]
[2002803,"Pojišťovací společnosti (IC) pod zahraniční kontrolou"]
[2002901,"Penzijní fondy (PF) veřejné"]
[2002902,"Penzijní fondy (PF) soukromé národní"]
[2002903,"Penzijní fondy (PF) pod zahraniční kontrolou"]
[2003000,"Vládní instituce"]
[2003110,"Ústřední vládní instituce"]
[2003120,"Národní vládní instituce"]
[2003130,"Místní vládní instituce"]
[2003140,"Fondy sociálního zabezpečení"]
[2004000,"Domácnosti"]
[2004100,"Zaměstnavatelé"]
[2004200,"Osoby samostatně výdělečně činné"]
[2004300,"Zaměstnanci"]
[2004400,"Příjemci důchodů z vlastnictví a transférových důchodů (včetně SVJ)"]
[2004410,"Příjemci důchodů z vlastnictví"]
[2004420,"Příjemci penzí"]
[2004430,"Příjemci ostatních transferů (obsahuje výhradně SVJ)"]
[2005000,"Neziskové instituce sloužící domácnostem"]
[2005002,"Neziskové instituce sloužící domácnostem soukromé národní"]
[2005003,"Neziskové instituce sloužící domácnostem pod zahraniční kontrolou"]
[2009030,"Mezinárodní instituce"]
[2009031,"Mezinárodní rozvojové banky"]
[2009035,"Ostatní mezinárodní instituce"]
[2100000,"Nerezidenti - Evropská unie"]
[2110000,"Členské zeměEvropské unie"]
[2120000,"Instituce Evropské unie"]
[2200000,"Ostatní země a mezinárodní instituce"]

{"sheet":"Číselník NACE","index":9,"n_rows":1698,"n_cols":2,"rows_kept":1698,"cut":false,"hidden":true,"merged":[[0,0,0,1]]}
["CNB_NACE - ekonomická činnost (BA0051)"]
["Kód","Název"]
["01","Rostlinná a živočišná výroba, myslivost a související činnosti"]
["011","Pěstování plodin jiných než trvalých"]
["0111","Pěstování obilovin (kromě rýže), luštěnin a olejnatých semen"]
["01110","Pěstování obilovin (kromě rýže), luštěnin a olejnatých semen"]
["0112","Pěstování rýže"]
["01120","Pěstování rýže"]
["0113","Pěstování zeleniny a melounů, kořenů a hlíz"]
["01130","Pěstování zeleniny a melounů, kořenů a hlíz"]
["0114","Pěstování cukrové třtiny"]
["01140","Pěstování cukrové třtiny"]
["0115","Pěstování tabáku"]
["01150","Pěstování tabáku"]
["0116","Pěstování přadných rostlin"]
["01160","Pěstování přadných rostlin"]
["0119","Pěstování ostatních plodin jiných než trvalých"]
["01190","Pěstování ostatních plodin jiných než trvalých"]
["012","Pěstování trvalých plodin"]
["0121","Pěstování vinných hroznů"]
["01210","Pěstování vinných hroznů"]
["0122","Pěstování tropického a subtropického ovoce"]
["01220","Pěstování tropického a subtropického ovoce"]
["0123","Pěstování citrusových plodů"]
["01230","Pěstování citrusových plodů"]
["0124","Pěstování jádrového a peckového ovoce"]
["01240","Pěstování jádrového a peckového ovoce"]
["0125","Pěstování ostatního stromového a keřového ovoce a ořechů"]
["01250","Pěstování ostatního stromového a keřového ovoce a ořechů"]
["0126","Pěstování olejnatých plodů"]
["01260","Pěstování olejnatých plodů"]
["0127","Pěstování rostlin pro výrobu nápojů"]
["01270","Pěstování rostlin pro výrobu nápojů"]
["0128","Pěstování koření, aromatických, léčivých a farmaceutických rostlin"]
["01280","Pěstování koření, aromatických, léčivých a farmaceutických rostlin"]
["0129","Pěstování ostatních trvalých plodin"]
["01290","Pěstování ostatních trvalých plodin"]
["013","Množení rostlin"]
["0130","Množení rostlin"]
["01300","Množení rostlin"]
["014","Živočišná výroba"]
["0141","Chov mléčného skotu"]
["01410","Chov mléčného skotu"]
["0142","Chov jiného skotu"]
["01420","Chov jiného skotu"]
["0143","Chov koní a jiných koňovitých"]
["01430","Chov koní a jiných koňovitých"]
["0144","Chov velbloudů a velbloudovitých"]
["01440","Chov velbloudů a velbloudovitých"]
["0145","Chov ovcí a koz"]
["01450","Chov ovcí a koz"]
["0146","Chov prasat"]
["01460","Chov prasat"]
["0147","Chov drůbeže"]
["01470","Chov drůbeže"]
["0149","Chov ostatních zvířat"]
["01491","Chov drobných hospodářských zvířat"]
["01492","Chov kožešinových zvířat"]
["01493","Chov zvířat pro zájmový chov"]
["01499","Chov ostatních zvířat j. n."]
["015","Smíšené hospodářství"]
["0150","Smíšené hospodářství"]
["01500","Smíšené hospodářství"]
["016","Podpůrné činnosti pro zemědělství a posklizňové činnosti"]
["0161","Podpůrné činnosti pro rostlinnou výrobu"]
["01610","Podpůrné činnosti pro rostlinnou výrobu"]
["0162","Podpůrné činnosti pro živočišnou výrobu"]
["01620","Podpůrné činnosti pro živočišnou výrobu"]
["0163","Posklizňové činnosti"]
["01630","Posklizňové činnosti"]
["0164","Zpracování osiva pro účely množení"]
["01640","Zpracování osiva pro účely množení"]
["017","Lov a odchyt divokých zvířat a související činnosti"]
["0170","Lov a odchyt divokých zvířat a související činnosti"]
["01700","Lov a odchyt divokých zvířat a související činnosti"]
["02","Lesnictví a těžba dřeva"]
["021","Lesní hospodářství a jiné činnosti v oblasti lesnictví"]
["0210","Lesní hospodářství a jiné činnosti v oblasti lesnictví"]
["02100","Lesní hospodářství a jiné činnosti v oblasti lesnictví"]
["022","Těžba dřeva"]
["0220","Těžba dřeva"]
["02200","Těžba dřeva"]
["023","Sběr a získávání volně rostoucích plodů a materiálů, kromě dřeva"]
["0230","Sběr a získávání volně rostoucích plodů a materiálů, kromě dřeva"]
["02300","Sběr a získávání volně rostoucích plodů a materiálů, kromě dřeva"]
["024","Podpůrné činnosti pro lesnictví"]
["0240","Podpůrné činnosti pro lesnictví"]
["02400","Podpůrné činnosti pro lesnictví"]
["03","Rybolov a akvakultura"]
["031","Rybolov"]
["0311","Mořský rybolov"]
["03110","Mořský rybolov"]
["0312","Sladkovodní rybolov"]
["03120","Sladkovodní rybolov"]
["032","Akvakultura"]
["0321","Mořská akvakultura"]
["03210","Mořská akvakultura"]
["0322","Sladkovodní akvakultura"]
["03220","Sladkovodní akvakultura"]
["05","Těžba a úprava černého a hnědého uhlí"]
["051","Těžba a úprava černého uhlí"]
["0510","Těžba a úprava černého uhlí"]
["05101","Těžba černého uhlí"]
["05102","Úprava černého uhlí"]
["052","Těžba a úprava hnědého uhlí"]
["0520","Těžba a úprava hnědého uhlí"]
["05201","Těžba hnědého uhlí, kromě lignitu"]
["05202","Úprava hnědého uhlí, kromě lignitu"]
["05203","Těžba lignitu"]
["05204","Úprava lignitu"]
["06","Těžba ropy a zemního plynu"]
["061","Těžba ropy"]
["0610","Těžba ropy"]
["06100","Těžba ropy"]
["062","Těžba zemního plynu"]
["0620","Těžba zemního plynu"]
["06200","Těžba zemního plynu"]
["07","Těžba a úprava rud"]
["071","Těžba a úprava železných rud"]
["0710","Těžba a úprava železných rud"]
["07101","Těžba železných rud"]
["07102","Úprava železných rud"]
["072","Těžba a úprava neželezných rud"]
["0721","Těžba a úprava uranových a thoriových rud"]
["07211","Těžba uranových a thoriových rud"]
["07212","Úprava uranových a thoriových rud"]
["0729","Těžba a úprava ostatních neželezných rud"]
["07291","Těžba ostatních neželezných rud"]
["07292","Úprava ostatních neželezných rud"]
["08","Ostatní těžba a dobývání"]
["081","Dobývání kamene, písků a jílů"]
["0811","Dobývání kamene pro výtvarné nebo stavební účely, vápence, sádrovce, křídy a břidlice"]
["08110","Dobývání kamene pro výtvarné nebo stavební účely, vápence, sádrovce, křídy a břidlice"]
["0812","Provoz pískoven a štěrkopískoven, těžba jílů a kaolinu"]
["08120","Provoz pískoven a štěrkopískoven, těžba jílů a kaolinu"]
["089","Těžba a dobývání j. n."]
["0891","Těžba chemických minerálů a minerálů pro výrobu hnojiv"]
["08910","Těžba chemických minerálů a minerálů pro výrobu hnojiv"]
["0892","Těžba rašeliny"]
["08920","Těžba rašeliny"]
["0893","Těžba soli"]
["08930","Těžba soli"]
["0899","Ostatní těžba a dobývání j. n."]
["08990","Ostatní těžba a dobývání j. n."]
["09","Podpůrné činnosti při těžbě"]
["091","Podpůrné činnosti při těžbě ropy a zemního plynu"]
["0910","Podpůrné činnosti při těžbě ropy a zemního plynu"]
["09100","Podpůrné činnosti při těžbě ropy a zemního plynu"]
["099","Podpůrné činnosti při ostatní těžbě a dobývání"]
["0990","Podpůrné činnosti při ostatní těžbě a dobývání"]
["09900","Podpůrné činnosti při ostatní těžbě a dobývání"]
["10","Výroba potravinářských výrobků"]
["101","Zpracování a konzervování masa a výroba masných výrobků"]
["1011","Zpracování a konzervování masa, kromě drůbežího"]
["10110","Zpracování a konzervování masa, kromě drůbežího"]
["1012","Zpracování a konzervování drůbežího masa"]
["10120","Zpracování a konzervování drůbežího masa"]
["1013","Výroba masných výrobků a výrobků z drůbežího masa"]
["10130","Výroba masných výrobků a výrobků z drůbežího masa"]
["102","Zpracování a konzervování ryb, korýšů a měkkýšů"]
["1020","Zpracování a konzervování ryb, korýšů a měkkýšů"]
["10200","Zpracování a konzervování ryb, korýšů a měkkýšů"]
["103","Zpracování a konzervování ovoce a zeleniny"]
["1031","Zpracování a konzervování brambor"]
["10310","Zpracování a konzervování brambor"]
["1032","Výroba ovocných a zeleninových šťáv"]
["10320","Výroba ovocných a zeleninových šťáv"]
["1039","Ostatní zpracování a konzervování ovoce a zeleniny"]
["10390","Ostatní zpracování a konzervování ovoce a zeleniny"]
["104","Výroba rostlinných a živočišných olejů a tuků"]
["1041","Výroba olejů a tuků"]
["10410","Výroba olejů a tuků"]
["1042","Výroba margarínu a podobných jedlých tuků"]
["10420","Výroba margarínu a podobných jedlých tuků"]
["105","Výroba mléčných výrobků"]
["1051","Zpracování mléka, výroba mléčných výrobků a sýrů"]
["10510","Zpracování mléka, výroba mléčných výrobků a sýrů"]
["1052","Výroba zmrzliny"]
["10520","Výroba zmrzliny"]
["106","Výroba mlýnských a škrobárenských výrobků"]
["1061","Výroba mlýnských výrobků"]
["10610","Výroba mlýnských výrobků"]
["1062","Výroba škrobárenských výrobků"]
["10620","Výroba škrobárenských výrobků"]
["107","Výroba pekařských, cukrářských a jiných moučných výrobků"]
["1071","Výroba pekařských a cukrářských výrobků, kromě trvanlivých"]
["10710","Výroba pekařských a cukrářských výrobků, kromě trvanlivých"]
["1072","Výroba sucharů a sušenek, výroba trvanlivých cukrářských výr"]
["10720","Výroba sucharů a sušenek, výroba trvanlivých cukrářských výr"]
["1073","Výroba makaronů, nudlí, kuskusu a podobných moučných výrobků"]
["10730","Výroba makaronů, nudlí, kuskusu a podobných moučných výrobků"]
["108","Výroba ostatních potravinářských výrobků"]
["1081","Výroba cukru"]
["10810","Výroba cukru"]
["1082","Výroba kakaa, čokolády a cukrovinek"]
["10820","Výroba kakaa, čokolády a cukrovinek"]
["1083","Zpracování čaje a kávy"]
["10830","Zpracování čaje a kávy"]
["1084","Výroba koření a aromatických výtažků"]
["10840","Výroba koření a aromatických výtažků"]
["1085","Výroba hotových pokrmů"]
["10850","Výroba hotových pokrmů"]
["1086","Výroba homogenizovaných potravinářských přípravků a dietních potravin"]
["10860","Výroba homogenizovaných potravinářských přípravků a dietních potravin"]
["1089","Výroba ostatních potravinářských výrobků j. n."]
["10890","Výroba ostatních potravinářských výrobků j. n."]
["109","Výroba průmyslových krmiv"]
["1091","Výroba průmyslových krmiv pro hospodářská zvířata"]
["10910","Výroba průmyslových krmiv pro hospodářská zvířata"]
["1092","Výroba průmyslových krmiv pro zvířata v zájmovém chovu"]
["10920","Výroba průmyslových krmiv pro zvířata v zájmovém chovu"]
["11","Výroba nápojů"]
["110","Výroba nápojů"]
["1101","Destilace, rektifikace a míchání lihovin"]
["11010","Destilace, rektifikace a míchání lihovin"]
["1102","Výroba vína z vinných hroznů"]
["11020","Výroba vína z vinných hroznů"]
["1103","Výroba jablečného vína a jiných ovocných vín"]
["11030","Výroba jablečného vína a jiných ovocných vín"]
["1104","Výroba ostatních nedestilovaných kvašených nápojů"]
["11040","Výroba ostatních nedestilovaných kvašených nápojů"]
["1105","Výroba piva"]
["11050","Výroba piva"]
["1106","Výroba sladu"]
["11060","Výroba sladu"]
["1107","Výroba nealkoholických nápojů, stáčení minerálních a ostatních vod do lahví"]
["11070","Výroba nealkoholických nápojů, stáčení minerálních a ostatních vod do lahví"]
["12","Výroba tabákových výrobků"]
["120","Výroba tabákových výrobků"]
["1200","Výroba tabákových výrobků"]
["12000","Výroba tabákových výrobků"]
["13","Výroba textilií"]
["131","Úprava a spřádání textilních vláken a příze"]
["1310","Úprava a spřádání textilních vláken a příze"]
["13100","Úprava a spřádání textilních vláken a příze"]
["132","Tkaní textilií"]
["1320","Tkaní textilií"]
["13200","Tkaní textilií"]
["133","Konečná úprava textilií"]
["1330","Konečná úprava textilií"]
["13300","Konečná úprava textilií"]
["139","Výroba ostatních textilií"]
["1391","Výroba pletených a háčkovaných materiálů"]
["13910","Výroba pletených a háčkovaných materiálů"]
["1392","Výroba konfekčních textilních výrobků, kromě oděvů"]
["13920","Výroba konfekčních textilních výrobků, kromě oděvů"]
["1393","Výroba koberců a kobercových předložek"]
["13930","Výroba koberců a kobercových předložek"]
["1394","Výroba lan, provazů a síťovaných výrobků"]
["13940","Výroba lan, provazů a síťovaných výrobků"]
["1395","Výroba netkaných textilií a výrobků z nich, kromě oděvů"]
["13950","Výroba netkaných textilií a výrobků z nich, kromě oděvů"]
["1396","Výroba ostatních technických a průmyslových textilií"]
["13960","Výroba ostatních technických a průmyslových textilií"]
["1399","Výroba ostatních textilií j. n."]
["13990","Výroba ostatních textilií j. n."]
["14","Výroba oděvů"]
["141","Výroba oděvů, kromě kožešinových výrobků"]
["1411","Výroba kožených oděvů"]
["14110","Výroba kožených oděvů"]
["1412","Výroba pracovních oděvů"]
["14120","Výroba pracovních oděvů"]
["1413","Výroba ostatních svrchních oděvů"]
["14130","Výroba ostatních svrchních oděvů"]
["1414","Výroba osobního prádla"]
["14140","Výroba osobního prádla"]
["1419","Výroba ostatních oděvů a oděvních doplňků"]
["14190","Výroba ostatních oděvů a oděvních doplňků"]
["142","Výroba kožešinových výrobků"]
["1420","Výroba kožešinových výrobků"]
["14200","Výroba kožešinových výrobků"]
["143","Výroba pletených a háčkovaných oděvů"]
["1431","Výroba pletených a háčkovaných punčochových výrobků"]
["14310","Výroba pletených a háčkovaných punčochových výrobků"]
["1439","Výroba ostatních pletených a háčkovaných oděvů"]
["14390","Výroba ostatních pletených a háčkovaných oděvů"]
["15","Výroba usní a souvisejících výrobků"]
["151","Činění a úprava usní (vyčiněných kůží), zpracování a barvení"]
["1511","Činění a úprava usní (vyčiněných kůží), zpracování a barvení"]
["15110","Činění a úprava usní (vyčiněných kůží), zpracování a barvení"]
["1512","Výroba brašnářských, sedlářských a podobných výrobků"]
["15120","Výroba brašnářských, sedlářských a podobných výrobků"]
["152","Výroba obuvi"]
["1520","Výroba obuvi"]
["15201","Výroba obuvi s usňovým svrškem"]
["15209","Výroba obuvi z ostatních materiálů"]
["16","Zpracování dřeva, výroba dřevěných, korkových, proutěných a slaměných výrobků, kromě nábytku"]
["161","Výroba pilařská a impregnace dřeva"]
["1610","Výroba pilařská a impregnace dřeva"]
["16100","Výroba pilařská a impregnace dřeva"]
["162","Výroba dřevěných, korkových, proutěných a slaměných výrobků, kromě nábytku"]
["1621","Výroba dýh a desek na bázi dřeva"]
["16210","Výroba dýh a desek na bázi dřeva"]
["1622","Výroba sestavených parketových podlah"]
["16220","Výroba sestavených parketových podlah"]
["1623","Výroba ostatních výrobků stavebního truhlářství a tesařství"]
["16230","Výroba ostatních výrobků stavebního truhlářství a tesařství"]
["1624","Výroba dřevěných obalů"]
["16240","Výroba dřevěných obalů"]
["1629","Výroba ostatních dřevěných, korkových, proutěných a slaměných výrobků, kromě nábytku"]
["16290","Výroba ostatních dřevěných, korkových, proutěných a slaměných výrobků, kromě nábytku"]
["17","Výroba papíru a výrobků z papíru"]
["171","Výroba buničiny, papíru a lepenky"]
["1711","Výroba buničiny"]
["17111","Výroba chemických buničin"]
["17112","Výroba mechanických vláknin"]
["17113","Výroba ostatních papírenských vláknin"]
["1712","Výroba papíru a lepenky"]
["17120","Výroba papíru a lepenky"]
["172","Výroba výrobků z papíru a lepenky"]
["1721","Výroba vlnitého papíru a lepenky, papírových a lepenkových obalů"]
["17210","Výroba vlnitého papíru a lepenky, papírových a lepenkových obalů"]
["1722","Výroba domácích potřeb, hygienických a toaletních výrobků z papíru"]
["17220","Výroba domácích potřeb, hygienických a toaletních výrobků z papíru"]
["1723","Výroba kancelářských potřeb z papíru"]
["17230","Výroba kancelářských potřeb z papíru"]
["1724","Výroba tapet"]
["17240","Výroba tapet"]
["1729","Výroba ostatních výrobků z papíru a lepenky"]
["17290","Výroba ostatních výrobků z papíru a lepenky"]
["18","Tisk a rozmnožování nahraných nosičů"]
["181","Tisk a činnosti související s tiskem"]
["1811","Tisk novin"]
["18110","Tisk novin"]
["1812","Tisk ostatní, kromě novin"]
["18120","Tisk ostatní, kromě novin"]
["1813","Příprava tisku a digitálních dat"]
["18130","Příprava tisku a digitálních dat"]
["1814","Vázání a související činnosti"]
["18140","Vázání a související činnosti"]
["182","Rozmnožování nahraných nosičů"]
["1820","Rozmnožování nahraných nosičů"]
["18200","Rozmnožování nahraných nosičů"]
["19","Výroba koksu a rafinovaných ropných produktů"]
["191","Výroba koksárenských produktů"]
["1910","Výroba koksárenských produktů"]
["19100","Výroba koksárenských produktů"]
["192","Výroba rafinovaných ropných produktů"]
["1920","Výroba rafinovaných ropných produktů"]
["19200","Výroba rafinovaných ropných produktů"]
["20","Výroba chemických látek a chemických přípravků"]
["201","Výroba základních chemických látek, hnojiv a dusíkatých sloučenin, plastů a syntetického kaučuku v primárních formách"]
["2011","Výroba technických plynů"]
["20110","Výroba technických plynů"]
["2012","Výroba barviv a pigmentů"]
["20120","Výroba barviv a pigmentů"]
["2013","Výroba jiných základních anorganických chemických látek"]
["20130","Výroba jiných základních anorganických chemických látek"]
["2014","Výroba jiných základních organických chemických látek"]
["20141","Výroba bioetanolu (biolihu) pro pohon motorů a pro výrobu směsí a komponent pro pohon motorů"]
["20149","Výroba ostatních základních organických chemických látek"]
["2015","Výroba hnojiv a dusíkatých sloučenin"]
["20150","Výroba hnojiv a dusíkatých sloučenin"]
["2016","Výroba plastů v primárních formách"]
["20160","Výroba plastů v primárních formách"]
["2017","Výroba syntetického kaučuku v primárních formách"]
["20170","Výroba syntetického kaučuku v primárních formách"]
["202","Výroba pesticidů a jiných agrochemických přípravků"]
["2020","Výroba pesticidů a jiných agrochemických přípravků"]
["20200","Výroba pesticidů a jiných agrochemických přípravků"]
["203","Výroba nátěrových barev, laků a jiných nátěrových materiálů, tiskařských barev a tmelů"]
["2030","Výroba nátěrových barev, laků a jiných nátěrových materiálů, tiskařských barev a tmelů"]
["20300","Výroba nátěrových barev, laků a jiných nátěrových materiálů, tiskařských barev a tmelů"]
["204","Výroba mýdel a detergentů, čisticích a lešticích prostředků, parfémů a toaletních přípravků"]
["2041","Výroba mýdel a detergentů, čisticích a lešticích prostředků, parfémů a toaletních přípravků"]
["20410","Výroba mýdel a detergentů, čisticích a lešticích prostředků, parfémů a toaletních přípravků"]
["2042","Výroba parfémů a toaletních přípravků"]
["20420","Výroba parfémů a toaletních přípravků"]
["205","Výroba ostatních chemických výrobků"]
["2051","Výroba výbušnin"]
["20510","Výroba výbušnin"]
["2052","Výroba klihů"]
["20520","Výroba klihů"]
["2053","Výroba vonných silic"]
["20530","Výroba vonných silic"]
["2059","Výroba ostatních chemických výrobků j. n."]
["20591","Výroba metylesterů a etylesterů mastných kyselin pro pohon motorů a pro výrobu směsí paliv pro pohon motorů"]
["20599","Výroba jiných chemických výrobků j. n."]
["206","Výroba chemických vláken"]
["2060","Výroba chemických vláken"]
["20600","Výroba chemických vláken"]
["21","Výroba základních farmaceutických výrobků a farmaceutických přípravků"]
["211","Výroba základních farmaceutických výrobků"]
["2110","Výroba základních farmaceutických výrobků"]
["21100","Výroba základních farmaceutických výrobků"]
["212","Výroba farmaceutických přípravků"]
["2120","Výroba farmaceutických přípravků"]
["21200","Výroba farmaceutických přípravků"]
["22","Výroba pryžových a plastových výrobků"]
["221","Výroba pryžových výrobků"]
["2211","Výroba pryžových plášťů a duší, protektorování pneumatik"]
["22110","Výroba pryžových plášťů a duší, protektorování pneumatik"]
["2219","Výroba ostatních pryžových výrobků"]
["22190","Výroba ostatních pryžových výrobků"]
["222","Výroba plastových výrobků"]
["2221","Výroba plastových desek, fólií, hadic, trubek a profilů"]
["22210","Výroba plastových desek, fólií, hadic, trubek a profilů"]
["2222","Výroba plastových obalů"]
["22220","Výroba plastových obalů"]
["2223","Výroba plastových výrobků pro stavebnictví"]
["22230","Výroba plastových výrobků pro stavebnictví"]
["2229","Výroba ostatních plastových výrobků"]
["22290","Výroba ostatních plastových výrobků"]
["23","Výroba ostatních nekovových minerálních výrobků"]
["231","Výroba skla a skleněných výrobků"]
["2311","Výroba plochého skla"]
["23110","Výroba plochého skla"]
["2312","Tvarování a zpracování plochého skla"]
["23120","Tvarování a zpracování plochého skla"]
["2313","Výroba dutého skla"]
["23130","Výroba dutého skla"]
["2314","Výroba skleněných vláken"]
["23140","Výroba skleněných vláken"]
["2319","Výroba a zpracování ostatního skla vč. technického"]
["23190","Výroba a zpracování ostatního skla vč. technického"]
["232","Výroba žáruvzdorných výrobků"]
["2320","Výroba žáruvzdorných výrobků"]
["23200","Výroba žáruvzdorných výrobků"]
["233","Výroba stavebních výrobků z jílovitých materiálů"]
["2331","Výroba keramických obkládaček a dlaždic"]
["23310","Výroba keramických obkládaček a dlaždic"]
["2332","Výroba pálených zdicích materiálů, tašek, dlaždic a podobných výrobků"]
["23320","Výroba pálených zdicích materiálů, tašek, dlaždic a podobných výrobků"]
["234","Výroba ostatních porcelánových a keramických výrobků"]
["2341","Výroba keramických a porcelánových výrobků převážně pro domácnost a ozdobných předmětů"]
["23410","Výroba keramických a porcelánových výrobků převážně pro domácnost a ozdobných předmětů"]
["2342","Výroba keramických sanitárních výrobků"]
["23420","Výroba keramických sanitárních výrobků"]
["2343","Výroba keramických izolátorů a izolačního příslušenství"]
["23430","Výroba keramických izolátorů a izolačního příslušenství"]
["2344","Výroba ostatních technických keramických výrobků"]
["23440","Výroba ostatních technických keramických výrobků"]
["2349","Výroba ostatních keramických výrobků"]
["23490","Výroba ostatních keramických výrobků"]
["235","Výroba cementu, vápna a sádry"]
["2351","Výroba cementu"]
["23510","Výroba cementu"]
["2352","Výroba vápna a sádry"]
["23520","Výroba vápna a sádry"]
["236","Výroba betonových, cementových a sádrových výrobků"]
["2361","Výroba betonových výrobků pro stavební účely"]
["23610","Výroba betonových výrobků pro stavební účely"]
["2362","Výroba sádrových výrobků pro stavební účely"]
["23620","Výroba sádrových výrobků pro stavební účely"]
["2363","Výroba betonu připraveného k lití"]
["23630","Výroba betonu připraveného k lití"]
["2364","Výroba malt"]
["23640","Výroba malt"]
["2365","Výroba vláknitých cementů"]
["23650","Výroba vláknitých cementů"]
["2369","Výroba ostatních betonových, cementových a sádrových výrobků"]
["23690","Výroba ostatních betonových, cementových a sádrových výrobků"]
["237","Řezání, tvarování a konečná úprava kamenů"]
["2370","Řezání, tvarování a konečná úprava kamenů"]
["23700","Řezání, tvarování a konečná úprava kamenů"]
["239","Výroba brusiv a ostatních nekovových minerálních výrobků j. n."]
["2391","Výroba brusiv"]
["23910","Výroba brusiv"]
["2399","Výroba ostatních nekovových minerálních výrobků j. n."]
["23990","Výroba ostatních nekovových minerálních výrobků j. n."]
["24","Výroba základních kovů, hutní zpracování kovů, slévárenství"]
["241","Výroba surového železa, oceli a feroslitin, plochých výrobků"]
["2410","Výroba surového železa, oceli a feroslitin, plochých výrobků"]
["24101","Výroba surového železa, oceli a feroslitin"]
["24102","Výroba plochých výrobků (kromě pásky za studena)"]
["24103","Tváření výrobků za tepla"]
["242","Výroba ocelových trub, trubek, dutých profilů a souvisejících potrubních tvarovek"]
["2420","Výroba ocelových trub, trubek, dutých profilů a souvisejících potrubních tvarovek"]
["24200","Výroba ocelových trub, trubek, dutých profilů a souvisejících potrubních tvarovek"]
["243","Výroba ostatních výrobků získaných jednostupňovým zpracováním oceli"]
["2431","Tažení tyčí za studena"]
["24310","Tažení tyčí za studena"]
["2432","Válcování ocelových úzkých pásů za studena"]
["24320","Válcování ocelových úzkých pásů za studena"]
["2433","Tváření ocelových profilů za studena"]
["24330","Tváření ocelových profilů za studena"]
["2434","Tažení ocelového drátu za studena"]
["24340","Tažení ocelového drátu za studena"]
["244","Výroba a hutní zpracování drahých a neželezných kovů"]
["2441","Výroba a hutní zpracování drahých kovů"]
["24410","Výroba a hutní zpracování drahých kovů"]
["2442","Výroba a hutní zpracování hliníku"]
["24420","Výroba a hutní zpracování hliníku"]
["2443","Výroba a hutní zpracování olova, zinku a cínu"]
["24430","Výroba a hutní zpracování olova, zinku a cínu"]
["2444","Výroba a hutní zpracování mědi"]
["24440","Výroba a hutní zpracování mědi"]
["2445","Výroba a hutní zpracování ostatních neželezných kovů"]
["24450","Výroba a hutní zpracování ostatních neželezných kovů"]
["2446","Zpracování jaderného paliva"]
["24460","Zpracování jaderného paliva"]
["245","Slévárenství"]
["2451","Výroba odlitků z litiny"]
["24511","Výroba odlitků z litiny s lupínkovým grafitem"]
["24512","Výroba odlitků z litiny s kuličkovým grafitem"]
["24519","Výroba ostatních odlitků z litiny"]
["2452","Výroba odlitků z oceli"]
["24521","Výroba odlitků z uhlíkatých ocelí"]
["24522","Výroba odlitků z legovaných ocelí"]
["2453","Výroba odlitků z lehkých neželezných kovů"]
["24530","Výroba odlitků z lehkých neželezných kovů"]
["2454","Výroba odlitků z ostatních neželezných kovů"]
["24540","Výroba odlitků z ostatních neželezných kovů"]
["25","Výroba kovových konstrukcí a kovodělných výrobků, kromě strojů a zařízení"]
["251","Výroba konstrukčních kovových výrobků"]
["2511","Výroba kovových konstrukcí a jejich dílů"]
["25110","Výroba kovových konstrukcí a jejich dílů"]
["2512","Výroba kovových dveří a oken"]
["25120","Výroba kovových dveří a oken"]
["252","Výroba radiátorů a kotlů k ústřednímu topení, kovových nádrží a zásobníků"]
["2521","Výroba radiátorů a kotlů k ústřednímu topení"]
["25210","Výroba radiátorů a kotlů k ústřednímu topení"]
["2529","Výroba kovových nádrží a zásobníků"]
["25290","Výroba kovových nádrží a zásobníků"]
["253","Výroba parních kotlů, kromě kotlů pro ústřední topení"]
["2530","Výroba parních kotlů, kromě kotlů pro ústřední topení"]
["25300","Výroba parních kotlů, kromě kotlů pro ústřední topení"]
["254","Výroba zbraní a střeliva"]
["2540","Výroba zbraní a střeliva"]
["25400","Výroba zbraní a střeliva"]
["255","Kování, lisování, ražení, válcování a protlačování kovů, prášková metalurgie"]
["2550","Kování, lisování, ražení, válcování a protlačování kovů, prášková metalurgie"]
["25500","Kování, lisování, ražení, válcování a protlačování kovů, prášková metalurgie"]
["256","Povrchová úprava a zušlechťování kovů, obrábění"]
["2561","Povrchová úprava a zušlechťování kovů"]
["25610","Povrchová úprava a zušlechťování kovů"]
["2562","Obrábění"]
["25620","Obrábění"]
["257","Výroba nožířských výrobků, nástrojů a železářských výrobků"]
["2571","Výroba nožířských výrobků"]
["25710","Výroba nožířských výrobků"]
["2572","Výroba zámků a kování"]
["25720","Výroba zámků a kování"]
["2573","Výroba nástrojů a nářadí"]
["25730","Výroba nástrojů a nářadí"]
["259","Výroba ostatních kovodělných výrobků"]
["2591","Výroba ocelových sudů a podobných nádob"]
["25910","Výroba ocelových sudů a podobných nádob"]
["2592","Výroba drobných kovových obalů"]
["25920","Výroba drobných kovových obalů"]
["2593","Výroba drátěných výrobků, řetězů a pružin"]
["25930","Výroba drátěných výrobků, řetězů a pružin"]
["2594","Výroba spojovacích materiálů a spojovacích výrobků se závity"]
["25940","Výroba spojovacích materiálů a spojovacích výrobků se závity"]
["2599","Výroba ostatních kovodělných výrobků j. n."]
["25990","Výroba ostatních kovodělných výrobků j. n."]
["26","Výroba počítačů, elektronických a optických přístrojů a zařízení"]
["261","Výroba elektronických součástek a desek"]
["2611","Výroba elektronických součástek"]
["26110","Výroba elektronických součástek"]
["2612","Výroba osazených elektronických desek"]
["26120","Výroba osazených elektronických desek"]
["262","Výroba počítačů a periferních zařízení"]
["2620","Výroba počítačů a periferních zařízení"]
["26200","Výroba počítačů a periferních zařízení"]
["263","Výroba komunikačních zařízení"]
["2630","Výroba komunikačních zařízení"]
["26300","Výroba komunikačních zařízení"]
["264","Výroba spotřební elektroniky"]
["2640","Výroba spotřební elektroniky"]
["26400","Výroba spotřební elektroniky"]
["265","Výroba měřicích, zkušebních a navigačních přístrojů, výroba časoměrných přístrojů"]
["2651","Výroba měřicích, zkušebních a navigačních přístrojů"]
["26510","Výroba měřicích, zkušebních a navigačních přístrojů"]
["2652","Výroba časoměrných přístrojů"]
["26520","Výroba časoměrných přístrojů"]
["266","Výroba ozařovacích, elektroléčebných a elektroterapeutických přístrojů"]
["2660","Výroba ozařovacích, elektroléčebných a elektroterapeutických přístrojů"]
["26600","Výroba ozařovacích, elektroléčebných a elektroterapeutických přístrojů"]
["267","Výroba optických a fotografických přístrojů a zařízení"]
["2670","Výroba optických a fotografických přístrojů a zařízení"]
["26700","Výroba optických a fotografických přístrojů a zařízení"]
["268","Výroba magnetických a optických médií"]
["2680","Výroba magnetických a optických médií"]
["26800","Výroba magnetických a optických médií"]
["27","Výroba elektrických zařízení"]
["271","Výroba elektrických motorů, generátorů, transformátorů a elektrických rozvodných a kontrolních zařízení"]
["2711","Výroba elektrických motorů, generátorů a transformátorů"]
["27110","Výroba elektrických motorů, generátorů a transformátorů"]
["2712","Výroba elektrických rozvodných a kontrolních zařízení"]
["27120","Výroba elektrických rozvodných a kontrolních zařízení"]
["272","Výroba baterií a akumulátorů"]
["2720","Výroba baterií a akumulátorů"]
["27200","Výroba baterií a akumulátorů"]
["273","Výroba optických a elektrických kabelů, elektrických vodičů"]
["2731","Výroba optických kabelů"]
["27310","Výroba optických kabelů"]
["2732","Výroba elektrických vodičů a kabelů j. n."]
["27320","Výroba elektrických vodičů a kabelů j. n."]
["2733","Výroba elektroinstalačních zařízení"]
["27330","Výroba elektroinstalačních zařízení"]
["274","Výroba elektrických osvětlovacích zařízení"]
["2740","Výroba elektrických osvětlovacích zařízení"]
["27400","Výroba elektrických osvětlovacích zařízení"]
["275","Výroba spotřebičů převážně pro domácnost"]
["2751","Výroba elektrických spotřebičů převážně pro domácnost"]
["27510","Výroba elektrických spotřebičů převážně pro domácnost"]
["2752","Výroba neelektrických spotřebičů převážně pro domácnost"]
["27520","Výroba neelektrických spotřebičů převážně pro domácnost"]
["279","Výroba ostatních elektrických zařízení"]
["2790","Výroba ostatních elektrických zařízení"]
["27900","Výroba ostatních elektrických zařízení"]
["28","Výroba strojů a zařízení j. n."]
["281","Výroba strojů a zařízení pro všeobecné účely"]
["2811","Výroba motorů a turbín, kromě motorů pro letadla, automobily a motocykly"]
["28110","Výroba motorů a turbín, kromě motorů pro letadla, automobily a motocykly"]
["2812","Výroba hydraulických a pneumatických zařízení"]
["28120","Výroba hydraulických a pneumatických zařízení"]
["2813","Výroba ostatních čerpadel a kompresorů"]
["28130","Výroba ostatních čerpadel a kompresorů"]
["2814","Výroba ostatních potrubních armatur"]
["28140","Výroba ostatních potrubních armatur"]
["2815","Výroba ložisek, ozubených kol, převodů a hnacích prvků"]
["28150","Výroba ložisek, ozubených kol, převodů a hnacích prvků"]
["282","Výroba ostatních strojů a zařízení pro všeobecné účely"]
["2821","Výroba pecí a hořáků pro topeniště"]
["28210","Výroba pecí a hořáků pro topeniště"]
["2822","Výroba zdvihacích a manipulačních zařízení"]
["28220","Výroba zdvihacích a manipulačních zařízení"]
["2823","Výroba kancelářských strojů a zařízení, kromě počítačů a periferních zařízení"]
["28230","Výroba kancelářských strojů a zařízení, kromě počítačů a periferních zařízení"]
["2824","Výroba ručních mechanizovaných nástrojů"]
["28240","Výroba ručních mechanizovaných nástrojů"]
["2825","Výroba průmyslových chladicích a klimatizačních zařízení"]
["28250","Výroba průmyslových chladicích a klimatizačních zařízení"]
["2829","Výroba ostatních strojů a zařízení pro všeobecné účely j. n."]
["28290","Výroba ostatních strojů a zařízení pro všeobecné účely j. n."]
["283","Výroba zemědělských a lesnických strojů"]
["2830","Výroba zemědělských a lesnických strojů"]
["28300","Výroba zemědělských a lesnických strojů"]
["284","Výroba kovoobráběcích a ostatních obráběcích strojů"]
["2841","Výroba kovoobráběcích strojů"]
["28410","Výroba kovoobráběcích strojů"]
["2849","Výroba ostatních obráběcích strojů"]
["28490","Výroba ostatních obráběcích strojů"]
["289","Výroba ostatních strojů pro speciální účely"]
["2891","Výroba strojů pro metalurgii"]
["28910","Výroba strojů pro metalurgii"]
["2892","Výroba strojů pro těžbu, dobývání a stavebnictví"]
["28920","Výroba strojů pro těžbu, dobývání a stavebnictví"]
["2893","Výroba strojů na výrobu potravin, nápojů a zpracování tabáku"]
["28930","Výroba strojů na výrobu potravin, nápojů a zpracování tabáku"]
["2894","Výroba strojů na výrobu textilu, oděvních výrobků a výrobků"]
["28940","Výroba strojů na výrobu textilu, oděvních výrobků a výrobků"]
["2895","Výroba strojů a přístrojů na výrobu papíru a lepenky"]
["28950","Výroba strojů a přístrojů na výrobu papíru a lepenky"]
["2896","Výroba strojů na výrobu plastů a pryže"]
["28960","Výroba strojů na výrobu plastů a pryže"]
["2899","Výroba ostatních strojů pro speciální účely j. n."]
["28990","Výroba ostatních strojů pro speciální účely j. n."]
["29","Výroba motorových vozidel (kromě motocyklů), přívěsů a návěsů"]
["291","Výroba motorových vozidel a jejich motorů"]
["2910","Výroba motorových vozidel a jejich motorů"]
["29100","Výroba motorových vozidel a jejich motorů"]
["292","Výroba karoserií motorových vozidel, výroba přívěsů a návěsů"]
["2920","Výroba karoserií motorových vozidel, výroba přívěsů a návěsů"]
["29200","Výroba karoserií motorových vozidel, výroba přívěsů a návěsů"]
["293","Výroba dílů a příslušenství pro motorová vozidla a jejich motory"]
["2931","Výroba elektrického a elektronického zařízení pro motorová vozidla"]
["29310","Výroba elektrického a elektronického zařízení pro motorová vozidla"]
["2932","Výroba ostatních dílů a příslušenství pro motorová vozidla"]
["29320","Výroba ostatních dílů a příslušenství pro motorová vozidla"]
["30","Výroba ostatních dopravních prostředků a zařízení"]
["301","Stavba lodí a člunů"]
["3011","Stavba lodí a plavidel"]
["30110","Stavba lodí a plavidel"]
["3012","Stavba rekreačních a sportovních člunů"]
["30120","Stavba rekreačních a sportovních člunů"]
["302","Výroba železničních lokomotiv a vozového parku"]
["3020","Výroba železničních lokomotiv a vozového parku"]
["30200","Výroba železničních lokomotiv a vozového parku"]
["303","Výroba letadel a jejich motorů, kosmických lodí a souvisejích zařízení"]
["3030","Výroba letadel a jejich motorů, kosmických lodí a souvisejích zařízení"]
["30300","Výroba letadel a jejich motorů, kosmických lodí a souvisejích zařízení"]
["304","Výroba vojenských bojových vozidel"]
["3040","Výroba vojenských bojových vozidel"]
["30400","Výroba vojenských bojových vozidel"]
["309","Výroba dopravních prostředků a zařízení j. n."]
["3091","Výroba motocyklů"]
["30910","Výroba motocyklů"]
["3092","Výroba jízdních kol a vozíků pro invalidy"]
["30920","Výroba jízdních kol a vozíků pro invalidy"]
["3099","Výroba ostatních dopravních prostředků a zařízení j. n."]
["30990","Výroba ostatních dopravních prostředků a zařízení j. n."]
["31","Výroba nábytku"]
["310","Výroba nábytku"]
["3101","Výroba kancelářského nábytku a zařízení obchodů"]
["31010","Výroba kancelářského nábytku a zařízení obchodů"]
["3102","Výroba kuchyňského nábytku"]
["31020","Výroba kuchyňského nábytku"]
["3103","Výroba matrací"]
["31030","Výroba matrací"]
["3109","Výroba ostatního nábytku"]
["31090","Výroba ostatního nábytku"]
["32","Ostatní zpracovatelský průmysl"]
["321","Výroba klenotů, bižuterie a příbuzných výrobků"]
["3211","Ražení mincí"]
["32110","Ražení mincí"]
["3212","Výroba klenotů a příbuzných výrobků"]
["32120","Výroba klenotů a příbuzných výrobků"]
["3213","Výroba bižuterie a příbuzných výrobků"]
["32130","Výroba bižuterie a příbuzných výrobků"]
["322","Výroba hudebních nástrojů"]
["3220","Výroba hudebních nástrojů"]
["32200","Výroba hudebních nástrojů"]
["323","Výroba sportovních potřeb"]
["3230","Výroba sportovních potřeb"]
["32300","Výroba sportovních potřeb"]
["324","Výroba her a hraček"]
["3240","Výroba her a hraček"]
["32400","Výroba her a hraček"]
["325","Výroba lékařských a dentálních nástrojů a potřeb"]
["3250","Výroba lékařských a dentálních nástrojů a potřeb"]
["32500","Výroba lékařských a dentálních nástrojů a potřeb"]
["329","Zpracovatelský průmysl j. n."]
["3291","Výroba košťat a kartáčnických výrobků"]
["32910","Výroba košťat a kartáčnických výrobků"]
["3299","Ostatní zpracovatelský průmysl j. n."]
["32990","Ostatní zpracovatelský průmysl j. n."]
["33","Opravy a instalace strojů a zařízení"]
["331","Opravy kovodělných výrobků, strojů a zařízení"]
["3311","Opravy kovodělných výrobků"]
["33110","Opravy kovodělných výrobků"]
["3312","Opravy strojů"]
["33120","Opravy strojů"]
["3313","Opravy elektronických a optických přístrojů a zařízení"]
["33130","Opravy elektronických a optických přístrojů a zařízení"]
["3314","Opravy elektrických zařízení"]
["33140","Opravy elektrických zařízení"]
["3315","Opravy a údržba lodí a člunů"]
["33150","Opravy a údržba lodí a člunů"]
["3316","Opravy a údržba letadel a kosmických lodí"]
["33160","Opravy a údržba letadel a kosmických lodí"]
["3317","Opravy a údržba ostatních dopravních prostředků a zařízení j. n."]
["33171","Opravy a údržba kolejových vozidel"]
["33179","Opravy a údržba ostatních dopravních prostředků a zařízení j. n., kromě kolejových vozidel"]
["3319","Opravy ostatních zařízení"]
["33190","Opravy ostatních zařízení"]
["332","Instalace průmyslových strojů a zařízení"]
["3320","Instalace průmyslových strojů a zařízení"]
["33200","Instalace průmyslových strojů a zařízení"]
["35","Výroba a rozvod elektřiny, plynu, tepla a klimatizovaného vzduchu"]
["351","Výroba, přenos a rozvod elektřiny"]
["3511","Výroba elektřiny"]
["35110","Výroba elektřiny"]
["3512","Přenos elektřiny"]
["35120","Přenos elektřiny"]
["3513","Rozvod elektřiny"]
["35130","Rozvod elektřiny"]
["3514","Obchod s elektřinou"]
["35140","Obchod s elektřinou"]
["352","Výroba plynu, rozvod plynných paliv prostřednictvím sítí"]
["3521","Výroba plynu"]
["35210","Výroba plynu"]
["3522","Rozvod plynných paliv prostřednictvím sítí"]
["35220","Rozvod plynných paliv prostřednictvím sítí"]
["3523","Obchod s plynem prostřednictvím sítí"]
["35230","Obchod s plynem prostřednictvím sítí"]
["353","Výroba a rozvod tepla a klimatizovaného vzduchu, výroba ledu"]
["3530","Výroba a rozvod tepla a klimatizovaného vzduchu, výroba ledu"]
["35301","Výroba tepla"]
["35302","Rozvod tepla"]
["35303","Výroba klimatizovaného vzduchu"]
["35304","Rozvod klimatizovaného vzduchu"]
["35305","Výroba chladicí vody"]
["35306","Rozvod chladicí vody"]
["35307","Výroba ledu"]
["36","Shromažďování, úprava a rozvod vody"]
["360","Shromažďování, úprava a rozvod vody"]
["3600","Shromažďování, úprava a rozvod vody"]
["36000","Shromažďování, úprava a rozvod vody"]
["37","Činnosti související s odpadními vodami"]
["370","Činnosti související s odpadními vodami"]
["3700","Činnosti související s odpadními vodami"]
["37000","Činnosti související s odpadními vodami"]
["38","Shromažďování, sběr a odstraňování odpadů, úprava odpadů k dalšímu využití"]
["381","Shromažďování a sběr odpadů"]
["3811","Shromažďování a sběr odpadů, kromě nebezpečných"]
["38110","Shromažďování a sběr odpadů, kromě nebezpečných"]
["3812","Shromažďování a sběr nebezpečných odpadů"]
["38120","Shromažďování a sběr nebezpečných odpadů"]
["382","Odstraňování odpadů"]
["3821","Odstraňování odpadů, kromě nebezpečných"]
["38210","Odstraňování odpadů, kromě nebezpečných"]
["3822","Odstraňování nebezpečných odpadů"]
["38220","Odstraňování nebezpečných odpadů"]
["383","Úprava odpadů k dalšímu využití"]
["3831","Demontáž vraků a vyřazených strojů a zařízení pro účely recyklace"]
["38310","Demontáž vraků a vyřazených strojů a zařízení pro účely recyklace"]
["3832","Úprava odpadů k dalšímu využití, kromě demontáže vraků, strojů a zařízení"]
["38320","Úprava odpadů k dalšímu využití, kromě demontáže vraků, strojů a zařízení"]
["39","Sanace a jiné činnosti související s odpady"]
["390","Sanace a jiné činnosti související s odpady"]
["3900","Sanace a jiné činnosti související s odpady"]
["39000","Sanace a jiné činnosti související s odpady"]
["41","Výstavba budov"]
["411","Developerská činnost"]
["4110","Developerská činnost"]
["41100","Developerská činnost"]
["412","Výstavba bytových a nebytových budov"]
["4120","Výstavba bytových a nebytových budov"]
["41201","Výstavba bytových budov"]
["41202","Výstavba nebytových budov"]
["42","Inženýrské stavitelství"]
["421","Výstavba silnic a železnic"]
["4211","Výstavba silnic a dálnic"]
["42110","Výstavba silnic a dálnic"]
["4212","Výstavba železnic a podzemních drah"]
["42120","Výstavba železnic a podzemních drah"]
["4213","Výstavba mostů a tunelů"]
["42130","Výstavba mostů a tunelů"]
["422","Výstavba inženýrských sítí"]
["4221","Výstavba inženýrských sítí pro kapaliny a plyny"]
["42211","Výstavba inženýrských sítí pro kapaliny"]
["42212","Výstavba inženýrských sítí pro plyny"]
["4222","Výstavba inženýrských sítí pro elektřinu a telekomunikace"]
["42220","Výstavba inženýrských sítí pro elektřinu a telekomunikace"]
["429","Výstavba ostatních staveb"]
["4291","Výstavba vodních děl"]
["42910","Výstavba vodních děl"]
["4299","Výstavba ostatních staveb j. n."]
["42990","Výstavba ostatních staveb j. n."]
["43","Specializované stavební činnosti"]
["431","Demolice a příprava staveniště"]
["4311","Demolice"]
["43110","Demolice"]
["4312","Příprava staveniště"]
["43120","Příprava staveniště"]
["4313","Průzkumné vrtné práce"]
["43130","Průzkumné vrtné práce"]
["432","Elektroinstalační, instalatérské a ostatní stavebně instalační práce"]
["4321","Elektrické instalace"]
["43210","Elektrické instalace"]
["4322","Instalace vody, odpadu, plynu, topení a klimatizace"]
["43220","Instalace vody, odpadu, plynu, topení a klimatizace"]
["4329","Ostatní stavební instalace"]
["43290","Ostatní stavební instalace"]
["433","Kompletační a dokončovací práce"]
["4331","Omítkářské práce"]
["43310","Omítkářské práce"]
["4332","Truhlářské práce"]
["43320","Truhlářské práce"]
["4333","Obkládání stěn a pokládání podlahových krytin"]
["43330","Obkládání stěn a pokládání podlahových krytin"]
["4334","Sklenářské, malířské a natěračské práce"]
["43341","Sklenářské práce"]
["43342","Malířské a natěračské práce"]
["4339","Ostatní kompletační a dokončovací práce"]
["43390","Ostatní kompletační a dokončovací práce"]
["439","Ostatní specializované stavební činnosti"]
["4391","Pokrývačské práce"]
["43910","Pokrývačské práce"]
["4399","Ostatní specializované stavební činnosti j. n."]
["43991","Montáž a demontáž lešení a bednění"]
["43999","Jiné specializované stavební činnosti j. n."]
["45","Velkoobchod, maloobchod a opravy motorových vozidel"]
["451","Obchod s motorovými vozidly, kromě motocyklů"]
["4511","Obchod s automobily a jinými lehkými motorovými vozidly"]
["45110","Obchod s automobily a jinými lehkými motorovými vozidly"]
["4519","Obchod s ostatními motorovými vozidly, kromě motocyklů"]
["45190","Obchod s ostatními motorovými vozidly, kromě motocyklů"]
["452","Opravy a údržba motorových vozidel, kromě motocyklů"]
["4520","Opravy a údržba motorových vozidel, kromě motocyklů"]
["45200","Opravy a údržba motorových vozidel, kromě motocyklů"]
["453","Obchod s díly a příslušenstvím pro motorová vozidla, kromě motocyklů"]
["4531","Velkoobchod s díly a příslušenstvím pro motorová vozidla, kromě motocyklů"]
["45310","Velkoobchod s díly a příslušenstvím pro motorová vozidla, kromě motocyklů"]
["4532","Maloobchod s díly a příslušenstvím pro motorová vozidla, kromě motocyklů"]
["45320","Maloobchod s díly a příslušenstvím pro motorová vozidla, kromě motocyklů"]
["454","Obchod, opravy a údržba motocyklů, jejich dílů a příslušenství"]
["4540","Obchod, opravy a údržba motocyklů, jejich dílů a příslušenství"]
["45400","Obchod, opravy a údržba motocyklů, jejich dílů a příslušenství"]
["46","Velkoobchod, kromě motorových vozidel"]
["461","Zprostředkování velkoobchodu a velkoobchod v zastoupení"]
["4611","Zprostředkování velkoobchodu a velkoobchod v zastoupení se základními zemědělskými produkty, živými zvířaty, textilními surovinami a polotovary"]
["46110","Zprostředkování velkoobchodu a velkoobchod v zastoupení se základními zemědělskými produkty, živými zvířaty, textilními surovinami a polotovary"]
["4612","Zprostředkování velkoobchodu a velkoobchod v zastoupení s palivy, rudami, kovy a průmyslovými chemikáliemi"]
["46120","Zprostředkování velkoobchodu a velkoobchod v zastoupení s palivy, rudami, kovy a průmyslovými chemikáliemi"]
["4613","Zprostředkování velkoobchodu a velkoobchod v zastoupení se dřevem a stavebními materiály"]
["46130","Zprostředkování velkoobchodu a velkoobchod v zastoupení se dřevem a stavebními materiály"]
["4614","Zprostředkování velkoobchodu a velkoobchod v zastoupení se stroji, průmyslovým zařízením, loděmi a letadly"]
["46140","Zprostředkování velkoobchodu a velkoobchod v zastoupení se stroji, průmyslovým zařízením, loděmi a letadly"]
["4615","Zprostředkování velkoobchodu a velkoobchod v zastoupení s nábytkem, železářským zbožím a potřebami převážně pro domácnost"]
["46150","Zprostředkování velkoobchodu a velkoobchod v zastoupení s nábytkem, železářským zbožím a potřebami převážně pro domácnost"]
["4616","Zprostředkování velkoobchodu a velkoobchod v zastoupení s textilem, oděvy, kožešinami, obuví a koženými výrobky"]
["46160","Zprostředkování velkoobchodu a velkoobchod v zastoupení s textilem, oděvy, kožešinami, obuví a koženými výrobky"]
["4617","Zprostředkování velkoobchodu a velkoobchod v zastoupení s potravinami, nápoji, tabákem a tabákovými výrobky"]
["46170","Zprostředkování velkoobchodu a velkoobchod v zastoupení s potravinami, nápoji, tabákem a tabákovými výrobky"]
["4618","Zprostředkování specializovaného velkoobchodu a specializovaný velkoobchod v zastoupení s ostatními výrobky"]
["46181","Zprostředkování velkoobchodu a velkoobchod v zastoupení s papírenskými výrobky"]
["46189","Zprostředkování specializovaného velkoobchodu a velkoobchod v zastoupení s ostatními výrobky j.n."]
["4619","Zprostředkování nespecializovaného velkoobchodu a nespecializovaný velkoobchod v zastoupení"]
["46190","Zprostředkování nespecializovaného velkoobchodu a nespecializovaný velkoobchod v zastoupení"]
["462","Velkoobchod se základními zemědělskými produkty a živými zvířaty"]
["4621","Velkoobchod s obilím, surovým tabákem, osivy a krmivy"]
["46210","Velkoobchod s obilím, surovým tabákem, osivy a krmivy"]
["4622","Velkoobchod s květinami a jinými rostlinami"]
["46220","Velkoobchod s květinami a jinými rostlinami"]
["4623","Velkoobchod s živými zvířaty"]
["46230","Velkoobchod s živými zvířaty"]
["4624","Velkoobchod se surovými kůžemi, kožešinami a usněmi"]
["46240","Velkoobchod se surovými kůžemi, kožešinami a usněmi"]
["463","Velkoobchod s potravinami, nápoji a tabákovými výrobky"]
["4631","Velkoobchod s ovocem a zeleninou"]
["46310","Velkoobchod s ovocem a zeleninou"]
["4632","Velkoobchod s masem a masnými výrobky"]
["46320","Velkoobchod s masem a masnými výrobky"]
["4633","Velkoobchod s mléčnými výrobky, vejci, jedlými oleji a tuky"]
["46330","Velkoobchod s mléčnými výrobky, vejci, jedlými oleji a tuky"]
["4634","Velkoobchod s nápoji"]
["46340","Velkoobchod s nápoji"]
["4635","Velkoobchod s tabákovými výrobky"]
["46350","Velkoobchod s tabákovými výrobky"]
["4636","Velkoobchod s cukrem, čokoládou a cukrovinkami"]
["46360","Velkoobchod s cukrem, čokoládou a cukrovinkami"]
["4637","Velkoobchod s kávou, čajem, kakaem a kořením"]
["46370","Velkoobchod s kávou, čajem, kakaem a kořením"]
["4638","Specializovaný velkoobchod s jinými potravinami, včetně ryb, korýšů a měkkýšů"]
["46380","Specializovaný velkoobchod s jinými potravinami, včetně ryb, korýšů a měkkýšů"]
["4639","Nespecializovaný velkoobchod s potravinami, nápoji a tabákovými výrobky"]
["46390","Nespecializovaný velkoobchod s potravinami, nápoji a tabákovými výrobky"]
["464","Velkoobchod s výrobky převážně pro domácnost"]
["4641","Velkoobchod s textilem"]
["46410","Velkoobchod s textilem"]
["4642","Velkoobchod s oděvy a obuví"]
["46421","Velkoobchod s oděvy"]
["46422","Velkoobchod s obuví"]
["4643","Velkoobchod s elektrospotřebiči a elektronikou"]
["46430","Velkoobchod s elektrospotřebiči a elektronikou"]
["4644","Velkoobchod s porcelánovými, keramickými a skleněnými výrobky a čistícími prostředky"]
["46441","Velkoobchod s porcelánovými, keramickými a skleněnými výrobky"]
["46442","Velkoobchod s pracími a čisticími prostředky"]
["4645","Velkoobchod s kosmetickými výrobky"]
["46450","Velkoobchod s kosmetickými výrobky"]
["4646","Velkoobchod s farmaceutickými výrobky"]
["46460","Velkoobchod s farmaceutickými výrobky"]
["4647","Velkoobchod s nábytkem, koberci a svítidly"]
["46470","Velkoobchod s nábytkem, koberci a svítidly"]
["4648","Velkoobchod s hodinami, hodinkami a klenoty"]
["46480","Velkoobchod s hodinami, hodinkami a klenoty"]
["4649","Velkoobchod s ostatními výrobky převážně pro domácnost"]
["46490","Velkoobchod s ostatními výrobky převážně pro domácnost"]
["465","Velkoobchod s počítačovým a komunikačním zařízením"]
["4651","Velkoobchod s počítači, počítačovým periferním zařízením a softwarem"]
["46510","Velkoobchod s počítači, počítačovým periferním zařízením a softwarem"]
["4652","Velkoobchod s elektronickým a telekomunikačním zařízením a jeho díly"]
["46520","Velkoobchod s elektronickým a telekomunikačním zařízením a jeho díly"]
["466","Velkoobchod s ostatními stroji, strojním zařízením a příslušenstvím"]
["4661","Velkoobchod se zemědělskými stroji, strojním zařízením a příslušenstvím"]
["46610","Velkoobchod se zemědělskými stroji, strojním zařízením a příslušenstvím"]
["4662","Velkoobchod s obráběcími stroji"]
["46620","Velkoobchod s obráběcími stroji"]
["4663","Velkoobchod s těžebními a stavebními stroji a zařízením"]
["46630","Velkoobchod s těžebními a stavebními stroji a zařízením"]
["4664","Velkoobchod se strojním zařízením pro textilní průmysl, šicími a pletacími stroji"]
["46640","Velkoobchod se strojním zařízením pro textilní průmysl, šicími a pletacími stroji"]
["4665","Velkoobchod s kancelářským nábytkem"]
["46650","Velkoobchod s kancelářským nábytkem"]
["4666","Velkoobchod s ostatními kancelářskými stroji a zařízením"]
["46660","Velkoobchod s ostatními kancelářskými stroji a zařízením"]
["4669","Velkoobchod s ostatními stroji a zařízením"]
["46690","Velkoobchod s ostatními stroji a zařízením"]
["467","Ostatní specializovaný velkoobchod"]
["4671","Velkoobchod s pevnými, kapalnými a plynnými palivy a příbuznými výrobky"]
["46711","Velkoobchod s pevnými palivy a příbuznými výrobky"]
["46712","Velkoobchod s kapalnými palivy a příbuznými výrobky"]
["46713","Velkoobchod s plynnými palivy a příbuznými výrobky"]
["4672","Velkoobchod s rudami, kovy a hutními výrobky"]
["46720","Velkoobchod s rudami, kovy a hutními výrobky"]
["4673","Velkoobchod se dřevem, stavebními materiály a sanitárním vybavením"]
["46730","Velkoobchod se dřevem, stavebními materiály a sanitárním vybavením"]
["4674","Velkoobchod s železářským zbožím, instalatérskými a topenářskými potřebami"]
["46740","Velkoobchod s železářským zbožím, instalatérskými a topenářskými potřebami"]
["4675","Velkoobchod s chemickými výrobky"]
["46750","Velkoobchod s chemickými výrobky"]
["4676","Velkoobchod s ostatními meziprodukty"]
["46761","Velkoobchod s papírenskými meziprodukty"]
["46769","Velkoobchod s ostatními meziprodukty j. n."]
["4677","Velkoobchod s odpadem a šrotem"]
["46770","Velkoobchod s odpadem a šrotem"]
["469","Nespecializovaný velkoobchod"]
["4690","Nespecializovaný velkoobchod"]
["46900","Nespecializovaný velkoobchod"]
["47","Maloobchod, kromě motorových vozidel"]
["471","Maloobchod v nespecializovaných prodejnách"]
["4711","Maloobchod s převahou potravin, nápojů a tabákových výrobků v nespecializovaných prodejnách"]
["47110","Maloobchod s převahou potravin, nápojů a tabákových výrobků v nespecializovaných prodejnách"]
["4719","Ostatní maloobchod v nespecializovaných prodejnách"]
["47190","Ostatní maloobchod v nespecializovaných prodejnách"]
["472","Maloobchod s potravinami, nápoji a tabákovými výrobky ve specializovaných prodejnách"]
["4721","Maloobchod s ovocem a zeleninou"]
["47210","Maloobchod s ovocem a zeleninou"]
["4722","Maloobchod s masem a masnými výrobky"]
["47220","Maloobchod s masem a masnými výrobky"]
["4723","Maloobchod s rybami, korýši a měkkýši"]
["47230","Maloobchod s rybami, korýši a měkkýši"]
["4724","Maloobchod s chlebem, pečivem, cukrářskými výrobky a cukrovinami"]
["47240","Maloobchod s chlebem, pečivem, cukrářskými výrobky a cukrovinami"]
["4725","Maloobchod s nápoji"]
["47250","Maloobchod s nápoji"]
["4726","Maloobchod s tabákovými výrobky"]
["47260","Maloobchod s tabákovými výrobky"]
["4729","Ostatní maloobchod s potravinami ve specializovaných prodejnách"]
["47290","Ostatní maloobchod s potravinami ve specializovaných prodejnách"]
["473","Maloobchod s pohonnými hmotami ve specializovaných prodejnách"]
["4730","Maloobchod s pohonnými hmotami ve specializovaných prodejnách"]
["47300","Maloobchod s pohonnými hmotami ve specializovaných prodejnách"]
["474","Maloobchod s počítačovým a komunikačním zařízením ve specializovaných prodejnách"]
["4741","Maloobchod s počítači, počítačovým periferním zařízením a softwarem"]
["47410","Maloobchod s počítači, počítačovým periferním zařízením a softwarem"]
["4742","Maloobchod s telekomunikačním zařízením"]
["47420","Maloobchod s telekomunikačním zařízením"]
["4743","Maloobchod s audio- a videozařízením"]
["47430","Maloobchod s audio- a videozařízením"]
["475","Maloobchod s ostatními výrobky převážně pro domácnost ve specializovaných prodejnách"]
["4751","Maloobchod s textilem"]
["47510","Maloobchod s textilem"]
["4752","Maloobchod s železářským zbožím, barvami, sklem a potřebami pro kutily"]
["47520","Maloobchod s železářským zbožím, barvami, sklem a potřebami pro kutily"]
["4753","Maloobchod s koberci, podlahovými krytinami a nástěnnými obklady"]
["47530","Maloobchod s koberci, podlahovými krytinami a nástěnnými obklady"]
["4754","Maloobchod s elektrospotřebiči a elektronikou"]
["47540","Maloobchod s elektrospotřebiči a elektronikou"]
["4759","Maloobchod s nábytkem, svítidly a ostatními výrobky převážně pro domácnost ve specializovaných prodejnách"]
["47590","Maloobchod s nábytkem, svítidly a ostatními výrobky převážně pro domácnost ve specializovaných prodejnách"]
["476","Maloobchod s výrobky pro kulturní rozhled a rekreaci ve specializovaných prodejnách"]
["4761","Maloobchod s knihami"]
["47610","Maloobchod s knihami"]
["4762","Maloobchod s novinami, časopisy a papírnickým zbožím"]
["47620","Maloobchod s novinami, časopisy a papírnickým zbožím"]
["4763","Maloobchod s audio- a videozáznamy"]
["47630","Maloobchod s audio- a videozáznamy"]
["4764","Maloobchod se sportovním vybavením"]
["47640","Maloobchod se sportovním vybavením"]
["4765","Maloobchod s hrami a hračkami"]
["47650","Maloobchod s hrami a hračkami"]
["477","Maloobchod s ostatním zbožím ve specializovaných prodejnách"]
["4771","Maloobchod s oděvy"]
["47710","Maloobchod s oděvy"]
["4772","Maloobchod s obuví a koženými výrobky"]
["47720","Maloobchod s obuví a koženými výrobky"]
["4773","Maloobchod s farmaceutickými přípravky"]
["47730","Maloobchod s farmaceutickými přípravky"]
["4774","Maloobchod se zdravotnickými a ortopedickými výrobky"]
["47740","Maloobchod se zdravotnickými a ortopedickými výrobky"]
["4775","Maloobchod s kosmetickými a toaletními výrobky"]
["47750","Maloobchod s kosmetickými a toaletními výrobky"]
["4776","Maloobchod s květinami, rostlinami, osivy, hnojivy, zvířaty pro zájmový chov a krmivy pro ně"]
["47760","Maloobchod s květinami, rostlinami, osivy, hnojivy, zvířaty pro zájmový chov a krmivy pro ně"]
["4777","Maloobchod s hodinami, hodinkami a klenoty"]
["47770","Maloobchod s hodinami, hodinkami a klenoty"]
["4778","Ostatní maloobchod s novým zbožím ve specializovaných prodejnách"]
["47781","Maloobchod s fotografickým a optickým zařízením a potřebami"]
["47782","Maloobchod s pevnými palivy"]
["47783","Maloobchod s kapalnými palivy (kromě pohonných hmot)"]
["47784","Maloobchod s plynnými palivy (kromě pohonných hmot)"]
["47789","Ostatní maloobchod s novým zbožím ve specializovaných prodejnách j. n."]
["4779","Maloobchod s použitým zbožím v prodejnách"]
["47790","Maloobchod s použitým zbožím v prodejnách"]
["478","Maloobchod ve stáncích a na trzích"]
["4781","Maloobchod s potravinami, nápoji a tabákovými výrobky ve stáncích na trzích"]
["47810","Maloobchod s potravinami, nápoji a tabákovými výrobky ve stáncích na trzích"]
["4782","Maloobchod s textilem, oděvy a obuví ve stáncích a na trzích"]
["47820","Maloobchod s textilem, oděvy a obuví ve stáncích a na trzích"]
["4789","Maloobchod s ostatním zbožím ve stáncích a na trzích"]
["47890","Maloobchod s ostatním zbožím ve stáncích a na trzích"]
["479","Maloobchod mimo prodejny, stánky a trhy"]
["4791","Maloobchod prostřednictvím internetu nebo zásilkové služby"]
["47911","Maloobchod prostřednictvím internetu"]
["47912","Maloobchod prostřednictvím zásilkové služby (jiný než prostřednictvím internetu)"]
["4799","Ostatní maloobchod mimo prodejny, stánky a trhy"]
["47990","Ostatní maloobchod mimo prodejny, stánky a trhy"]
["49","Pozemní a potrubní doprava"]
["491","Železniční osobní doprava meziměstská"]
["4910","Železniční osobní doprava meziměstská"]
["49100","Železniční osobní doprava meziměstská"]
["492","Železniční nákladní doprava"]
["4920","Železniční nákladní doprava"]
["49200","Železniční nákladní doprava"]
["493","Ostatní pozemní osobní doprava"]
["4931","Městská a příměstská pozemní osobní doprava"]
["49310","Městská a příměstská pozemní osobní doprava"]
["4932","Taxislužba a pronájem osobních vozů s řidičem"]
["49320","Taxislužba a pronájem osobních vozů s řidičem"]
["4939","Ostatní pozemní osobní doprava j. n."]
["49391","Meziměstská pravidelná pozemní osobní doprava"]
["49392","Osobní doprava lanovkou nebo vlekem"]
["49393","Nepravidelná pozemní osobní doprava"]
["49399","Jiná pozemní osobní doprava j. n."]
["494","Silniční nákladní doprava a stěhovací služby"]
["4941","Silniční nákladní doprava"]
["49410","Silniční nákladní doprava"]
["4942","Stěhovací služby"]
["49420","Stěhovací služby"]
["495","Potrubní doprava"]
["4950","Potrubní doprava"]
["49501","Potrubní doprava ropovodem"]
["49502","Potrubní doprava plynovodem"]
["49509","Potrubní doprava ostatní"]
["50","Vodní doprava"]
["501","Námořní a pobřežní osobní doprava"]
["5010","Námořní a pobřežní osobní doprava"]
["50100","Námořní a pobřežní osobní doprava"]
["502","Námořní a pobřežní nákladní doprava"]
["5020","Námořní a pobřežní nákladní doprava"]
["50200","Námořní a pobřežní nákladní doprava"]
["503","Vnitrozemská vodní osobní doprava"]
["5030","Vnitrozemská vodní osobní doprava"]
["50300","Vnitrozemská vodní osobní doprava"]
["504","Vnitrozemská vodní nákladní doprava"]
["5040","Vnitrozemská vodní nákladní doprava"]
["50400","Vnitrozemská vodní nákladní doprava"]
["51","Letecká doprava"]
["511","Letecká osobní doprava"]
["5110","Letecká osobní doprava"]
["51101","Vnitrostátní pravidelná letecká osobní doprava"]
["51102","Vnitrostátní nepravidelná letecká osobní doprava"]
["51103","Mezinárodní pravidelná letecká osobní doprava"]
["51104","Mezinárodní nepravidelná letecká osobní doprava"]
["51109","Ostatní letecká osobní doprava"]
["512","Letecká nákladní doprava a kosmická doprava"]
["5121","Letecká nákladní doprava"]
["51210","Letecká nákladní doprava"]
["5122","Kosmická doprava"]
["51220","Kosmická doprava"]
["52","Skladování a vedlejší činnosti v dopravě"]
["521","Skladování"]
["5210","Skladování"]
["52100","Skladování"]
["522","Vedlejší činnosti v dopravě"]
["5221","Činnosti související s pozemní dopravou"]
["52210","Činnosti související s pozemní dopravou"]
["5222","Činnosti související s vodní dopravou"]
["52220","Činnosti související s vodní dopravou"]
["5223","Činnosti související s leteckou dopravou"]
["52230","Činnosti související s leteckou dopravou"]
["5224","Manipulace s nákladem"]
["52240","Manipulace s nákladem"]
["5229","Ostatní vedlejší činnosti v dopravě"]
["52290","Ostatní vedlejší činnosti v dopravě"]
["53","Poštovní a kurýrní činnosti"]
["531","Základní poštovní služby poskytované na základě poštovní licence"]
["5310","Základní poštovní služby poskytované na základě poštovní licence"]
["53100","Základní poštovní služby poskytované na základě poštovní licence"]
["532","Ostatní poštovní a kurýrní činnosti"]
["5320","Ostatní poštovní a kurýrní činnosti"]
["53200","Ostatní poštovní a kurýrní činnosti"]
["55","Ubytování"]
["551","Ubytování v hotelích a podobných ubytovacích zařízeních"]
["5510","Ubytování v hotelích a podobných ubytovacích zařízeních"]
["55101","Hotely"]
["55102","Motely, botely"]
["55109","Ostatní podobná ubytovací zařízení"]
["552","Rekreační a ostatní krátkodobé ubytování"]
["5520","Rekreační a ostatní krátkodobé ubytování"]
["55200","Rekreační a ostatní krátkodobé ubytování"]
["553","Kempy a tábořiště"]
["5530","Kempy a tábořiště"]
["55300","Kempy a tábořiště"]
["559","Ostatní ubytování"]
["5590","Ostatní ubytování"]
["55901","Ubytování v zařízených pronájmech"]
["55902","Ubytování ve vysokoškolských kolejích, domovech mládeže"]
["55909","Ostatní ubytování j. n."]
["56","Stravování a pohostinství"]
["561","Stravování v restauracích, u stánků a v mobilních zařízeních"]
["5610","Stravování v restauracích, u stánků a v mobilních zařízeních"]
["56100","Stravování v restauracích, u stánků a v mobilních zařízeních"]
["562","Poskytování cateringových a ostatních stravovacích služeb"]
["5621","Poskytování cateringových služeb"]
["56210","Poskytování cateringových služeb"]
["5629","Poskytování ostatních stravovacích služeb"]
["56291","Stravování v závodních kuchyních"]
["56292","Stravování ve školních zařízeních, menzách"]
["56299","Poskytování jiných stravovacích služeb j. n."]
["563","Pohostinství"]
["5630","Pohostinství"]
["56300","Pohostinství"]
["58","Vydavatelské činnosti"]
["581","Vydávání knih, periodických publikací a ostatní vydavatelské činnosti"]
["5811","Vydávání knih"]
["58110","Vydávání knih"]
["5812","Vydávání adresářů a jiných seznamů"]
["58120","Vydávání adresářů a jiných seznamů"]
["5813","Vydávání novin"]
["58130","Vydávání novin"]
["5814","Vydávání časopisů a ostatních periodických publikací"]
["58140","Vydávání časopisů a ostatních periodických publikací"]
["5819","Ostatní vydavatelské činnosti"]
["58190","Ostatní vydavatelské činnosti"]
["582","Vydávání softwaru"]
["5821","Vydávání počítačových her"]
["58210","Vydávání počítačových her"]
["5829","Ostatní vydávání softwaru"]
["58290","Ostatní vydávání softwaru"]
["59","Činnosti v oblasti filmů, videozáznamů a televizních programů, pořizování zvukových nahrávek a hudební vydavatelské činnosti"]
["591","Činnosti v oblasti filmů, videozáznamů a televizních programů"]
["5911","Produkce filmů, videozáznamů a televizních programů"]
["59110","Produkce filmů, videozáznamů a televizních programů"]
["5912","Postprodukce filmů, videozáznamů a televizních programů"]
["59120","Postprodukce filmů, videozáznamů a televizních programů"]
["5913","Distribuce filmů, videozáznamů a televizních programů"]
["59130","Distribuce filmů, videozáznamů a televizních programů"]
["5914","Promítání filmů"]
["59140","Promítání filmů"]
["592","Pořizování zvukových nahrávek a hudební vydavatelské činnosti"]
["5920","Pořizování zvukových nahrávek a hudební vydavatelské činnosti"]
["59200","Pořizování zvukových nahrávek a hudební vydavatelské činnosti"]
["60","Tvorba programů a vysílání"]
["601","Rozhlasové vysílání"]
["6010","Rozhlasové vysílání"]
["60100","Rozhlasové vysílání"]
["602","Tvorba televizních programů a televizní vysílání"]
["6020","Tvorba televizních programů a televizní vysílání"]
["60200","Tvorba televizních programů a televizní vysílání"]
["61","Telekomunikační činnosti"]
["611","Činnosti související s pevnou telekomunikační sítí"]
["6110","Činnosti související s pevnou telekomunikační sítí"]
["61101","Poskytování hlasových služeb přes pevnou telekomunikační síť"]
["61102","Pronájem pevné telekomunikační sítě"]
["61103","Přenos dat přes pevnou telekomunikační síť"]
["61104","Poskytování přístupu k internetu přes pevnou telekomunikační siť"]
["61109","Ostatní činnosti související s pevnou telekomunikační sítí"]
["612","Činnosti související s bezdrátovou telekomunikační sítí"]
["6120","Činnosti související s bezdrátovou telekomunikační sítí"]
["61201","Poskytování hlasových služeb přes bezdrátovou telekomunikační síť"]
["61202","Pronájem bezdrátové telekomunikační sítě"]
["61203","Přenos dat přes bezdrátovou telekomunikační síť"]
["61204","Poskytování přístupu k internetu přes bezdrátovou telekomuninikační síť"]
["61209","Ostatní činnosti související s bezdrátovou telekomunikační sítí"]
["613","Činnosti související se satelitní telekomunikační sítí"]
["6130","Činnosti související se satelitní telekomunikační sítí"]
["61300","Činnosti související se satelitní telekomunikační sítí"]
["619","Ostatní telekomunikační činnosti"]
["6190","Ostatní telekomunikační činnosti"]
["61900","Ostatní telekomunikační činnosti"]
["62","Činnosti v oblasti informačních technologií"]
["620","Činnosti v oblasti informačních technologií"]
["6201","Programování"]
["62010","Programování"]
["6202","Poradenství v oblasti informačních technologií"]
["62020","Poradenství v oblasti informačních technologií"]
["6203","Správa počítačového vybavení"]
["62030","Správa počítačového vybavení"]
["6209","Ostatní činnosti v oblasti informačních technologií"]
["62090","Ostatní činnosti v oblasti informačních technologií"]
["63","Informační činnosti"]
["631","Činnosti související se zpracováním dat a hostingem, činnosti související s webovými portály"]
["6311","Činnosti související se zpracováním dat a hostingem"]
["63110","Činnosti související se zpracováním dat a hostingem"]
["6312","Činnosti související s webovými portály"]
["63120","Činnosti související s webovými portály"]
["639","Ostatní informační činnosti"]
["6391","Činnosti zpravodajských tiskových kanceláří a agentur"]
["63910","Činnosti zpravodajských tiskových kanceláří a agentur"]
["6399","Ostatní informační činnosti j. n."]
["63990","Ostatní informační činnosti j. n."]
["64","Finanční zprostředkování, kromě pojišťovnictví a penzijního financování"]
["641","Peněžní zprostředkování"]
["6411","Centrální bankovnictví"]
["64110","Centrální bankovnictví"]
["6419","Ostatní peněžní zprostředkování"]
["64190","Ostatní peněžní zprostředkování"]
["642","Činnosti holdingových společností"]
["6420","Činnosti holdingových společností"]
["64200","Činnosti holdingových společností"]
["643","Činnosti trustů, fondů a podobných finančních subjektů"]
["6430","Činnosti trustů, fondů a podobných finančních subjektů"]
["64300","Činnosti trustů, fondů a podobných finančních subjektů"]
["649","Ostatní finanční zprostředkování"]
["6491","Finanční leasing"]
["64910","Finanční leasing"]
["6492","Ostatní poskytování úvěrů"]
["64921","Poskytování úvěrů společnostmi, které nepřijímají vklady"]
["64922","Poskytování obchodních úvěrů"]
["64923","Činnosti zastaváren"]
["64929","Ostatní poskytování úvěrů j. n."]
["6499","Ostatní finanční zprostředkování j. n."]
["64991","Faktoringové činnosti"]
["64992","Obchodování s cennými papíry na vlastní účet"]
["64999","Jiné finanční zprostředkování j. n."]
["65","Pojištění, zajištění a penzijní financování, kromě povinného sociálního zabezpečení"]
["651","Pojištění"]
["6511","Životní pojištění"]
["65110","Životní pojištění"]
["6512","Neživotní pojištění"]
["65120","Neživotní pojištění"]
["652","Zajištění"]
["6520","Zajištění"]
["65200","Zajištění"]
["653","Penzijní financování"]
["6530","Penzijní financování"]
["65300","Penzijní financování"]
["66","Ostatní finanční činnosti"]
["661","Pomocné činnosti související s finančním zprostředkováním, kromě pojišťovníctví a penzijního financování"]
["6611","Řízení a správa finančních trhů"]
["66110","Řízení a správa finančních trhů"]
["6612","Obchodování s cennými papíry a komoditami na burzách"]
["66120","Obchodování s cennými papíry a komoditami na burzách"]
["6619","Ostatní pomocné činnosti související s finančním zprostředkováním"]
["66190","Ostatní pomocné činnosti související s finančním zprostředkováním"]
["662","Pomocné činnosti související s pojišťovnictvím a penzijním financováním"]
["6621","Vyhodnocování rizik a škod"]
["66210","Vyhodnocování rizik a škod"]
["6622","Činnosti zástupců pojišťovny a makléřů"]
["66220","Činnosti zástupců pojišťovny a makléřů"]
["6629","Ostatní pomocné činnosti související s pojišťovnictvím a penzijním financováním"]
["66290","Ostatní pomocné činnosti související s pojišťovnictvím a penzijním financováním"]
["663","Správa fondů"]
["6630","Správa fondů"]
["66300","Správa fondů"]
["68","Činnosti v oblasti nemovitostí"]
["681","Nákup a následný prodej vlastních nemovitostí"]
["6810","Nákup a následný prodej vlastních nemovitostí"]
["68100","Nákup a následný prodej vlastních nemovitostí"]
["682","Pronájem a správa vlastních nebo pronajatých nemovitostí"]
["6820","Pronájem a správa vlastních nebo pronajatých nemovitostí"]
["68201","Pronájem vlastních nebo pronajatých nemovitostí s bytovými prostory"]
["68202","Pronájem vlastních nebo pronajatých nemovitostí s bytovými prostory"]
["68203","Správa vlastních nebo pronajatých nemovitostí s bytovými prostory"]
["68204","Správa vlastních nebo pronajatých nemovitostí s bytovými prostory"]
["683","Činnosti v oblasti nemovitostí na základě smlouvy nebo dohody"]
["6831","Zprostředkovatelské činnosti realitních agentur"]
["68310","Zprostředkovatelské činnosti realitních agentur"]
["6832","Správa nemovitostí na základě smlouvy nebo dohody"]
["68320","Správa nemovitostí na základě smlouvy nebo dohody"]
["69","Právní a účetnické činnosti"]
["691","Právní činnosti"]
["6910","Právní činnosti"]
["69100","Právní činnosti"]
["692","Účetnické a auditorské činnosti, daňové poradenství"]
["6920","Účetnické a auditorské činnosti, daňové poradenství"]
["69200","Účetnické a auditorské činnosti, daňové poradenství"]
["70","Činnosti vedení podniků, poradenství v oblasti řízení"]
["701","Činnosti vedení podniků"]
["7010","Činnosti vedení podniků"]
["70100","Činnosti vedení podniků"]
["702","Poradenství v oblasti řízení"]
["7021","Poradenství v oblasti vztahů s veřejností a komunikace"]
["70210","Poradenství v oblasti vztahů s veřejností a komunikace"]
["7022","Ostatní poradenství v oblasti podnikání a řízení"]
["70220","Ostatní poradenství v oblasti podnikání a řízení"]
["71","Architektonické a inženýrské činnosti, technické zkoušky a analýzy"]
["711","Architektonické a inženýrské činnosti a související technické poradenství"]
["7111","Architektonické činnosti"]
["71110","Architektonické činnosti"]
["7112","Inženýrské činnosti a související technické poradenství"]
["71121","Geologický průzkum"]
["71122","Zeměměřické a kartografické činnosti"]
["71123","Hydrometeorologické a meteorologické činnosti"]
["71129","Ostatní inženýrské činnosti a související technické poradenství j. n."]
["712","Technické zkoušky a analýzy"]
["7120","Technické zkoušky a analýzy"]
["71201","Zkoušky a analýzy vyhrazených technických zařízení"]
["71209","Ostatní technické zkoušky a analýzy"]
["72","Výzkum a vývoj"]
["721","Výzkum a vývoj v oblasti přírodních a technických věd"]
["7211","Výzkum a vývoj v oblasti biotechnologie"]
["72110","Výzkum a vývoj v oblasti biotechnologie"]
["7219","Ostatní výzkum a vývoj v oblasti přírodních a technických věd"]
["72191","Výzkum a vývoj v oblasti lékařských věd"]
["72192","Výzkum a vývoj v oblasti technických věd"]
["72199","Výzkum a vývoj v oblasti jiných přírodních věd"]
["722","Výzkum a vývoj v oblasti společenských a humanitních věd"]
["7220","Výzkum a vývoj v oblasti společenských a humanitních věd"]
["72200","Výzkum a vývoj v oblasti společenských a humanitních věd"]
["73","Reklama a průzkum trhu"]
["731","Reklamní činnosti"]
["7311","Činnosti reklamních agentur"]
["73110","Činnosti reklamních agentur"]
["7312","Zastupování médií při prodeji reklamního času a prostoru"]
["73120","Zastupování médií při prodeji reklamního času a prostoru"]
["732","Průzkum trhu a veřejného mínění"]
["7320","Průzkum trhu a veřejného mínění"]
["73200","Průzkum trhu a veřejného mínění"]
["74","Ostatní profesní, vědecké a technické činnosti"]
["741","Specializované návrhářské činnosti"]
["7410","Specializované návrhářské činnosti"]
["74100","Specializované návrhářské činnosti"]
["742","Fotografické činnosti"]
["7420","Fotografické činnosti"]
["74200","Fotografické činnosti"]
["743","Překladatelské a tlumočnické činnosti"]
["7430","Překladatelské a tlumočnické činnosti"]
["74300","Překladatelské a tlumočnické činnosti"]
["749","Ostatní profesní, vědecké a technické činnosti j. n."]
["7490","Ostatní profesní, vědecké a technické činnosti j. n."]
["74901","Poradenství v oblasti bezpečnosti a ochrany zdraví při práci"]
["74902","Poradenství v oblasti požární ochrany"]
["74909","Jiné profesní, vědecké a technické činnosti j. n."]
["75","Veterinární činnosti"]
["750","Veterinární činnosti"]
["7500","Veterinární činnosti"]
["75000","Veterinární činnosti"]
["77","Činnosti v oblasti pronájmu a operativního leasingu"]
["771","Pronájem a leasing motorových vozidel, kromě motocyklů"]
["7711","Pronájem a leasing automobilů a jiných lehkých motorových vozidel, kromě motocyklů"]
["77110","Pronájem a leasing automobilů a jiných lehkých motorových vozidel, kromě motocyklů"]
["7712","Pronájem a leasing nákladních automobilů"]
["77120","Pronájem a leasing nákladních automobilů"]
["772","Pronájem a leasing výrobků pro osobní potřebu a převážně pro domácnost"]
["7721","Pronájem a leasing rekreačních a sportovních potřeb"]
["77210","Pronájem a leasing rekreačních a sportovních potřeb"]
["7722","Pronájem videokazet a disků"]
["77220","Pronájem videokazet a disků"]
["7729","Pronájem a leasing ostatních výrobků pro osobní potřebu a převážně pro domácnost"]
["77290","Pronájem a leasing ostatních výrobků pro osobní potřebu a převážně pro domácnost"]
["773","Pronájem a leasing ostatních strojů, zařízení a výrobků"]
["7731","Pronájem a leasing zemědělských strojů a zařízení"]
["77310","Pronájem a leasing zemědělských strojů a zařízení"]
["7732","Pronájem a leasing stavebních strojů a zařízení"]
["77320","Pronájem a leasing stavebních strojů a zařízení"]
["7733","Pronájem a leasing kancelářských strojů a zařízení, včetně počítačů"]
["77330","Pronájem a leasing kancelářských strojů a zařízení, včetně počítačů"]
["7734","Pronájem a leasing vodních dopravních prostředků"]
["77340","Pronájem a leasing vodních dopravních prostředků"]
["7735","Pronájem a leasing leteckých dopravních prostředků"]
["77350","Pronájem a leasing leteckých dopravních prostředků"]
["7739","Pronájem a leasing ostatních strojů, zařízení a výrobků j. n"]
["77390","Pronájem a leasing ostatních strojů, zařízení a výrobků j. n"]
["774","Leasing duševního vlastnictví a podobných produktů, kromě děl chráněných autorským právem"]
["7740","Leasing duševního vlastnictví a podobných produktů, kromě děl chráněných autorským právem"]
["77400","Leasing duševního vlastnictví a podobných produktů, kromě děl chráněných autorským právem"]
["78","Činnosti související se zaměstnáním"]
["781","Činnosti agentur zprostředkujících zaměstnání"]
["7810","Činnosti agentur zprostředkujících zaměstnání"]
["78100","Činnosti agentur zprostředkujících zaměstnání"]
["782","Činnosti agentur zprostředkujících práci na přechodnou dobu"]
["7820","Činnosti agentur zprostředkujících práci na přechodnou dobu"]
["78200","Činnosti agentur zprostředkujících práci na přechodnou dobu"]
["783","Ostatní poskytování lidských zdrojů"]
["7830","Ostatní poskytování lidských zdrojů"]
["78300","Ostatní poskytování lidských zdrojů"]
["79","Činnosti cestovních agentur, kanceláří a jiné rezervační a související činnosti"]
["791","Činnosti cestovních agentur a cestovních kanceláří"]
["7911","Činnosti cestovních agentur"]
["79110","Činnosti cestovních agentur"]
["7912","Činnosti cestovních kanceláří"]
["79120","Činnosti cestovních kanceláří"]
["799","Ostatní rezervační a související činnosti"]
["7990","Ostatní rezervační a související činnosti"]
["79901","Průvodcovské činnosti"]
["79909","Ostatní rezervační a související činnosti j. n."]
["80","Bezpečnostní a pátrací činnosti"]
["801","Činnosti soukromých bezpečnostních agentur"]
["8010","Činnosti soukromých bezpečnostních agentur"]
["80100","Činnosti soukromých bezpečnostních agentur"]
["802","Činnosti související s provozem bezpečnostních systémů"]
["8020","Činnosti související s provozem bezpečnostních systémů"]
["80200","Činnosti související s provozem bezpečnostních systémů"]
["803","Pátrací činnosti"]
["8030","Pátrací činnosti"]
["80300","Pátrací činnosti"]
["81","Činnosti související se stavbami a úpravou krajiny"]
["811","Kombinované pomocné činnosti"]
["8110","Kombinované pomocné činnosti"]
["81100","Kombinované pomocné činnosti"]
["812","Úklidové činnosti"]
["8121","Všeobecný úklid budov"]
["81210","Všeobecný úklid budov"]
["8122","Specializované čištění a úklid budov a průmyslových zařízení"]
["81220","Specializované čištění a úklid budov a průmyslových zařízení"]
["8129","Ostatní úklidové činnosti"]
["81290","Ostatní úklidové činnosti"]
["813","Činnosti související s úpravou krajiny"]
["8130","Činnosti související s úpravou krajiny"]
["81300","Činnosti související s úpravou krajiny"]
["82","Administrativní, kancelářské a jiné podpůrné činnosti pro podnikání"]
["821","Administrativní a kancelářské činnosti"]
["8211","Univerzální administrativní činnosti"]
["82110","Univerzální administrativní činnosti"]
["8219","Kopírování, příprava dokumentů a ostatní specializované kancelářské podpůrné činnosti"]
["82190","Kopírování, příprava dokumentů a ostatní specializované kancelářské podpůrné činnosti"]
["822","Činnosti zprostředkovatelských středisek po telefonu"]
["8220","Činnosti zprostředkovatelských středisek po telefonu"]
["82200","Činnosti zprostředkovatelských středisek po telefonu"]
["823","Pořádání konferencí a hospodářských výstav"]
["8230","Pořádání konferencí a hospodářských výstav"]
["82300","Pořádání konferencí a hospodářských výstav"]
["829","Podpůrné činnosti pro podnikání j. n."]
["8291","Inkasní činnosti, ověřování solventnosti zákazníka"]
["82910","Inkasní činnosti, ověřování solventnosti zákazníka"]
["8292","Balicí činnosti"]
["82920","Balicí činnosti"]
["8299","Ostatní podpůrné činnosti pro podnikání j. n."]
["82990","Ostatní podpůrné činnosti pro podnikání j. n."]
["84","Veřejná správa a obrana, povinné sociální zabezpečení"]
["841","Veřejná správa a hospodářská a sociální politika"]
["8411","Všeobecné činnosti veřejné správy"]
["84110","Všeobecné činnosti veřejné správy"]
["8412","Regulace činností souvisejících s poskytováním zdravotní péče, vzděláváním, kulturou a sociální péčí, kromě sociálního zabezpeční"]
["84120","Regulace činností souvisejících s poskytováním zdravotní péče, vzděláváním, kulturou a sociální péčí, kromě sociálního zabezpeční"]
["8413","Regulace a podpora podnikatelského prostředí"]
["84130","Regulace a podpora podnikatelského prostředí"]
["842","Činnosti pro společnost jako celek"]
["8421","Činnosti v oblasti zahraničních věcí"]
["84211","Pomoc cizím zemím při katastrofách nebo v nouzových situacích přímo nebo prostřednictvím mezinárodních organizací"]
["84212","Rozvíjení vzájemného přátelství a porozumění mezi národy"]
["84219","Ostatní činnosti v oblasti zahraničních věcí"]
["8422","Činnosti v oblasti obrany"]
["84220","Činnosti v oblasti obrany"]
["8423","Činnosti v oblasti spravedlnosti a soudnictví"]
["84230","Činnosti v oblasti spravedlnosti a soudnictví"]
["8424","Činnosti v oblasti veřejného pořádku a bezpečnosti"]
["84240","Činnosti v oblasti veřejného pořádku a bezpečnosti"]
["8425","Činnosti v oblasti protipožární ochrany"]
["84250","Činnosti v oblasti protipožární ochrany"]
["843","Činnosti v oblasti povinného sociálního zabezpečení"]
["8430","Činnosti v oblasti povinného sociálního zabezpečení"]
["84300","Činnosti v oblasti povinného sociálního zabezpečení"]
["85","Vzdělávání"]
["851","Předškolní vzdělávání"]
["8510","Předškolní vzdělávání"]
["85100","Předškolní vzdělávání"]
["852","Primární vzdělávání"]
["8520","Primární vzdělávání"]
["85200","Primární vzdělávání"]
["853","Sekundární vzdělávání"]
["8531","Sekundární všeobecné vzdělávání"]
["85311","Základní vzdělávání na druhém stupni základních škol"]
["85312","Střední všeobecné vzdělávání"]
["8532","Sekundární odborné vzdělávání"]
["85321","Střední odborné vzdělávání na učilištích"]
["85322","Střední odborné vzdělávání na středních odborných školách"]
["854","Postsekundární vzdělávání"]
["8541","Postsekundární nikoli terciární vzdělávání"]
["85410","Postsekundární nikoli terciární vzdělávání"]
["8542","Terciární vzdělávání"]
["85420","Terciární vzdělávání"]
["855","Ostatní vzdělávání"]
["8551","Sportovní a rekreační vzdělávání"]
["85510","Sportovní a rekreační vzdělávání"]
["8552","Umělecké vzdělávání"]
["85520","Umělecké vzdělávání"]
["8553","Činnosti autoškol a jiných škol řízení"]
["85531","Činnosti autoškol"]
["85532","Činnosti leteckých škol"]
["85539","Činnosti ostatních škol řízení"]
["8559","Ostatní vzdělávání j. n."]
["85591","Vzdělávání v jazykových školách"]
["85592","Environmentální vzdělávání"]
["85593","Inovační vzdělávání"]
["85599","Jiné vzdělávání j. n."]
["856","Podpůrné činnosti ve vzdělávání"]
["8560","Podpůrné činnosti ve vzdělávání"]
["85600","Podpůrné činnosti ve vzdělávání"]
["86","Zdravotní péče"]
["861","Ústavní zdravotní péče"]
["8610","Ústavní zdravotní péče"]
["86100","Ústavní zdravotní péče"]
["862","Ambulantní a zubní zdravotní péče"]
["8621","Všeobecná ambulantní zdravotní péče"]
["86210","Všeobecná ambulantní zdravotní péče"]
["8622","Specializovaná ambulantní zdravotní péče"]
["86220","Specializovaná ambulantní zdravotní péče"]
["8623","Zubní péče"]
["86230","Zubní péče"]
["869","Ostatní činnosti související se zdravotní péčí"]
["8690","Ostatní činnosti související se zdravotní péčí"]
["86901","Činnosti související s ochranou veřejného zdraví"]
["86909","Ostatní činnosti související se zdravotní péčí j. n."]
["87","Pobytové služby sociální péče"]
["871","Sociální péče ve zdravotnických zařízeních ústavní péče"]
["8710","Sociální péče ve zdravotnických zařízeních ústavní péče"]
["87100","Sociální péče ve zdravotnických zařízeních ústavní péče"]
["872","Sociální péče v zařízeních pro osoby s chronickým duševním onemocněním a osoby závislé na návykových látkách"]
["8720","Sociální péče v zařízeních pro osoby s chronickým duševním onemocněním a osoby závislé na návykových látkách"]
["87201","Sociální péče v zařízeních pro osoby s chronickým duševním onemocněním a osoby závislé na návykových látkách"]
["87202","Sociální péče v zařízeních pro osoby závislé na návykových látkách"]
["873","Sociální péče v domovech pro seniory a osoby se zdravotním postižením"]
["8730","Sociální péče v domovech pro seniory a osoby se zdravotním postižením"]
["87301","Sociální péče v domovech pro seniory"]
["87302","Sociální péče v domovech pro osoby se zdravotním postižením"]
["879","Ostatní pobytové služby sociální péče"]
["8790","Ostatní pobytové služby sociální péče"]
["87900","Ostatní pobytové služby sociální péče"]
["88","Ambulantní nebo terénní sociální služby"]
["881","Ambulantní nebo terénní sociální služby pro seniory a osoby se zdravotním postižením"]
["8810","Ambulantní nebo terénní sociální služby pro seniory a osoby se zdravotním postižením"]
["88101","Ambulantní nebo terénní sociální služby pro seniory"]
["88102","Ambulantní nebo terénní sociální služby pro osoby se zdravotním postižením"]
["889","Ostatní ambulantní nebo terénní sociální služby"]
["8891","Sociální služby poskytované dětem"]
["88910","Sociální služby poskytované dětem"]
["8899","Ostatní ambulantní nebo terénní sociální služby j. n."]
["88991","Sociální služby pro uprchlíky, oběti katastrof"]
["88992","Sociální prevence"]
["88993","Sociální rehabilitace"]
["88999","Jiné ambulantní nebo terénní sociální služby j. n."]
["90","Tvůrčí, umělecké a zábavní činnosti"]
["900","Tvůrčí, umělecké a zábavní činnosti"]
["9001","Scénická umění"]
["90010","Scénická umění"]
["9002","Podpůrné činnosti pro scénická umění"]
["90020","Podpůrné činnosti pro scénická umění"]
["9003","Umělecká tvorba"]
["90030","Umělecká tvorba"]
["9004","Provozování kulturních zařízení"]
["90040","Provozování kulturních zařízení"]
["91","Činnosti knihoven, archivů, muzeí a jiných kulturních zařízení"]
["910","Činnosti knihoven, archivů, muzeí a jiných kulturních zařízení"]
["9101","Činnosti knihoven a archivů"]
["91010","Činnosti knihoven a archivů"]
["9102","Činnosti muzeí"]
["91020","Činnosti muzeí"]
["9103","Provozování kulturních památek, historických staveb a obdobných turistických zajímavostí"]
["91030","Provozování kulturních památek, historických staveb a obdobných turistických zajímavostí"]
["9104","Činnosti botanických a zoologických zahrad, přírodních rezervací a národních parků"]
["91041","Činnosti botanických a zoologických zahrad"]
["91042","Činnosti přírodních rezervací a národních parků"]
["92","Činnosti heren, kasin a sázkových kanceláří"]
["920","Činnosti heren, kasin a sázkových kanceláří"]
["9200","Činnosti heren, kasin a sázkových kanceláří"]
["92000","Činnosti heren, kasin a sázkových kanceláří"]
["93","Sportovní, zábavní a rekreační činnosti"]
["931","Sportovní činnosti"]
["9311","Provozování sportovních zařízení"]
["93110","Provozování sportovních zařízení"]
["9312","Činnosti sportovních klubů"]
["93120","Činnosti sportovních klubů"]
["9313","Činnosti fitcenter"]
["93130","Činnosti fitcenter"]
["9319","Ostatní sportovní činnosti"]
["93190","Ostatní sportovní činnosti"]
["932","Ostatní zábavní a rekreační činnosti"]
["9321","Činnosti lunaparků a zábavních parků"]
["93210","Činnosti lunaparků a zábavních parků"]
["9329","Ostatní zábavní a rekreační činnosti j. n."]
["93290","Ostatní zábavní a rekreační činnosti j. n."]
["94","Činnosti organizací sdružujících osoby za účelem prosazování společných zájmů"]
["941","Činnosti podnikatelských, zaměstnavatelských a profesních organizací"]
["9411","Činnosti podnikatelských a zaměstnavatelských organizací"]
["94110","Činnosti podnikatelských a zaměstnavatelských organizací"]
["9412","Činnosti profesních organizací"]
["94120","Činnosti profesních organizací"]
["942","Činnosti odborových svazů"]
["9420","Činnosti odborových svazů"]
["94200","Činnosti odborových svazů"]
["949","Činnosti ostatních organizací sdružujících osoby za účelem prosazování společných zájmů"]
["9491","Činnosti náboženských organizací"]
["94910","Činnosti náboženských organizací"]
["9492","Činnosti politických stran a organizací"]
["94920","Činnosti politických stran a organizací"]
["9499","Činnosti ostatních organizací sdružujících osoby za účelem prosazování společných zájmů j. n."]
["94991","Činnosti organizací dětí a mládeže"]
["94992","Činnosti organizací na podporu kulturní činnosti"]
["94993","Činnosti organizací na podporu rekreační a zájmové činnosti"]
["94994","Činnosti spotřebitelských organizací"]
["94995","Činnosti environmentálních a ekologických hnutí"]
["94996","Činnosti organizací na ochranu a zlepšení postavení etnických, menšinových a jiných speciálních skupin"]
["94997","Činnosti občanských iniciativ, protestních hnutí"]
["94999","Činnosti ostatních organizací j. n."]
["95","Opravy počítačů a výrobků pro osobní potřebu a převážně pro domácnost"]
["951","Opravy počítačů a komunikačních zařízení"]
["9511","Opravy počítačů a periferních zařízení"]
["95110","Opravy počítačů a periferních zařízení"]
["9512","Opravy komunikačních zařízení"]
["95120","Opravy komunikačních zařízení"]
["952","Opravy výrobků pro osobní potřebu a převážně pro domácnost"]
["9521","Opravy spotřební elektroniky"]
["95210","Opravy spotřební elektroniky"]
["9522","Opravy přístrojů a zařízení převážně pro domácnost, dům a zahradu"]
["95220","Opravy přístrojů a zařízení převážně pro domácnost, dům a zahradu"]
["9523","Opravy obuvi a kožených výrobků"]
["95230","Opravy obuvi a kožených výrobků"]
["9524","Opravy nábytku a bytového zařízení"]
["95240","Opravy nábytku a bytového zařízení"]
["9525","Opravy hodin, hodinek a klenotnických výrobků"]
["95250","Opravy hodin, hodinek a klenotnických výrobků"]
["9529","Opravy ostatních výrobků pro osobní potřebu a převážně pro domácnost"]
["95290","Opravy ostatních výrobků pro osobní potřebu a převážně pro domácnost"]
["96","Poskytování ostatních osobních služeb"]
["960","Poskytování ostatních osobních služeb"]
["9601","Praní a chemické čištění textilních a kožešinových výrobků"]
["96010","Praní a chemické čištění textilních a kožešinových výrobků"]
["9602","Kadeřnické, kosmetické a podobné činnosti"]
["96020","Kadeřnické, kosmetické a podobné činnosti"]
["9603","Pohřební a související činnosti"]
["96030","Pohřební a související činnosti"]
["9604","Činnosti pro osobní a fyzickou pohodu"]
["96040","Činnosti pro osobní a fyzickou pohodu"]
["9609","Poskytování ostatních osobních služeb j. n."]
["96090","Poskytování ostatních osobních služeb j. n."]
["97","Činnosti domácností jako zaměstnavatelů domácího personálu"]
["970","Činnosti domácností jako zaměstnavatelů domácího personálu"]
["9700","Činnosti domácností jako zaměstnavatelů domácího personálu"]
["97000","Činnosti domácností jako zaměstnavatelů domácího personálu"]
["98","Činnosti domácností produkujících blíže neurčené výrobky a služby pro vlastní potřebu"]
["981","Činnosti domácností produkujících blíže neurčené výrobky pro vlastní potřebu"]
["9810","Činnosti domácností produkujících blíže neurčené výrobky pro vlastní potřebu"]
["98100","Činnosti domácností produkujících blíže neurčené výrobky pro vlastní potřebu"]
["982","Činnosti domácností poskytujících blíže neurčené služby pro vlastní potřebu"]
["9820","Činnosti domácností poskytujících blíže neurčené služby pro vlastní potřebu"]
["98200","Činnosti domácností poskytujících blíže neurčené služby pro vlastní potřebu"]
["99","Činnosti exteritoriálních organizací a orgánů"]
["990","Činnosti exteritoriálních organizací a orgánů"]
["9900","Činnosti exteritoriálních organizací a orgánů"]
["99000","Činnosti exteritoriálních organizací a orgánů"]

{"sheet":"Číselník stav soudního jednání","index":10,"n_rows":6,"n_cols":2,"rows_kept":6,"cut":false,"hidden":true,"merged":[[0,0,0,1]]}
["LGL_PRCDNG_STTS - Stav soudního jednání"]
["Kód","Název"]
["1","Nebyly podniknuty žádné právní kroky"]
["2","Ochrana věřitelů, na dlužníka se vztahuje soudní správa, nucená správa nebo obdobná opatření"]
["3","Úpadek/insolvence"]
["4","Ostatní zákonná opatření"]

{"sheet":"Číselník velikost podniku","index":11,"n_rows":6,"n_cols":2,"rows_kept":6,"cut":false,"hidden":true,"merged":[[0,0,0,1]]}
["SZ - velikost podniku"]
["Kód","Název"]
["1","Velký podnik"]
["2","Střední podnik"]
["3","Malý podnik"]
["4","Mikropodnik"]

{"sheet":"Číselník účetních standardů","index":12,"n_rows":6,"n_cols":2,"rows_kept":6,"cut":false,"hidden":true,"merged":[[0,0,0,1]]}
["ACCNTNG_FRMWRK  - účetní standard"]
["Kód","Název"]
["0","Not applicable"]
["1","Národní GAAP nekonzistentní s IFRS"]
["2","IFRS"]
["3","Národní GAAP konzistentní s IFRS"]

{"sheet":"Číselník_měn","index":13,"n_rows":184,"n_cols":2,"rows_kept":184,"cut":false,"hidden":true,"merged":[[0,0,0,1]]}
["ECB1_ISO4217 - číselník měn"]
["Kód","Název"]
["AED","UAE Dirham"]
["AFN","Afghani"]
["ALL","Lek"]
["AMD","Armenian Dram"]
["ANG","Netherlands Antillian Guilder"]
["AOA","Kwanza"]
["ARS","Argentine Peso"]
["AUD","Australian Dollar"]
["AWG","Aruban Guilder"]
["AZN","Azerbaijanian Manat"]
["BAM","Convertible Marks"]
["BBD","Barbados Dollar"]
["BDT","Taka"]
["BGL","Bulgarian lev A/99"]
["BGN","Bulgarian Lev"]
["BHD","Bahraini Dinar"]
["BIF","Burundi Franc"]
["BMD","Bermudian Dollar"]
["BND","Brunei Dollar"]
["BOB","Boliviano"]
["BOV","Mvdol"]
["BRL","Brazilian Real"]
["BSD","Bahamian Dollar"]
["BTN","Ngultrum"]
["BWP","Pula"]
["BYR","Belarussian Ruble"]
["BZD","Belize Dollar"]
["CAD","Canadian Dollar"]
["CDF","Franc Congolais"]
["CHE","WIR Euro"]
["CHF","Swiss Franc"]
["CHW","WIR Franc"]
["CLF","Unidades de fomento"]
["CLP","Chilean Peso"]
["CNY","Yuan Renminbi"]
["COP","Colombian Peso"]
["COU","Unidad de Valor Real"]
["CRC","Costa Rican Colon"]
["CUP","Cuban Peso"]
["CVE","Cape Verde Escudo"]
["CYP","Cypriot Pound"]
["CZK","Czech Koruna"]
["DJF","Djibouti Franc"]
["DKK","Danish Krone"]
["DOP","Dominican Peso"]
["DZD","Algerian Dinar"]
["ECS","Ecuadorian Sucre"]
["EEK","Kroon"]
["EGP","Egyptian Pound"]
["ERN","Nakfa"]
["ETB","Ethiopian Birr"]
["EUR","Euro"]
["FJD","Fiji Dollar"]
["FKP","Falkland Islands Pound"]
["FRF","French Franc"]
["GBP","Pound Sterling"]
["GEL","Lari"]
["GHS","Ghana Cedi"]
["GIP","Gibraltar Pound"]
["GMD","Dalasi"]
["GNF","Guinea Franc"]
["GTQ","Quetzal"]
["GWP","Guinea-Bissau Peso"]
["GYD","Guyanese Dollar"]
["HKD","Hong Kong Dollar"]
["HNL","Lempira"]
["HRK","Croatian Kuna"]
["HTG","Gourde"]
["HUF","Hungarian Forint"]
["IDR","Rupiah"]
["ILS","New Israeli Sheqel"]
["INR","Indian Rupee"]
["IQD","Iraqi Dinar"]
["IRR","Iranian Rial"]
["ISK","Iceland Krona"]
["JMD","Jamaican Dollar"]
["JOD","Jordanian Dinar"]
["JPY","Japanese Yen"]
["KES","Kenyan Shilling"]
["KGS","Som"]
["KHR","Riel"]
["KMF","Comoro Franc"]
["KPW","North Korean Won"]
["KRW","South Korean Won"]
["KWD","Kuwaiti Dinar"]
["KYD","Cayman Islands Dollar"]
["KZT","Tenge"]
["LAK","Kip"]
["LBP","Lebanese Pound"]
["LKR","Sri Lanka Rupee"]
["LRD","Liberian Dollar"]
["LSL","Loti"]
["LTL","Lithuanian Litas"]
["LVL","Latvian Lats"]
["LYD","Libyan Dinar"]
["MAD","Moroccan Dirham"]
["MDL","Moldovan Leu"]
["MGA","Malagasy Ariary"]
["MGF","Malagasy Franc"]
["MKD","Denar"]
["MMK","Kyat"]
["MNT","Tugrik"]
["MOP","Pataca"]
["MRO","Ouguiya"]
["MRU","Ouguiya"]
["MTL","Maltese Lira"]
["MUR","Mauritius Rupee"]
["MVR","Rufiyaa"]
["MWK","Kwacha"]
["MXN","Mexican Peso"]
["MXV","Mexican Unidad de Inversion (UDI)"]
["MYR","Malaysian Ringgit"]
["MZN","Metical"]
["NAD","Namibia Dollar"]
["NGN","Naira"]
["NIO","Cordoba Oro"]
["NOK","Norwegian Krone"]
["NPR","Nepalese Rupee"]
["NZD","New Zealand Dollar"]
["OMR","Rial Omani"]
["PAB","Balboa"]
["PEN","Nuevo Sol"]
["PGK","Kina"]
["PHP","Philippine Peso"]
["PKR","Pakistan Rupee"]
["PLN","Polish Zloty"]
["PYG","Paraguayan Guarani"]
["QAR","Qatari Rial"]
["ROL","Romanian Leu A/05"]
["RON","New Leu"]
["RSD","Serbian Dinar"]
["RUB","Russian Ruble"]
["RWF","Rwanda Franc"]
["SAR","Saudi Riyal"]
["SBD","Solomon Islands Dollar"]
["SCR","Seychelles Rupee"]
["SDG","Sudanese Pound"]
["SEK","Swedish Krona"]
["SGD","Singapore Dollar"]
["SHP","Saint Helena Pound"]
["SIT","Slovenian Tolar"]
["SKK","Slovak Koruna"]
["SLL","Leone"]
["SOS","Somali Shilling"]
["SRD","Surinam Dollar"]
["STD","Dobra"]
["STN","Dobra"]
["SVC","El Salvador Colon"]
["SYP","Syrian Pound"]
["SZL","Lilangeni"]
["THB","Thai Baht"]
["TJS","Somoni"]
["TMM","Manat"]
["TND","Tunisian Dinar"]
["TOP","Pa''''''''''''''''anga"]
["TRL","Turkish Lira A/05"]
["TRY","New Turkish Lira"]
["TTD","Trinidad and Tobago Dollar"]
["TWD","New Taiwan Dollar"]
["TZS","Tanzanian Shilling"]
["UAH","Hryvnia"]
["UGX","Uganda Shilling"]
["USD","US Dollar"]
["UYI","Uruguay Peso en Unidades Indexadas"]
["UYU","Peso Uruguayo"]
["UYW","Unidad Previsional"]
["UZS","Uzbekistan Sum"]
["VEB","Venezuelan Bolivar"]
["VEF","Bolivar Fuerte"]
["VES","Bolívar Soberano"]
["VND","Vietnamese Dong"]
["VUV","Vatu"]
["WST","Tala"]
["XAF","CFA Franc BEAC"]
["XCD","East Caribbean Dollar"]
["XDR","SDR"]
["XOF","CFA Franc"]
["XPF","CFP Franc"]
["YER","Yemeni Rial"]
["ZAR","South African Rand"]
["ZMK","Kwacha"]
["ZWD","Zimbabwean Dollar A/06"]